{"text_format":"1","workbook":"xlsx","n_sheets":31,"sheets":["Information and instructions","SECTION 1 - APPLICATION","SECTION 2 - RISK ASSESSMENT","SECTION3 + SCORE","SECTION 4 - PUBLIC HEALTH RISKS","Addresses Ambulance","Addresses MUG services","Addresses Emergency services","Toilets","SECTION for the Organiser","Care provided","SECTION Disasters","SECTION6","SECTION7","SECTION8","SECTION5","part 1 letter no advice","part 2 letter no advice","part 1 letter","part 2 letter","part 3 letter list","mayor","100","FIGURES","SECTION 3","INTERPRETATION","RESULTS","WORKING DOC","LIST","Registration","Sheet1"],"not_rendered":{"charts":0,"images":19,"macros":1,"external_links":2,"defined_names":90,"comments":1,"pivot_tables":0},"unopened":[],"bounds":{"document_bytes":16777216,"sheet_cells":100000,"rows_first":2000,"rows_last":500,"rows_between":2000,"halvings":0,"cell_chars":16384,"cell_head_chars":4096},"cells_cut":0,"cells_raw":0,"read":"whole","date_system":"1900"}

{"sheet":"Information and instructions","index":0,"n_rows":49,"n_cols":3,"rows_kept":49,"cut":false,"hidden":false,"merged":[[43,1,43,2],[44,1,44,2],[39,0,39,2],[40,1,40,2],[42,1,42,2],[7,0,7,2],[21,1,21,2],[9,0,9,2],[23,0,23,2],[41,1,41,2],[35,1,35,2],[36,1,36,2],[37,1,37,2],[34,1,34,2],[26,2,32,2],[24,1,24,2],[22,0,22,2],[10,0,10,2],[11,0,11,2],[12,0,12,2],[15,1,15,2],[0,0,0,2],[6,0,6,2],[5,0,5,2],[3,0,3,2],[4,0,4,2],[1,0,1,2],[2,0,2,2]]}
["General information"]
["Before working with these files, please check your macro security settings first. Your security settings must be set to ‘medium’ in order to use the necessary buttons.\nTo change your settings, follow these steps :"]
["- Open the program: excel\n- Now select : Extra ==> macros ==> security\n- Select the \"security level\" tab\n- Select the option “medium\" \n- Open the file \n- Select the option : “Enable macros”"]
["For excel 2007 :"]
["1. enabling the buttons :\n- Click on the button : options\n\n\n\n\n\n- select \"Enable content\" and then click OK"]
["2. to save the completed version :\nUsers of excel 2007 must save the completed file in excel 2003 format.\n- choose to save as by clicking on the icon shown here once\n- select previous version/2003."]
["Before you start filling in the file, make sure to save a copy of the file with the appropriate file name. By doing so, you will always have a blank template to work with.\n            For the organiser : PRIMA_25_0RG_event  name_date\n            For the disaster officer : PRIMA_25_DO_event name_date"]
["Always start by filling in SECTION 1 and continue by using the “Next” button at the bottom of each sheet."]
[]
["For disaster officers"]
["Dear disaster officer, we have sent you 2 versions of PRIMA: PRIMA_25_DO_EN and PRIMA_25_ORG_EN\nWe have opted to create 2 different versions, one for organisers and one for disaster officers, because this makes it easier to check who filled in which document. We assume that documents completed by an disaster officer will be more accurate, which will also speed up the follow-up check."]
[]
["A. When sending this file to the organiser, use the file PRIMA_25_ORG_EN : make sure to only do so once"]
["1.","removing database protection","Extra ==> security ==> remove workbook protection"]
["2.","Removing protection from the “Section for the organiser” tab","Extra ==> security ==> remove sheet protection"]
["3.","Fill in your details and do not forget to include your email address, so the organiser knows where to send the completed version"]
["4.","Protecting the “Section for the organiser” tab with a password","Extra ==> security ==> protect sheet"]
["5.","Hiding the rows intended for the disaster officer on the “Information and instructions” tab","select the rows ==>format ==> row ==> hide"]
["6.","Protecting the “Information and instructions” tab with a password","Extra ==> security ==> protect sheet"]
["5.","protecting the database with a password (this is very important, as it prevents users from changing the formulas, intentionally or not.","Extra ==> security ==> protect workbook"]
["6.","Save file as :  PRIMA_25_ORG_EN.  Please make sure that the information and instructions sheet is in the foreground. This way, it will be the first thing the organiser sees.","File ==> save as ==> give the file a name and determine where it should be saved"]
["7.","Send this file to the organiser."]
[]
["B. After receiving the file from an organiser :"]
["1.","Save the received file as follows : PRIMA_25_ORG_name of event_date e.g. PRIMA_25_ORG_Braderij Turnhout_13 10 10"]
["2.","removing database protection","Extra ==> security ==> remove workbook protection"]
["3.","unhide the following tabs :","format ==> sheet ==> unhide"]
[null,"SECTION Disasters"]
[null,"SECTION6"]
[null,"SECTION7"]
[null,"SECTION8"]
[null,"part 1 letter no advice"]
[null,"part 2 letter no advice"]
[null,"Removing protection from the “Section for the organiser” tab","Extra ==> security ==> remove sheet protection\nOn this sheet, you must answer all questions marked as “to be completed by the disaster officer”. These answers will automatically be filled in in Section 3. You must repeat this process every time you are sent an assessment form by an organiser."]
["4.","Check that all information has been filled in correctly. You can do so by returning to “SECTION 1 - APPLICATION” and clicking on the “next” button at the bottom of the sheet until you have checked all sections. In SECTION 3, you can choose whether to continue as an organiser or an disaster officer."]
["5.","Disaster officers can print the necessary letters, provided that no advice is required from the FPS. These letters must then be sent to the organiser, so that they can see which arrangements are to be made. The letters must also be presented to the mayor.\nIf the presence of a nurse, ambulance or MUG team is required, you will not be able to print letters."]
["6.","If no FPS advice is required, you must:\n          - complete the “Care provided” tab after the event\n          - save the file and send it to the e-mail address below (with the subject line : no medical facilities/resources or limited aid station )"]
["7.","If FPS advice is required :\n          - save the file and send it to the e-mail address below (with the subject line : FPS advice )\n          - after the event, complete the “Care provided” tab\n          - save the file and send it to the e-mail address below (with the subject line : care provided)"]
[]
["C. When completing the risk assessment form yourself, use the file named PRIMA_25_DO_EN"]
["1.","To be done once in the original file :\n- Remove database protection\n- Remove sheet protection from “Section for the organiser” tab\n- Fill in your details (these will automatically appear in section 1)\n- Save the file with its original name : PRIMA_25_DO_EN\n- Always keep this file for reference. This way, you will always be able to start from scratch with a blank template"]
["2.","Save the file as follows : PRIMA_25_DO_event name_date e.g. PRIMA_25_DO_Turnhout Fair_13 10 10"]
["3.","When processing a new entry, you must always answer the questions marked “to be completed by the disaster officer” on the organiser tab."]
["4.","Start with SECTION 1 and continue until you reach SECTION 4."]
["5.","After this point, follow the guidelines starting from point B5"]
[]
[]
[null,"Use the following e-mail address:"]
[null,{"$f":"FIGURES!C36","v":"icm.antwerpen@health.fgov.be"}]

{"sheet":"SECTION 1 - APPLICATION","index":1,"n_rows":69,"n_cols":20,"rows_kept":69,"cut":false,"hidden":false,"merged":[[63,1,63,4],[63,6,63,10],[61,1,61,4],[61,6,61,10],[62,1,62,4],[60,0,60,10],[62,6,62,10],[58,1,58,5],[23,1,23,4],[23,6,23,10],[38,6,38,10],[25,6,25,10],[27,6,27,10],[29,6,29,10],[30,6,30,10],[33,6,33,10],[32,0,32,10],[25,1,25,4],[24,6,24,10],[24,1,24,4],[35,1,35,4],[37,1,37,4],[44,1,44,3],[44,4,44,6],[44,7,44,10],[58,7,58,8],[58,9,58,10],[27,1,27,4],[28,1,28,4],[26,1,26,4],[16,3,16,6],[21,0,21,4],[22,0,22,10],[21,6,21,10],[43,0,43,10],[45,7,45,10],[46,7,46,10],[45,1,45,3],[46,1,46,3],[45,4,45,6],[46,4,46,6],[39,1,39,4],[38,1,38,4],[41,1,41,4],[40,1,40,4],[41,6,41,10],[40,6,40,10],[39,6,39,10],[37,6,37,10],[26,6,26,10],[28,6,28,10],[35,6,35,10],[36,6,36,10],[34,6,34,10],[30,1,30,4],[29,1,29,4],[33,1,33,4],[34,1,34,4],[36,1,36,4],[0,0,0,10],[20,3,20,6],[5,0,5,4],[6,0,6,4],[5,6,5,10],[19,3,19,6],[13,0,13,1],[3,0,3,4],[4,0,4,4],[7,4,7,5],[8,4,8,5],[8,0,8,1],[8,2,8,3],[14,3,14,6],[15,3,15,6],[9,0,9,4],[17,3,17,6],[5,12,5,13],[13,12,13,13],[7,8,8,9],[7,2,7,3],[2,6,2,10],[3,6,3,10],[6,9,6,10],[13,3,13,6],[6,6,6,7],[2,0,2,4],[11,8,11,9],[4,6,4,10],[11,0,11,6],[7,0,7,1],[47,4,47,6],[48,4,48,6],[49,7,49,10],[56,0,56,10],[47,1,47,3],[48,1,48,3],[47,7,47,10],[48,7,48,10],[51,0,51,10],[53,1,53,4],[57,1,57,5],[57,7,57,8],[57,9,57,10],[49,1,49,3],[49,4,49,6],[54,6,54,10],[52,6,52,10],[53,6,53,10],[52,1,52,4],[54,1,54,4]]}
["SECTION 1 - ADMINISTRATIVE DETAILS ACCOMPANYING AN APPLICATION FOR AN INREASED-RISK EVENT \n(TO BE COMPLETED IN FULL)"]
[]
["Municipality where the event will take place",null,null,null,null,null,null,null,null,null,null,null,"VERSION 25 - 2011 02 18",null,null,"number of days","number of hours","number of hours per day","number of hours as a number","total"]
["Event start date",null,null,null,null,null,"00/00/0000"]
["Event name",null,null,null,null,null,"VERSION 25",null,null,null,null,null,null,null,null,{"$f":"C9-C8","v":{"$error":"#VALUE!"}},{"$f":"G9-G8","v":"00:00:00"},{"$f":"P5*24","v":{"$error":"#VALUE!"}},{"$f":"Q5*24","v":0},{"$f":"SUM(R5:S5)","v":{"$error":"#VALUE!"}}]
["Type of event",null,null,null,null,null,"ALL OTHER EVENTS",null,null,null,null,null,"CELL COLOUR CODE"]
["Event address",null,null,null,null,null,null,null,"Postcode :",null,null,null,"LIGHT YELLOW","FILL IN CELL OR SELECT FROM A LIST"]
["Start date :",null,{"$f":"$G$4","v":"00/00/0000"},null,"Start time :",null,"00:00:00",null,"Duration (hours) :",null,{"$f":"IF(K9<>0,K9,IF(C8<>\"00/00/0000\",T5))","v":false},null,"BRIGHT YELLOW : ","SUGGESTED ANSWER (MAY BE MODIFIED)"]
["End date :",null,"00/00/0000",null,"End time : ",null,"00:00:00",null,null,null,null,null,"LIGHT BLUE : ","AUTO-CALCULATED CELL"]
["Enter approval number if applicable :",null,null,null,null,null,null,null,null,null,null,null,"LIGHT GREEN : ","FURTHER EXPLANATION OF OPTIONS"]
[null,null,null,null,null,null,null,null,null,null,null,null,"WHITE : ","CELL NAME/SUBJECT"]
["Several medical risk analyses have been drawn up for this event (split event)",null,null,null,null,null,null,null,"ja",null,null,null,"ORANGE :"," NAME AND/OR INSTRUCTIONS"]
[null,null,null,null,null,null,null,null,null,null,null,null,"BRIGHT GREEN","COMPLETED CELL = OK"]
["Population at risk",null,"a","Expected number of visitors",null,null,null,null,0,null,null,null,"SPECIFIC INSTRUCTIONS CAN BE FOUND IN THE FIELD COMMENTS"]
[null,null,"b","Expected number of participants",null,null,null,null,0,null,"Enter if applicable"]
[null,null,"c","Number of people deployed by the organisers",null,null,null,null,0,null,"Enter if applicable"]
[null,null,"d","Number of residents within the isolation perimeter",null,null,null,null,0]
[null,null,"e","Possible population shift ",null,null,null,null,0,null,"Enter if applicable"]
[]
[null,null,"f","% of total population present at the same time",null,null,null,null,100,"  %"]
[null,null,"g","Total number of people at risk",null,null,null,null,null,null,{"$f":"IF('SECTION3 + SCORE'!I72=1,(SUM(I14:I17)-I18)*(I20/100)*FIGURES!D21,(SUM(I14:I17)-I18)*(I20/100))","v":0}]
["Will there be a campsite",null,null,null,null,null,"Please select"]
["Organiser’s administrative details"]
[null,"Organisation"]
[null,"Surname and first name"]
[null,"Address"]
[null,"Organiser’s nationality"]
[null,"email"]
[null,"Organiser’s website"]
[null,"Reachable outside the event"]
[null,"Reachable during the event"]
[]
["Contact information of the person in charge of medical assistance (if applicable)"]
[null,"Surname and first name"]
[null,"Address"]
[null,"Role during the event"]
[null,"email"]
[null,"Permission level",null,null,null,null,"Please select"]
[null,"Belongs to organisation/hospital/etc..."]
[null,"Reachable outside the event"]
[null,"Reachable during the event"]
[null,"Reachable through the organisers at number"]
[]
["Any other RESPONSIBLE PERSONS whose contact details are to be passed on"]
[null,"Surname and first name",null,null,"Role during event",null,null,"Mobile number"]
[]
[]
[]
[]
[]
[]
["Insurance information (if applicable)"]
[null,"Which "]
[null,"Type of contract"]
[null,"Policy number"]
[]
["Event build-up and tear-down"]
[null,"Starting date of event build-up",null,null,null,null,"00/00/0000","starting time",null,"00:00:00"]
[null,"End date of event tear-down",null,null,null,null,"00/00/0000","duration",null,"00:00:00"]
[]
["Details of the responsible municipal officer (to be completed by the municipality)"]
[null,"Surname and first name",null,null,null,null,{"$f":"'SECTION for the Organiser'!C12","v":0}]
[null,"Phone number",null,null,null,null,{"$f":"'SECTION for the Organiser'!C13","v":0}]
[null,"e-mail :",null,null,null,null,{"$f":"'SECTION for the Organiser'!C10","v":0}]
[]
[null,null,null,null,null,null,null,null,null,null,null,null,null,null,null,"starting time"]
[null,null,null,null,null,null,null,null,null,null,null,null,null,null,null,"duration"]
[null,null,null,null,null,null,null,null,null,null,null,null,null,null,null,"cellP32-cellP31"]
[null,null,null,null,null,null,"Completion check - section 1",null,{"$f":"IF(OR(K21=0,K8=0,G3=\"\",G22=\"Maak uw keuze\",I14=0,G5=\"VERSIE 25\",G6=\"Maak uw keuze\"),1,0)","v":1}]

{"sheet":"SECTION 2 - RISK ASSESSMENT","index":2,"n_rows":35,"n_cols":8,"rows_kept":35,"cut":false,"hidden":false,"merged":[[0,0,0,4],[2,0,2,1],[2,3,2,4],[3,1,3,2],[3,6,3,7],[13,6,13,7],[34,2,34,3],[26,1,26,5],[5,6,5,7],[4,1,4,2],[5,1,5,2],[6,1,6,2],[7,1,7,2],[4,6,4,7]]}
["SECTION 2 : MINIMUM ESSENTIAL QUESTIONS\nASSESSMENT OF THE NECESSARY MEDICAL FACILITIES",null,null,null,null,null,{"$f":"'SECTION 1 - APPLICATION'!M3","v":"VERSION 25 - 2011 02 18"}]
[]
["QUESTION",null,null,"SCORE (1)"]
["1. ","DISTANCE FROM THE EVENT TO THE NEAREST AMBULANCE IN MINUTES",null,null,{"$f":"IF(D4>8,1,0)","v":0},null,"Ambulance addresses"]
["2.","DISTANCE FROM THE EVENT TO THE NEAREST MUG SERVICE IN MINUTES",null,null,{"$f":"IF(D5>10,1,0)","v":0},null,"MUG addresses"]
["3.","THE POPULATION DIFFERS FROM THE STANDARD POPULATION, RESULTING IN AN INCREASED RISK OF CARE/ILLNESS DURING THE EVENT",null,"Please select",{"$f":"IF(D6=\"ja\",1,0)","v":0},null,"CELL COLOUR CODE"]
["4.","THE FIRE DEPARTMENT HAS ESTABLISHED RISKS",null,"Please select",{"$f":"IF(D7=\"ja\",1,0)","v":0},null,"LIGHT YELLOW","FILL IN CELL OR SELECT FROM A LIST"]
["5.","THE POLICE HAS ESTABLISHED RISKS",null,"Please select",{"$f":"IF(D8=\"ja\",1,0)","v":0},null,"BRIGHT YELLOW : ","SUGGESTED ANSWER (MAY BE MODIFIED)"]
[null,"TOTAL SCORE",null,null,{"$f":"SUM(E4:E8)","v":0},null,"LIGHT BLUE : ","AUTO-CALCULATED CELL"]
[null,"SCORE TRANSLATION : IS A TEMPORARY MEDICAL CENTRE NEEDED",null,null,{"$f":"IF(E9>0,\"JA\", IF('SECTION 1 - APPLICATION'!K21>1500,\"YES\",\"NO\"))","v":"NO"},null,"LIGHT GREEN : ","FURTHER EXPLANATION OF OPTIONS"]
[null,null,null,null,null,null,"WHITE : ","CELL NAME/SUBJECT"]
[null,null,null,null,null,null,"ORANGE :"," NAME AND/OR INSTRUCTIONS"]
[null,null,null,null,null,null,"BRIGHT GREEN","COMPLETED CELL = OK"]
[null,null,null,null,null,null,"SPECIFIC INSTRUCTIONS CAN BE FOUND IN THE FIELD COMMENTS"]
[]
[]
[]
[]
[]
[]
[]
[]
[]
[]
[]
[]
[]
[]
[]
[]
[null,"Completion check - section 1",{"$f":"IF(waardeluik1.1<>0,1,0)","v":1}]
[null,"Completion check - section 2",{"$f":"IF(AND($D$4<>\"\",$D$5<>\"\",$D$6<>\"Maak uw keuze\",$D$7<>\"Maak uw keuze\",$D$8<>\"Maak uw keuze\"),0,1)","v":1}]
[]
[]
[null,"Control cells - section 2","D4 to D8"]

{"sheet":"SECTION3 + SCORE","index":3,"n_rows":126,"n_cols":19,"rows_kept":126,"cut":false,"hidden":false,"merged":[[0,0,0,7],[18,5,23,6],[26,0,26,6],[9,1,16,1],[18,1,24,1],[5,1,6,1],[5,5,5,6],[4,4,4,6],[2,17,2,18],[4,17,4,18],[12,17,12,18],[4,11,4,12],[2,0,2,6],[2,8,2,9],[26,8,26,9],[6,5,6,6],[58,4,58,6],[15,11,15,12],[17,5,17,6],[28,3,28,4],[100,1,101,1],[65,1,78,1],[59,1,61,1],[49,1,53,1],[93,1,98,1],[90,0,90,6],[92,4,92,6],[41,5,50,6],[56,0,56,6],[70,5,70,6],[90,8,90,9],[36,1,36,3],[29,1,35,1],[38,0,38,6],[44,1,45,1],[47,1,48,1],[56,8,56,9],[38,8,38,9],[80,1,88,1],[40,4,40,6]]}
["SECTION 3 : ACTUAL RISK ANALYSIS ACCORDING TO SELECTED QUESTIONS\nQUESTION WITH SCORE",null,null,null,null,null,null,null,"COMPLETED SCORE","COPY OUTCOME"]
[]
["R1 : RISK AS 1 : ISOLATION RISK",null,null,null,null,null,null,null,"ISOLATION",null,null,{"$f":"'SECTION 1 - APPLICATION'!M3","v":"VERSION 25 - 2011 02 18"},null,null,null,null,null,{"$f":"'SECTION 1 - APPLICATION'!M3","v":"VERSION 25 - 2011 02 18"}]
[]
[null,"CLASS","NO","QUESTION","ANSWER OPTIONS",null,null,null,"SCORE","Actual response time (in min)",null,null,null,null,null,null,null,"CELL COLOUR CODE"]
[null,"ISOLATION FOR EMERGENCY SERVICES ARRIVING ON THE SCENE",1,"Distance to ambulance",{"$f":"'SECTION 2 - RISK ASSESSMENT'!D4","v":0},null,null,null,{"$f":"E6","v":0},{"$f":"I6","v":0},null,null,null,null,null,null,null,"LIGHT YELLOW","FILL IN CELL OR SELECT FROM A LIST"]
[null,null,2,"Distance to MUG",{"$f":"'SECTION 2 - RISK ASSESSMENT'!D5","v":0},null,null,null,{"$f":"E7","v":0},{"$f":"I7","v":0},null,null,null,null,null,null,null,"BRIGHT YELLOW : ","SUGGESTED ANSWER (MAY BE MODIFIED)"]
[null,"EVENT ACCESSIBILITY",3,"accessibility","Please select",null,null,null,null,{"$f":"IF(E8=\"Aparte aanrijroute voor hulpdiensten\",10,IF(E8=\"geen aparte aanrijroute voor hulpdiensten en meerdere grote aanrijroutes\",8,IF(E8=\"Geen aparte aanrijroute voor hulpdiensten en beperkte toegang voor hulpdiensten en bezoekers\",5,0)))","v":0},null,null,null,null,null,null,null,"LIGHT BLUE : ","AUTO-CALCULATED CELL"]
[null,"EVENT perimeter",5,"Perimeter",null,null,null,null,{"$f":"E9","v":0},{"$f":"I9","v":0},null,null,null,null,null,null,null,"LIGHT GREEN : ","FURTHER EXPLANATION OF OPTIONS"]
[null,"FIELD VARIABLES",6,"Area (in km2)",null,null,null,null,{"$f":"E10","v":0},{"$f":"I10","v":0},null,null,null,null,null,null,null,"WHITE : ","CELL NAME/SUBJECT"]
[null,null,7,"Event length in km if no surface area is given.",{"$f":"IF(E10=0,\"\",IF(E10<>\"\",\"niet van toepassing\",\"\"))","v":""},null,null,null,{"$f":"IF(E11=\"niet van toepassing\",0,E11)","v":""},null,null,null,null,null,null,null,null,"ORANGE :"," NAME AND/OR INSTRUCTIONS"]
[null,null,8,"Number of stages or tents that will host groups of more than 500 people",null,null,null,null,{"$f":"E12","v":0}]
[null,null,9,"Subsurface","Please select",null,null,null,{"$f":"IF(E13=\"zacht en vlak\",1,IF(E13=\"zacht en golvend\",2,0))","v":0},null,null,null,null,null,null,null,null,"SPECIFIC INSTRUCTIONS CAN BE FOUND IN THE FIELD COMMENTS"]
[null,null,10,"Structure","Please select",null,null,null,{"$f":"IF(E14=\"Tijdelijke structuur\",1,IF(E14=\"Oneigenlijk gebruik van structuur\",2,0))","v":0}]
[null,null,11,"Stairs present","Please select",null,null,null,{"$f":"IF(E15=\"ja\",2,0)","v":0}]
[null,null,12,"Seating","Please select",null,null,null,{"$f":"IF(E16=\"ja\",2,0)","v":0},"BLS score (no 8-12)"]
[null,null,13,"Location","Please select",null,null,null,{"$f":"IF(E17=\"binnen\",1,0)","v":0},{"$f":" SUM(I13:I17)","v":0}]
[null,"ISOLATION FOR DEPARTING VEHICLES",14,"Distance to the nearest emergency department",null,"Emergency department addresses",null,null,{"$f":"E18","v":0}]
[null,"ISOLATION FOR LOCAL RESIDENTS",15,"Residents inside isolation perimeter",{"$f":"IF('SECTION 1 - APPLICATION'!I17=0,\"NEEN\",\"JA\")","v":"NEEN"},"If the answer to question 15 is NO, please skip questions 16 through 20.",null,null,{"$f":"IF(E19=\"ja\",1,0)","v":0}]
[null,null,16,"Retirement home/hospital inside perimeter",{"$f":"IF($E$19=\"neen\",\"Niet van toepassing\",\"Maak uw keuze\")","v":"Niet van toepassing"},null,null,null,0]
[null,null,17,"On-call GP needed inside perimeter",{"$f":"IF($E$19=\"neen\",\"Niet van toepassing\",\"Maak uw keuze\")","v":"Niet van toepassing"},null,null,null,0]
[null,null,18,"On-call nurse needed inside perimeter",{"$f":"IF($E$19=\"neen\",\"Niet van toepassing\",\"Maak uw keuze\")","v":"Niet van toepassing"},null,null,null,0]
[null,null,19,"meal delivery needed inside perimeter",{"$f":"IF($E$19=\"neen\",\"Niet van toepassing\",\"Maak uw keuze\")","v":"Niet van toepassing"},null,null,null,0]
[null,null,20,"on-call pharmacist needed inside perimeter ",{"$f":"IF($E$19=\"neen\",\"Niet van toepassing\",\"Maak uw keuze\")","v":"Niet van toepassing"},null,null,null,0,"LRES score (no 14-20)"]
[null,null,21,"Number of municipalities concerned","Please select",null,null,null,{"$f":"IF(E25=\"> dan 1 gemeente\",1,0)","v":0},{"$f":"SUM(I19:I25)","v":0}]
[]
["R2 : RISK AS 2 : POPULATION RISK",null,null,null,null,null,null,null,"POPULATION"]
[]
[null,"CLASS","NO","QUESTION",null,"AMOUNT ENTERED","TOTAL",null,"SCORE"]
[null,"APPLICABLE POPULATION",22,"a","expected number of visitors",{"$f":"'SECTION 1 - APPLICATION'!I14","v":0}]
[null,null,null,"b","expected number of participants",{"$f":"'SECTION 1 - APPLICATION'!I15","v":0}]
[null,null,null,"c","expected size of the organiser’s team present at event",{"$f":"'SECTION 1 - APPLICATION'!I16","v":0}]
[]
[null,null,null,"d","number of local resident inside isolation perimeter",{"$f":"'SECTION 1 - APPLICATION'!I17","v":0}]
[null,null,null,"e","Reduction due to population shift",{"$f":"'SECTION 1 - APPLICATION'!I18","v":0},null,null,null,"Population (No 21)"]
[null,null,null,"f","% of total population present at the same time",{"$f":"'SECTION 1 - APPLICATION'!I20","v":100}]
[null,"TOTAL POPULATION AT EVENT",null,null,null,null,{"$f":"'SECTION 1 - APPLICATION'!K21","v":0},null,null,{"$f":"G37","v":0}]
[]
["R3 : RISK AS 3 : HEALTH RISKS",null,null,null,null,null,null,null,"HEALTH"]
[]
[null,"CLASS","NO","QUESTION","ANSWER OPTIONS",null,null,null,"SCORE"]
[null,"AGE",23,"Predominant age group","Please select",null,null,null,{"$f":"IF(E42=\"tss 10-20 jaar en/of tss 35-65 jaar\",1,IF(E42=\"tss 20-35 jaar\",2,IF(E42=\"> 65 jaar\",4,IF(E42=\"< 10 jaar met begeleiding van de ouders\",4,IF(E42=\"< 10 jaar zonder begeleiding van de ouders\",10,0)))))","v":0}]
[null,"ALCOHOL CONSUMPTION",24,"Is alcohol consumption expected","Please select",null,null,null,{"$f":"IF(E43=\"Aanwezig met risicoverwachting\",3,IF(E43=\"Overvloedig gebruik\",6,0))","v":0}]
[null,"DRUG USE",25,"Is drug use expected","Please select",null,null,null,{"$f":"IF(E44=\"Aanwezig met risicoverwachting\",10,IF(E44=\"Overvloedig gebruik\",17,0))","v":0}]
[null,"HEALTH",26,"Audience type","Please select",null,null,null,{"$f":"IF(E45=\"Eén type van publiek\",2,0)","v":0}]
[null,null,27,"Known illness among at least 10% of the audience","Please select",null,null,null,{"$f":"IF(E46=\"Gehandicapten of milde pathologie met chronische behandeling\",1,IF(E46=\"Ernstige pathologie met chronische behandeling\",2,0))","v":0},"Exact duration of the event (No 31)"]
[null,null,28,"Catering","Please select",null,null,null,{"$f":"IF(E47=\"Koude voeding\",1,IF(E47=\"Warme voeding\",2,0))","v":0},{"$f":"E52*I53/100","v":0}]
[null,"ACCOMMODATION",29,"Accommodation for visitors ","Please select",null,null,null,{"$f":"IF(E48=\"ja\",1,0)","v":0}]
[null,null,30,"Accommodation for organisers","Please select",null,null,null,{"$f":"IF(E49=\"ja\",1,0)","v":0}]
[null,"EVENT TYPE",31,"Event type",{"$f":"'SECTION 1 - APPLICATION'!$G$6","v":"ALL OTHER EVENTS"},null,null,null,{"$f":"IF(E50=\"alle andere betogingen\",24,IF(E50=\"ALLE ANDERE EVENEMENTEN\",10,IF(E50=\"Autosport\",24,IF(E50=\"Bazar\",5,IF(E50=\"Beurs\",5,IF(E50=\"braderie\",5,IF(E50=\"Competitiesport\",17,IF(E50=\"Concert van klassieke muziek\",5,J50))))))))","v":0},{"$f":"IF(E50=\"Danssportevenement\",10,IF(E50=\"Evenement met techno/house en/of aanverwante muziekvorm\",32,IF(E50=\"Folkloristisch feest\",10,IF(E50=\"Karnaval\",17,IF(E50=\"Kerstmarkt\",10,IF(E50=\"Kleine (aangekondigde) betoging\",17,K50))))))","v":0},{"$f":"IF(E50=\"Marathon\",17,IF(E50=\"Markt\",5,IF(E50=\"Meerdaagse wandelmarsen\",17,IF(E50=\"Motorsport\",24,IF(E50=\"Muziekevenement (andere dan klassieke muziek of rock/house/techno)\",17,IF(E50=\"Optochten\",10,IF(E50=\"Pensenkermis\",5,L50)))))))","v":0},{"$f":"IF(E50=\"Rockconcert\",32,IF(E50=\"Show\",5,IF(E50=\"Sportevenement (behalve marathon, wielrennen, meerdaagse wandelmarsen of competitie)\",10,IF(E50=\"Straatfestival (behalve karnaval)\",10,IF(E50=\"Tentoonstelling\",5,IF(E50=\"Theater\",5,IF(E50=\"Vliegshow\",24,M50)))))))","v":0},{"$f":"IF(E50=\"Vliegshow static \",5,IF(E50=\"Huwelijk BV\",10,IF(E50=\"Wielrennen achter derny\",17,IF(E50=\"Eroticabeurs\",5,IF(E50=\"Vlooienmarkt\",5,IF(E50=\"Volksbal\",5,IF(E50=\"Vuurwerk\",17,N50)))))))","v":0},{"$f":"IF(E50=\"Wielrennen\",17,IF(E50=\"Fuif\",17,IF(E50=\"Ballonvaart\",17,IF(E50=\"Politieke manifestatie\",32,0))))","v":0}]
[null,null,32,"Event duration",{"$f":"'SECTION 1 - APPLICATION'!$K$8","v":false},null,null,null,{"$f":"IF(E51<5,0,IF(AND(E51>5,E51<13),2,IF(AND(E51>12,E51<25),4,IF(E51>24,6,0))))","v":6}]
[null,null,33,"Exact event duration in hours",{"$f":"'SECTION 1 - APPLICATION'!$K$8","v":false},"DURATION"]
[null,null,34,"Amount of time that the event will be attended by people (in%)",null,"%",null,null,{"$f":"E53","v":0},"HEA score"]
[null,null,35,"Time of event","Please select",null,null,null,{"$f":"IF(E54=\"(Ook) buiten de werkuren\",4,0)","v":0},"(22-33) minus question 31"]
[null,"TEMPERATURE AND HUMIDITY",36,"expected temperature","Please select",null,null,null,{"$f":"IF(E55=\"Aanwezigheid van airco\",7,IF(E55=\"0°C-3°C\",15,IF(E55=\"< 0°C\",33,IF(E55=\"4°C-7°C\",7,IF(E55=\"17°C-22°C\",7,IF(E55=\"22°C-27°C\",15,IF(E55=\"> 27°C\",33,0)))))))","v":0},{"$f":"SUM(I42:I51)+SUM(I54:I55)","v":6},null,{"$f":"IF(E55=\"< 0°C\",1,0)","v":0},{"$f":"IF(E55=\"0°C-3°C\",1,0)","v":0},{"$f":"IF(E55=\"4°C-7°C\",1,0)","v":0},{"$f":"IF(E55=\"22°C-27°C\",1,0)","v":0},{"$f":"IF(E55=\"> 27°C\",1,0)","v":0}]
[]
["R4 : RISK AS 4 : OBJECTIVATION",null,null,null,null,null,null,null,"OBJECTIVATION"]
[]
[null,"CLASS","NO","QUESTION","ANSWER OPTIONS",null,null,null,"SCORE","REG score (34+35)"]
[null,"TRACK RECORD",37,"Organiser’s reputation with safety services",{"$f":"'SECTION for the Organiser'!E17","v":"To be completed by the disaster officer"},null,null,null,{"$f":"IF(E60=\"niet OK en/of onbekend\",1,0)","v":0}]
[null,null,38,"Event age",{"$f":"'SECTION for the Organiser'!E18","v":"To be completed by the disaster officer"},null,null,null,{"$f":"IF(E61=\"4 tot 9 maal\",1,IF(E61=\"3 maal of minder\",2,IF(E61=\"onbekend\",2,0)))","v":0},{"$f":"SUM(I60:I62)","v":0}]
[null,null,39,"Record available","Please select",null,null,null,{"$f":"IF(E62=\"neen\",1,IF(E62=\"onbekend\",1,0))","v":0}]
[]
[null,"MEDICAL LITERATURE",40,"Problems to be expected according to medical literature (+specify which literature)",{"$f":"'SECTION for the Organiser'!E19","v":"To be completed by the disaster officer"},null,null,null,{"$f":"IF(E64=\"ja (enkel wanneer dit meegedeeld werd)\",1,0)","v":0},"LIT score (36)"]
[null,null,null,null,null,null,null,null,null,{"$f":"I64","v":0}]
[null,"MULTIDISCIPLINARY COORDINATION",41,"Presence of utilities","Please select",null,null,null,{"$f":"IF(E66=\"Beperkte standaardvoorzieningen\",1,IF(E66=\"Specifiek geplaatst voor dit evenement\",2,0))","v":0}]
[null,null,42,"Means of communication","Please select",null,null,null,{"$f":"IF(E67=\"Aparte communicatiestructuur voor dit evenement of geen communicatie\",1,0)","v":0}]
[null,null,43,"Presence of dangerous animals","Please select",null,null,null,{"$f":"IF(E68=\"ja\",1,0)","v":0}]
[null,null,44,"International reputation and language problems (> 9 % foreigners expected)","Please select",null,null,null,0]
[null,null,45,"Presence of fireworks","Please select",null,null,null,0]
[null,null,46,"Presence of weapons","Please select",null,null,null,0]
[null,null,47,"Sold out","Please select",null,null,null,0]
[null,null,48,"Simultaneous increased-risk events nearby","Please select",null,null,null,0]
[null,null,49,"Specific risks in the area","Please select",null,null,null,0]
[null,null,50,"Problem according to police",{"$f":"'SECTION 2 - RISK ASSESSMENT'!D8","v":"Please select"},null,null,null,0]
[null,null,51,"Problem according to the fire department",{"$f":"'SECTION 2 - RISK ASSESSMENT'!D7","v":"Please select"},null,null,null,0]
[null,null,52,"Previous negative experience with this type of event",{"$f":"'SECTION for the Organiser'!E21","v":"To be completed by the disaster officer"},null,null,null,0]
[null,null,53,"Event has own security in addition to police","Please select",null,null,null,{"$f":"IF(E78=\"Eigen security\",1,IF(E78=\"Geen security\",3,0))","v":0},"MUL score (37-46)"]
[null,null,54,"Specific legislation concerning this type of event",{"$f":"'SECTION for the Organiser'!E22","v":"To be completed by the disaster officer"},null,null,null,{"$f":"IF(E79=\"ja\",1,0)","v":0},{"$f":"SUM(I66:I79)+I104","v":1}]
[]
[null,"SPECIFIC MULTIDISCIPLINARY POINTS OF ATTENTION ",55,"Are tents open to the public","Please select",null,null,null,{"$f":"IF(E81=\"JA\",1,0)","v":0}]
[null,null,56,"Number of tents with a surface area greater than 50 m2","Please select",null,null,null,{"$f":"IF(E82=\"meer dan 1\",1,IF(E82=1,1,0))","v":0},{"$f":"E82","v":"Please select"}]
[null,null,57,"Main utilities used","Please select",null,null,null,{"$f":"IF(OR(E83=\"gasflessen\",E83=\"aansluiting op een electrogeengroep\",E83=\"aansluiting op het elektriciteitsnet\",E83=\"andere\",E83=\"onbekend\"),1,0)","v":0}]
[null,null,58,"Are VIPs expected","Please select",null,null,null,0]
[null,null,59,"Are there NADAR or HERAS fences","Please select",null,null,null,0]
[null,null,60,"Is the event easily accessible by public transport","Please select",null,null,null,{"$f":"IF(E86=\"niet van toepassing\",0,1)","v":1}]
[null,null,61,"Are there enough car parks nearby","Please select",null,null,null,0]
[null,null,62,"Are the car parks supervised in any way (alerting emergency services in the event of an emergency)","Please select",null,null,null,0]
[null,null,63,"Does the event have its own shuttle service","Please select",null,null,null,0]
[]
["R5 : RISK AS 5 : PREPAREDNESS",null,null,null,null,null,null,null,"PREPAREDNESS"]
[]
[null,"CLASS","NO","QUESTION","ANSWER OPTIONS",null,null,null,"SCORE"]
[null,"PREPAREDNESS ",64,"Are there adequate maps of the site","Please select",null,null,null,{"$f":"IF(E94=\"neen\",1,IF(E94=\"onbekend\",1,0))","v":0}]
[null,null,65,"Are there adequate maps of the entire isolation area","Please select",null,null,null,{"$f":"IF(E95=\"neen\",1,IF(E95=\"onbekend\",1,0))","v":0}]
[null,null,66,"Is there shelter from extreme weather conditions on the site if necessary","Please select",null,null,null,{"$f":"IF(E96=\"neen\",1,0)","v":0}]
[null,null,67,"Does the communication model comply with DGH requirements",{"$f":"'SECTION for the Organiser'!E24","v":"To be completed by the disaster officer"},null,null,null,{"$f":"IF(E97=\"neen\",1,IF(E97=\"onbekend\",1,0))","v":0}]
[null,null,68,"Has the 100 switchboard been notified?",{"$f":"'SECTION for the Organiser'!E25","v":"To be completed by the disaster officer"},null,null,null,{"$f":"IF(E98=\"neen\",1,IF(E98=\"onbekend\",1,0))","v":0}]
[null,null,69,"Is the Medical Intervention Plan compliant with the Royal Decree of 16/02/06",{"$f":"'SECTION for the Organiser'!E26","v":"To be completed by the disaster officer"},null,null,null,{"$f":"IF(E99=\"neen\",1,0)","v":0},"MIP score (47-53)"]
[null,null,null,null,null,null,null,null,null,{"$f":"SUM(I94:I99)","v":0}]
[null,"HC100",70,"Has the application form with relevant information been submitted to the HC100 (DOC 100)",{"$f":"'SECTION for the Organiser'!E29","v":"neen"},null,null,null,{"$f":"IF(E101=\"neen\",1,IF(E101=\"niet van toepassing\",\"nihil\",0))","v":1}]
[null,null,71,"Have the site maps been submitted to the HC100",{"$f":"'SECTION for the Organiser'!E30","v":"To be completed by FPS"},null,null,null,{"$f":"IF(E102=\"neen\",1,IF(E102=\"niet van toepassing\",\"nihil\",IF(E102=\"onbekend\",1,0)))","v":0}]
[]
[null,"OPERATION ORDER",72,"Should an operation order be drawn up for the emergency medical service ",{"$f":"'SECTION for the Organiser'!E32","v":"ja"},null,null,null,{"$f":"IF(E104=\"ja\",1,IF(E104=\"onbekend\",1,0))","v":1}]
[]
[]
[]
[]
[]
[]
[]
[]
[]
[]
[]
[]
[]
[]
[]
[]
[null,null,null,null,"Completion check - section 1",{"$f":"waardeluik1.1","v":1}]
[null,null,null,null,"Completion check - section 2",{"$f":"waardeluik2.2","v":1}]
[null,null,null,null,"Completion check - section 4",{"$f":"Waardeluik4.4","v":{"$error":"#REF!"}}]
[null,null,null,null,"Completion check - section 3",{"$f":"IF(AND($E$42<>\"Maak uw keuze\",$E$43<>\"Maak uw keuze\",$E$44<>\"Maak uw keuze\",$E$45<>\"Maak uw keuze\",$E$46<>\"Maak uw keuze\",$E$47<>\"Maak uw keuze\",$E$48<>\"Maak uw keuze\",$E$53<>\"Maak uw keuze\",$E$54<>\"Maak uw keuze\",$E$55<>\"Maak uw keuze\",E9<>\"\",E12<>\"\"),0,1)","v":1}]
[null,null,null,null,"control value for expected resources/facilities 0 ==> print or e-mail",{"$f":"IF(waardeluik1.1=1,\"?\",IF(waardeluik3.3=1,\"?\",IF(SECTION5!F13>0.5,1,0)))","v":"?"}]
[null,null,null,null,"print no Nurse... = OK",{"$f":"SUM(F121:F125)","v":{"$error":"#REF!"}}]

{"sheet":"SECTION 4 - PUBLIC HEALTH RISKS","index":4,"n_rows":52,"n_cols":13,"rows_kept":52,"cut":false,"hidden":false,"merged":[[18,0,21,0],[6,3,6,4],[7,3,7,4],[10,3,10,4],[20,3,20,4],[11,3,11,4],[17,3,17,4],[18,3,18,4],[12,3,12,4],[8,3,8,4],[9,3,9,4],[50,7,50,13],[25,3,25,8],[23,3,23,7],[13,3,13,4],[14,3,14,4],[24,3,24,8],[21,3,21,4],[16,3,16,4],[19,3,19,4],[16,11,16,12],[15,3,15,4],[1,9,1,11],[0,0,0,4],[1,0,1,4],[3,0,3,4],[15,11,15,12],[7,11,7,12],[6,0,17,0],[5,3,5,4],[5,6,5,7]]}
["NOTE : WHY THESE QUESTIONS"]
["These questions are points of attention.  The intention is not to check which arrangements the organiser has and has not made; the aim is to bring these potential problems to the organiser’s attention.  Questions answered affirmatively will not be revisited in the advisory report; questions answered negatively will automatically be revisited in the advisory report"]
[]
["SECTION 4 A : OTHER SHORT-TERM HEALTH EFFECTS \nOTHER THAN THE EFFECTS OF (URGENT) MEDICAL ASSISTANCE PROVIDED"]
[]
["CLASS","NO","QUESTION","ANSWER",null,null,null,null,null,"RESULT",null,{"$f":"'SECTION 1 - APPLICATION'!M3","v":"VERSION 25 - 2011 02 18"}]
["IMPORTANT POINTS OF ATTENTION AT THE EVENT",58,"Sunburn can lead to avoidable problems for people attending the event.  Have the organisers asked visitors to bring sunglasses, hats and sun cream through the media and/or other channels (e.g. tickets/information packages) in the run-up to the event","Please select",null,null,null,null,null,{"$f":"IF(D7=\"neen\",1,0)","v":0}]
[null,59,"Various people attending the event sometimes exhibit clearly negative behaviour.  Are there procedures in place for the organiser and/or emergency services to counteract any negative behaviour","Please select",null,null,null,null,null,{"$f":"IF(D8=\"neen\",1,0)","v":0},null,"CELL COLOUR CODE"]
[null,60,"Will the organiser provide a free water distribution system when the outside temperature exceeds 27°C","Please select",null,null,null,null,null,0,null,"LIGHT YELLOW","FILL IN CELL OR SELECT FROM A LIST"]
[null,61,"Will there be sufficient toilets at the event (fixed and, if necessary, portable toilets).  ","Please select",null,null,null,null,null,0,null,"BRIGHT YELLOW : ","SUGGESTED ANSWER (MAY BE MODIFIED)"]
[null,62,"Has an individual been appointed as the person responsible for monitoring the hygiene and cleanliness of the, who can mobilise people to clean the toilets (and the surrounding area) if necessary","Please select",null,null,null,null,null,0,null,"LIGHT BLUE : ","AUTO-CALCULATED CELL"]
[null,63,"Will dustbins be easily recognisable for the people attending the event (if possible highlighted with icons)","Please select",null,null,null,null,null,0,null,"LIGHT GREEN : ","FURTHER EXPLANATION OF OPTIONS"]
[null,64,"Has the organiser set up a separate waste collection system for the event","Please select",null,null,null,null,null,0,null,"WHITE : ","CELL NAME/SUBJECT"]
[null,65,"If waste cannot be collected at or near the event, have arrangements been made for a municipal department responsible to collect the waste produced by the event","Please select",null,null,null,null,null,0,null,"ORANGE :"," NAME AND/OR INSTRUCTIONS"]
[null,66,"Is there a cold chain in place for food stalls (refrigerators/freezers and the required power supply)","Please select",null,null,null,null,null,0,null,"BRIGHT GREEN","COMPLETED CELL = OK"]
[null,67,"Has attention been paid to fire prevention and fire safety measures at stalls that prepare and serve hot drinks and/or food (e.g. fire extinguishers, fire blankets, certificates, etc.)","Please select",null,null,null,null,null,0,null,"SPECIFIC INSTRUCTIONS CAN BE FOUND IN THE FIELD COMMENTS"]
[null,68,"Were people with chronic illnesses who bought tickets to the event advised to bring and carry with them/ hand in to the aid station a medical card, so that the appropriate assistance can be provided in the event of medical problems","Please select",null,null,null,null,null,0]
[null,69,"During ticket sales, is a flyer distributed with information about prevention, drawn up with the help of the medical section","Please select",null,null,null,null,null,0]
["ADDITIONAL POINTS OF ATTENTION REGARDING THE CAMPSITE",70,"Does the drinking water system on the campsite(s) have a sufficient flow rate to cope with the massive demand for water for the entire duration of the event",{"$f":"IF('SECTION 1 - APPLICATION'!G$22=\"neen\",\"Niet van toepassing\",\"Maak uw keuze\")","v":"Maak uw keuze"},null,null,null,null,null,0]
[null,71,"Will there be sufficient toilets on the campsite (fixed and, if necessary, portable toilets).  ",{"$f":"IF('SECTION 1 - APPLICATION'!G$22=\"neen\",\"Niet van toepassing\",\"Maak uw keuze\")","v":"Maak uw keuze"},null,null,null,null,null,0]
[null,72,"Will there be sufficient showers on the campsite ",{"$f":"IF('SECTION 1 - APPLICATION'!G$22=\"neen\",\"Niet van toepassing\",\"Maak uw keuze\")","v":"Maak uw keuze"},null,null,null,null,null,0]
[null,73,"Will it be possible to store and label chronic medication brought to the aid station by persons with a chronic condition",{"$f":"IF('SECTION 1 - APPLICATION'!G$22=\"neen\",\"Niet van toepassing\",\"Maak uw keuze\")","v":"Maak uw keuze"},null,null,null,null,null,0]
[]
[null,null,null,"Overall score",null,null,null,null,null,{"$f":"SUM(J7:J22)","v":0}]
[null,null,null,"“Event” score",null,null,null,null,null,{"$f":"SUM(J7:J18)","v":0}]
[null,null,null,"“Campsite” score",null,null,null,null,null,{"$f":"SUM(J19:J22)","v":0}]
[]
[null,null,"PRACTICAL CONSEQUENECS"]
[null,1,"Are additional measures at or near the event required",{"$f":"IF(J25=0,\"NEEN\",\"JA\")","v":"NEEN"}]
[null,2,"Are additional measures at or near the campsite required",{"$f":"IF(J26=0,\"NEEN\",\"JA\")","v":"NEEN"}]
[]
[null,3,"IS A TEMPORARY MEDICAL CENTRE NEEDED",{"$f":"SECTION5!E16","v":{"$error":"#VALUE!"}}]
[]
[]
[]
[]
[]
[]
[]
[]
[]
[]
[]
[]
[]
[]
[]
[null,null,"Completion check - section 1",{"$f":"waardeluik1.1","v":1}]
[null,null,"Completion check - section 2",{"$f":"waardeluik2.2","v":1}]
[null,null,"Completion check - section 4",{"$f":"IF(AND($D$7<>\"Maak uw keuze\",$D$8<>\"Maak uw keuze\",$D$9<>\"Maak uw keuze\",$D$10<>\"Maak uw keuze\",$D$11<>\"Maak uw keuze\",$D$12<>\"Maak uw keuze\",$D$13<>\"Maak uw keuze\",$D$14<>\"Maak uw keuze\",$D$15<>\"Maak uw keuze\",$D$16<>\"Maak uw keuze\",$D$17<>\"Maak uw keuze\",$D$18<>\"Maak uw keuze\",$D$19<>\"Maak uw keuze\",$D$20<>\"Maak uw keuze\",$D$21<>\"Maak uw keuze\",$D$22<>\"Maak uw keuze\"),0,1)","v":1}]
[null,null,"control value Temporary Medical Centre: YES(1) / NO(0)",{"$f":"IF(D32=\"NEEN\",0,1)","v":{"$error":"#VALUE!"}},null,null,null,"cell D32 = control via section 5 : BLS and other aid worker controls"]
[null,null,"print temporary medical centre NO = OK",{"$f":"SUM(D48:D51)","v":{"$error":"#VALUE!"}}]

{"sheet":"Addresses Ambulance","index":5,"n_rows":245,"n_cols":5,"rows_kept":245,"cut":false,"hidden":false,"merged":[[1,0,1,4],[0,0,0,4]]}
["Terug naar invulluik"]
["Ziekenwagendiensten"]
["POST-NUMMER","GEMEENTE","DIENST","ADRES","PROVINCIE"]
[2018,"ANTWERPEN","SINT VINCENTIUS","SINT VINCENTIUSSTRAAT 20","ANTWERPEN"]
[2020,"ANTWERPEN","ZNA campus MIDDELHEIM","LINDENDREEF 1","ANTWERPEN"]
[2030,"ANTWERPEN","Brandweer ANTWERPEN","NOORDERLAAN 69","ANTWERPEN"]
[2030,"ANTWERPEN 3","SIWHA/ Rode Kruis HAVEN","MULHOUSENLAAN NOORD 1/3","ANTWERPEN"]
[2060,"ANTWERPEN","ZNA campus STUIVENBERG","LANGE BEELDEKENSSTRAAT 267","ANTWERPEN"]
[2100,"DEURNE","MONICA Deurne","FLORENT PAUWELSTRAAT 1","ANTWERPEN"]
[2110,"WIJNEGEM","AMBUMED","BIJKHOEVELAAN 8","ANTWERPEN"]
[2170,"MERKSEM","ZNA campus JAN PALFIJN","LANGE BREMSTRAAT 70","ANTWERPEN"]
[2200,"HERENTALS","SINT ELISABETH HERENTALS","NEDERRIJ 133","ANTWERPEN"]
[2220,"HEIST OP DEN BERG","Brandweer HEIST-OP-DEN-BERG","BROEKSTRAAT 46A","ANTWERPEN"]
[2235,"HOUTVENNE","HULSHOUTSE AMBULANCEDIENST","VENNEKENSSTRAAT 103 A","ANTWERPEN"]
[2260,"WESTERLO","Brandweer WESTERLO","VISMARKT 24","ANTWERPEN"]
[2300,"TURNHOUT","Brandweer TURNHOUT","PARKLAAN 12","ANTWERPEN"]
[2300,"TURNHOUT","SINT ELISABETH TURNHOUT","RUBENSSTRAAT 160","ANTWERPEN"]
[2320,"HOOGSTRATEN","Brandweer HOOGSTRATEN","ST LENAERTSEWEG 38","ANTWERPEN"]
[2340,"BEERSE","AMBULANCEDIENST  BEERSE","IJZERSTRAAT 3","ANTWERPEN"]
[2370,"ARENDONK","Rode Kruis ARENDONK","HOVESTRAAT 44","ANTWERPEN"]
[2390,"MALLE","AZ ST.-JOZEF ","OUDE LIERSEBAAN 4","ANTWERPEN"]
[2390,"MALLE","Brandweer MALLE","TURNHOUTSEBAAN 8","ANTWERPEN"]
[2400,"MOL","Brandweer MOL + PIT","AMBACHTSTRAAT 18","ANTWERPEN"]
[2440,"GEEL","Brandweer GEEL","STELENSEWEG 92","ANTWERPEN"]
[2440,"GEEL","SINT DIMPNA GEEL","J.B. STESSENSTRAAT 2","ANTWERPEN"]
[2490,"BALEN","Brandweer BALEN","VREDELAAN 1","ANTWERPEN"]
[2500,"LIER","KLINIEK H.-HART","MECHELSESTRAAT 24","ANTWERPEN"]
[2570,"DUFFEL","ST.-MAARTEN Campus Duffel","ROOIENBERG 25","ANTWERPEN"]
[2590,"BERLAAR","Rode Kruis BERLAAR","PASTORIJSTRAAT 25","ANTWERPEN"]
[2610,"WILRIJK","ST. AUGUSTINUS","OOSTERVELDLAAN 24","ANTWERPEN"]
[2650,"EDEGEM","UNIVERSITAIR Ziekenhuis ANTWERPEN","WILRIJKSTRAAT 10","ANTWERPEN"]
[2800,"MECHELEN","ST.-MAARTEN Campus Mechelen","LEOPOLDSTRAAT 2","ANTWERPEN"]
[2820,"BONHEIDEN","IMELDA Ziekenhuis","IMELDALAAN 9","ANTWERPEN"]
[2830,"WILLEBROEK","Brandweer WILLEBROEK","BRANDWEERPLEIN 1","ANTWERPEN"]
[2840,"RUMST","PIT HEILIGE FAMILIE RUMST","S HERENBAAN 172","ANTWERPEN"]
[2850,"BOOM","Brandweer BOOM","DIJLEWEG 5","ANTWERPEN"]
[2880,"BORNEM","Brandweer BORNEM","LINDESTRAAT 136","ANTWERPEN"]
[2910,"ESSEN","Gemeente  ESSEN","HEUVELPLEIN 23","ANTWERPEN"]
[2920,"KALMTHOUT","Gemeente KALMTHOUT","KERKENEIND 17","ANTWERPEN"]
[2930,"BRASSCHAAT","KLINA","AUGUSTIJNSLEI 100","ANTWERPEN"]
[2990,"WUUSTWEZEL","Brandweer WUUSTWEZEL","ALOIS BLOMMAERTSTRAAT 3","ANTWERPEN"]
[1301,"WAVRE","Service d'Incendie BIERGES-WAVRE","CHAUSSEE DE NAMUR 115","BRABANT WALLON"]
[1340,"LA HULPE","ADM. COMM. LA HULPE","RUE E. SOYER 7","BRABANT WALLON"]
[1370,"JODOIGNE","SC PERSON AID","RUE DE LA MALADRERIE 100","BRABANT WALLON"]
[1400,"NIVELLES","Service d'Incendie NIVELLES","CHAUSSEE DE CHARLEROI 46C","BRABANT WALLON"]
[1420,"BRAINE L'ALLEUD","Service d'Incendie BRAINE-L'ALLEUD","CHAUSSEE DE MONT ST JEAN 120","BRABANT WALLON"]
[1480,"TUBIZE","Service d'Incendie TUBIZE","RUE FERRER 91","BRABANT WALLON"]
[6041,"GOSSELIES","ASBL BHN AMBU","Faubourg de BRUXELLES 154","BRABANT WALLON"]
[1000,"BRUXELLES","BRUXELLES SI - Brandweer Brussel + PIT ST PIERRE","AVENUE DE L' HELIPORT 11-15","BRUXELLES"]
[1120,"BRUXELLES","HMRA","RUE BRUYN 1","BRUXELLES"]
[1180,"BRUXELLES","CROIX ROUGE DE BELGIQUE","Rue de STALLE 96","BRUXELLES"]
[6000,"CHARLEROI","Service d'Incendie CHARLEROI","RUE DE L'ANCRE 3","HAINAUT"]
[6031,"MONCEAU-SUR-SAMBRE","AMBULANCE COCCINELLE ","RUE DE GOUTROUX 81","HAINAUT"]
[6040,"JUMET","Poste Avancé DE CHARLEROI","ZONING INDUSTRIEL 1ERE RUE","HAINAUT"]
[6060,"GILLY","S.A.P.G","RUE HORACE PIERARD 84","HAINAUT"]
[6060,"GILLY","PIT Gilly","Rue de la Duchère, 6","HAINAUT"]
[6110,"MONTIGNIES-LE-TILLEUL","C.H.U. de Charleroi; site Hôpital A. VESALE","ROUTE DE GOZEE 706","HAINAUT"]
[6460,"CHIMAY","Service d'Incendie CHIMAY","RUE FISCHBACH 21","HAINAUT"]
[6500,"BEAUMONT","Service d'Incendie BEAUMONT","CHAUSSEE  DE MONS 17","HAINAUT"]
[6530,"THUIN","Service d'Incendie THUIN","ROUTE DE BIESME, 16","HAINAUT"]
[7033,"CUESMES","Service d'Incendie MONS","Rue des Sandrinettes 29","HAINAUT"]
[7060,"SOIGNIES","Service d'Incendie SOIGNIES","RUE DE LA SENNE 72","HAINAUT"]
[7090,"BRAINE-LE-COMTE","Service d'Incendie BRAINE-LE-COMTE","RUE DES ETATS-UNIS 9","HAINAUT"]
[7100,"LA LOUVIERE","Service d'Incendie LA LOUVIERE","BLD ROI BAUDOIN,1","HAINAUT"]
[7133,"BUVRINNES","AMBULANCES LAUTE","RUE DE MERBES, 220","HAINAUT"]
[7331,"BAUDOUR","Croix Rouge ST-GHISLAIN","RUE LOUIS CATY, 136","HAINAUT"]
[7331,"BAUDOUR","Pit Baudour","RUE LOUIS CATY, 136","HAINAUT"]
[7380,"QUIEVRAIN","Service d'Incendie QUIEVRAIN","PLACE DU BALLODROME","HAINAUT"]
[7500,"TOURNAI","Service d'Incendie TOURNAI","Avenue du Maire, 89","HAINAUT"]
[7600,"PERUWELZ","Service d'Incendie PERUWELZ","RUE CASTIAU 13","HAINAUT"]
[7700,"MOUSCRON","Service d'Incendie MOUSCRON","AVENUE DU BARRY 9","HAINAUT"]
[7780,"COMINES","Service d'Incendie COMINES","RUE DE LA PROCESSION 47","HAINAUT"]
[7800,"ATH","S.I. ATH","BD DU CHÂTEAU 19","HAINAUT"]
[7850,"ENGHIEN","Service d'Incendie ENGHIEN","REMPART ST CHRISTOPHE 37","HAINAUT"]
[7860,"LESSINES","Service d'Incendie LESSINES","RUE DES 4 FILS AYMONT 52B","HAINAUT"]
[7900,"LEUZE-EN-HAINAUT","Service d'Incendie LEUZE-EN-HAINAUT","TOUR ST PIERRE 13","HAINAUT"]
[7970,"BELOEIL","Service d'Incendie BELOEIL","RUE DE LA FORGETTE,2","HAINAUT"]
[4000,"LIEGE","Croix Rouge LIEGE","RUE DARCHIS 6","LIEGE"]
[4020,"LIEGE","I.I.L.E.","RUE RANSONNET 5","LIEGE"]
[4030,"GRIVEGNEE","Ambulances J. Courtois","RUE BELVAUX 51","LIEGE"]
[4040,"HERSTAL","PIT Andre Renard HERSTAL","RUE ANDRE RENARD 1","LIEGE"]
[4040,"HERSTAL","Croix Rouge HERSTAL","RUE DERRIERE LES RHIEUX 57","LIEGE"]
[4100,"SERAING","NEW SPEED AMBULANCE","BOULEVARD PASTEUR 2","LIEGE"]
[4100,"SERAING","SPEED AMBULANCE","BOULEVARD PASTEUR 2","LIEGE"]
[4180,"HAMOIR","Service d'Incendie HAMOIR","RUE DE TOHOGNE 10","LIEGE"]
[4280,"HANNUT","Service d'Incendie HANNUT","RUE JOSEPH WAUTERS 65","LIEGE"]
[4300,"WAREMME","Service d'Incendie WAREMME","RUE ERNEST MALVOZ 30","LIEGE"]
[4367,"CRISNEE","Protection Civile KEMEXHE","RUE VINCENT BONNECHERE 30","LIEGE"]
[4500,"HUY","Service d'Incendie HUY","RUE DE LA MAIRIE 30","LIEGE"]
[4630,"SOUMAGNE","AMBULANCES MOREAU","AV. DE LA RESISTANCE 405","LIEGE"]
[4650,"BATTICE-HERVE","Service d'Incendie BATTICE-HERVE","AVENUE DE WANDRE 47B","LIEGE"]
[4671,"BLEGNY","Croix Rouge BLEGNY","RUE DE BARCHON 62","LIEGE"]
[4700,"EUPEN","Service d'Incendie EUPEN","KEHRWEG 9D","LIEGE"]
[4728,"HERGENRATH","Croix Rouge KELMIS","ALTENBERGSTRASSE 108","LIEGE"]
[4760,"BÜLLINGEN","Croix Rouge BUTGENBACH","MALMYERSTRASSE 5","LIEGE"]
[4780,"SAINT-VITH","Service d'Incendie ST-VITH","ALTE AACHENERSTRASSE 23","LIEGE"]
[4800,"VERVIERS","Service d'Incendie VERVIERS","RUE SIMON LOBET 36","LIEGE"]
[4840,"WELKENRAEDT","Service d'Incendie WELKENRAEDT","RUE MITOYENNE 229","LIEGE"]
[4880,"SPA","C.P.A.S. SPA","RUE HANSTER 8","LIEGE"]
[4920,"AYWAILLE","Service d'Incendie AYWAILLE","PLAYE, 50","LIEGE"]
[4960,"MALMEDY","Service d'Incendie MALMEDY + PIT","RUE JOSEPH WERSON 1","LIEGE"]
[4970,"STAVELOT","Service d'Incendie STAVELOT","ROUTE DE MALMEDY 17","LIEGE"]
[3500,"HASSELT","AZ VIRGA JESSE","STADSOMVAART 11","LIMBURG"]
[3500,"HASSELT","Brandweer HASSELT","WILLEKENSMOLENSTRAAT 120","LIMBURG"]
[3550,"HEUSDEN-ZOLDER","Brandweer HEUSDEN/ZOLDER","KOERSELSEBAAN 59","LIMBURG"]
[3600,"GENK","Brandweer GENK","C-MINE 50","LIMBURG"]
[3600,"GENK","Ziekenhuis OOST-LIMBURG Campus St.-Jan (PIT)","SCHIEPSE BOS 6","LIMBURG"]
[3620,"LANAKEN","AMBI-CARE","KIEZELWEG 43","LIMBURG"]
[3630,"MAASMECHELEN","LIFECARE AMBULANCE MAASLAND VZW","GENIESKENSSTRAAT 58/1","LIMBURG"]
[3680,"MAASEIK","Brandweer MAASEIK","GREMELSLOWEG, 7A","LIMBURG"]
[3700,"TONGEREN","AZ VESALIUS Campus ST.-JACOBS ","HAZELEREIK  51","LIMBURG"]
[3740,"BILZEN","AZ VESALIUS CAMPUS ST.-MARTINUS","HOSPITAALSTRAAT 15","LIMBURG"]
[3800,"ST.-TRUIDEN","REGIONAAL Ziekenhuis ST.-TRUDO","DIESTERSTEENWEG  100","LIMBURG"]
[3920,"LOMMEL","Brandweer LOMMEL","NORBERT NEECKXLAAN 52","LIMBURG"]
[3930,"HAMONT-ACHEL","Rode Kruis HAMONT-ACHEL","STEENSTRAAT 5","LIMBURG"]
[3960,"BREE","Brandweer BREE","BOCHOLTERSTRAAT 15","LIMBURG"]
[3970,"LEOPOLDSBURG","Brandweer LEOPOLDSBURG","KONINGIN M.L. LAAN  23","LIMBURG"]
[6600,"BASTOGNE","Service d'Incendie BASTOGNE","ROUTE DE WILTZ 11","Luxembourg"]
[6660,"HOUFFALIZE","Service d'Incendie HOUFFALIZE","RUE DE LAROCHE 49","Luxembourg"]
[6690,"VIELSAM","Service d'Incendie VIELSAM","RUE DE LA CLINIQUE ","Luxembourg"]
[6700,"ARLON","Service d'incendie d' ARLON","DREVE DES ESPAGNOLS 101","Luxembourg"]
[6740,"ETALLE","Service d'Incendie ETALLE","RUE SAINT-ANTOINE 193","Luxembourg"]
[6760,"VIRTON","Service d'Incendie VIRTON","RUE DU MOULIN 20","Luxembourg"]
[6762,"SAINT-MARD","PIT VIRTON CSL","RUE D'HARNONCOURT","Luxembourg"]
[6791,"ATHUS","Service d'Incendie AUBANGE","RUE DES METALLURGISTES 9","Luxembourg"]
[6800,"LIBRAMONT","Croix Rouge LIBRAMONT","RUE DU MIDI 5","Luxembourg"]
[6820,"FLORENVILLE","ADM. COM. FLORENVILLE","RUE DE CARIGNAN ","Luxembourg"]
[6832,"CURFOZ","Service d'Incendie BOUILLON","RUE DES 4 MOINEAUX","Luxembourg"]
[6840,"NEUFCHATEAU","Service d'Incendie NEUFCHATEAU","CHAUSSEE D'ARLON 50","Luxembourg"]
[6850,"PALISEUL","Service d'Incendie PALISEUL","RUE DE LA STATION 52","Luxembourg"]
[6870,"SAINT-HUBERT","Service d'Incendie SAINT-HUBERT","ROUTE DE POIX 23","Luxembourg"]
[6880,"BERTRIX","Service d'Incendie BERTRIX","RUE DE BLEZY 34","Luxembourg"]
[6900,"MARCHE","Service d'Incendie MARCHE","PARC INDUSTRIEL 12","Luxembourg"]
[6980,"LA ROCHE","ASBL AMU LA ROCHE","RUE BEAUSAINT 2","Luxembourg"]
[6997,"EREZEE","Service d'Incendie EREZEE","RUE DES COMBATTANTS 25","Luxembourg"]
[5000,"NAMUR","Service d'Incendie NAMUR","RUE DES BOURGEOIS 12","NAMUR"]
[5000,"NAMUR","Service d'Incendie NAMUR","RUE DES BOURGEOIS 12","NAMUR"]
[5000,"NAMUR / SAINT SERVAIS","Croix Rouge NAMUR","RUE DE L'INDUSTRIE 124","NAMUR"]
[5030,"SAUVENIERE","Service d'Incendie GEMBLOUX","RUE DU STORDOIR 50","NAMUR"]
[5060,"SAMBREVILLE","Service d'Incendie TAMINES","RUE DES VIGNES","NAMUR"]
[5070,"FOSSES-LA-VILLE","Service d'Incendie FOSSES-LA-VILLE","RUE SAINTE-BRIGIDE 15","NAMUR"]
[5300,"ANDENNE","Service d'Incendie ANDENNE","AV REINE ELISABETH 150","NAMUR"]
[5310,"EGHEZEE","Service d'Incendie. EGHEZEE","CHAUSSEE DE NAMUR 28","NAMUR"]
[5500,"DINANT","Service d'Incendie DINANT","ROUTE DE PHILIPPEVILLE 236","NAMUR"]
[5550,"VRESSE ","Service d'Incendie de ALLE SUR SEMOIS ( VRESSE )","RUE DE LA RINGE, 129","NAMUR"]
[5570,"BEAURAING","Service d'Incendie BEAURAING","RUE DU LUXEMBOURG 26","NAMUR"]
[5575,"SART-CUSTINNE","SRI Gedinne","RUE DE LA MORIE 5","NAMUR"]
[5580,"ROCHEFORT","Service d'Incendie ROCHEFORT","RUE SOUS LE CHATEAU 1","NAMUR"]
[5590,"CINEY","SRI Ciney ","RUE WALTER SŒUR,50","NAMUR"]
[5600,"PHILIPPEVILLE","Croix Rouge PHILIPPEVILLE","BOULEVARD DE L'ENSEIGNEMENT 1","NAMUR"]
[5620,"FLORENNES","Service d'Incendie FLORENNES","RUE DU VIVEROUX 2A","NAMUR"]
[5660,"COUVIN","Service d'Incendie COUVIN","TIENNE DE BOUSSU 1","NAMUR"]
[9000,"GENT","Brandweer GENT","ROGGESTRAAT 70","OOST-VLAANDEREN"]
[9000,"GENT","UZ GENT","DE PINTELAAN 185","OOST-VLAANDEREN"]
[9050,"GENTBRUGGE","LIFE CARE","STEENVOORDELAAN 32","OOST-VLAANDEREN"]
[9060,"ZELZATE","Brandweer ZELZATE","CHALMETLAAN 56","OOST-VLAANDEREN"]
[9090,"MELLE","Brandweer MELLE","WEZENSTRAAT 44","OOST-VLAANDEREN"]
[9100,"SINT NIKLAAS","AZ NIKOLAAS","MOERLANDSTRAAT 1","OOST-VLAANDEREN"]
[9120,"BEVEREN","Brandweer BEVEREN","GRAVENDREEF 5","OOST-VLAANDEREN"]
[9140,"TEMSE","BRANDWEER TEMSE ","KASTEELSTRAAT 16","OOST-VLAANDEREN"]
[9140,"TEMSE","Brandweer TEMSE","KASTEELSTRAAT 16","OOST-VLAANDEREN"]
[9150,"KRUIBEKE","Brandweer KRUIBEKE","O. L. VROUW PLEIN 19","OOST-VLAANDEREN"]
[9160,"LOKEREN","AZ LOKEREN + PIT","LEPELSTRAAT 4","OOST-VLAANDEREN"]
[9170,"ST GILLIS WAAS","Brandweer ST.-GILLIS WAAS","BLOKSTRAAT 103","OOST-VLAANDEREN"]
[9200,"DENDERMONDE","Brandweer DENDERMONDE","OUDE VEST 150","OOST-VLAANDEREN"]
[9200,"DENDERMONDE","AMB DENDERMONDE","VLASSENHOUT 14","OOST-VLAANDEREN"]
[9220,"HAMME","Brandweer HAMME","DAMSTRAAT 64","OOST-VLAANDEREN"]
[9230,"WETTEREN","Brandweer WETTEREN","ZUIDERDIJK 1","OOST-VLAANDEREN"]
[9240,"ZELE","Brandweer ZELE ","POSTSTRAAT 2","OOST-VLAANDEREN"]
[9260,"WICHELEN","Brandweer WICHELEN","MARGOTE 110","OOST-VLAANDEREN"]
[9300,"AALST","Brandweer AALST","VRIJHEIDSSTRAAT 55","OOST-VLAANDEREN"]
[9400,"NINOVE","Brandweer NINOVE","DESIRE DE BODTKAAI 3","OOST-VLAANDEREN"]
[9500,"GERAARDSBERGEN","Brandweer GERAARDSBERGEN","ZAKKAAI 33","OOST-VLAANDEREN"]
[9550,"HERZELE","Brandweer HERZELE","MERGELLAAN 75","OOST-VLAANDEREN"]
[9600,"RONSE","ZVB RONSE","GLORIEUXLAAN, 55","OOST-VLAANDEREN"]
[9620,"ZOTTEGEM","ST.-ELISABETH Ziekenhuis","GODVEERDEGEMSTRAAT 59","OOST-VLAANDEREN"]
[9660,"BRAKEL","VITA BRAKEL","KERKHOFSTR.46","OOST-VLAANDEREN"]
[9700,"OUDENAARDE","AZ OUDENAARDE","SINT WALBURGASTRAAT 9","OOST-VLAANDEREN"]
[9770,"KRUISHOUTEM","Brandweer KRUISHOUTEM","WARANDESTRAAT 2","OOST-VLAANDEREN"]
[9800,"DEINZE","AZ ST VINCENTIUS ","SCHUTTERIJSTRAAT 34","OOST-VLAANDEREN"]
[9820,"MERELBEKE","Brandweer MERELBEKE","KLOOSTERSTRAAT 28","OOST-VLAANDEREN"]
[9880,"AALTER","Brandweer AALTER","ST GEROLFLAAN 10 A","OOST-VLAANDEREN"]
[9890,"SEMMERZAKE","SNOECK","BERGGATSTRAAT 29","OOST-VLAANDEREN"]
[9900,"EEKLO","Brandweer EEKLO","GENTSESTEENWEG 2","OOST-VLAANDEREN"]
[9960,"ASSENEDE","Brandweer ASSENEDE","MOLENSTRAAT 54A","OOST-VLAANDEREN"]
[9990,"MALDEGEM","Brandweer MALDEGEM","BLOEMDAELLAAN 4","OOST-VLAANDEREN"]
[1090,"JETTE","UZ BRUSSEL (JETTE) et PIT","Laarbeeklaan 101","VLAAMS BRABANT"]
[1120,"Nederoverheembeek.","HMB (NOH)MILITAIREN","Bruynstraat","VLAAMS BRABANT"]
[1500,"HALLE","Brandweer HALLE","J. POSSOZPLEIN  46","VLAAMS BRABANT"]
[1500,"HALLE","Rode Kruis HALLE","BRUSSELSESTEEWEG 183","VLAAMS BRABANT"]
[1500,"Ziekenhuislaan 100 Halle","PIT HALLE","Cfr.256 + 255 + 214","VLAAMS BRABANT"]
[1730,"ASSE","Brandweer ASSE","ARSENAALSTRAAT  49","VLAAMS BRABANT"]
[1750,"LENNIK","Brandweer LENNIK","K. KEYMOLENSTRAAT  4","VLAAMS BRABANT"]
[1770,"LIEDEKERKE","Civiele Bescherming LIEDEKERKE","KAPELLEBAAN  30","VLAAMS BRABANT"]
[1800,"VILVOORDE","Brandweer VILVOORDE","RONDEWEG  32","VLAAMS BRABANT"]
[1840,"LONDERZEEL","Brandweer LONDERZEEL","MECHELSESTRAAT  72","VLAAMS BRABANT"]
[1930,"ZAVENTEM","Brandweer ZAVENTEM","LEUVENSESTEENWEG 550","VLAAMS BRABANT"]
[1930,"Zaventem Airport","BRUSSELS AIRPORT","MEDA","VLAAMS BRABANT"]
[3000,"HERESTRAAT  49","PIT LEUVEN   ","Cfr. 202 + 263 + 265 + 262 + 208","VLAAMS BRABANT"]
[3000,"LEUVEN","Un .Ziek. GASTHUISBERG LEUVEN","HERESTRAAT  49","VLAAMS BRABANT"]
[3000,"LEUVEN","RODE KRUIS LEUVEN","Herestraat 49 / BTC","VLAAMS BRABANT"]
[3000,"LEUVEN","VLAAMSE KRUIS LEUVEN","Tervuursesteenweg 23","VLAAMS BRABANT"]
[3000,"LEUVEN","Heilig Hartziekenhuis Leuven","Naamsestraat 105","VLAAMS BRABANT"]
[3000,"LEUVEN","RODE KRUIS VLAAMS BRABANT","Herestraat 49 / BTC","VLAAMS BRABANT"]
[3001,"LEUVEN","Brandweer LEUVEN","TERBANKSTRAAT 20","VLAAMS BRABANT"]
[3090,"OVERIJSE","Brandweer OVERIJSE","SCHAVEI  77","VLAAMS BRABANT"]
[3200,"AARSCHOT","ZIEKENWAGENDIENST AARSCHOT VZW","LANGDORPSESTEENWEG 129","VLAAMS BRABANT"]
[3290,"DIEST","ALGEMEEN Ziekenhuis DIEST","MICHEL THEYSSTRAAT  18","VLAAMS BRABANT"]
[3300,"TIENEN","Brandweer TIENEN","DIESTSESTEENWEG  360","VLAAMS BRABANT"]
[3400,"LANDEN","Brandweer LANDEN","ATTENHOVENSTRAAT  47","VLAAMS BRABANT"]
[8000,"BRUGGE","Brandweer BRUGGE","PATHOEKEWEG 215","WEST-VLAANDEREN"]
[8000,"BRUGGE","PIT AZ St. Jan AV Brugge","Ruddershove 10","WEST-VLAANDEREN"]
[8020,"OOSTKAMP","Brandweer OOSTKAMP","SIEMENSLAAN 8","WEST-VLAANDEREN"]
[8020,"OOSTKAMP","Brandweer RUDDERVOORDE","SIEMENSLAAN 8","WEST-VLAANDEREN"]
[8300,"KNOKKE-HEIST","Brandweer KNOKKE-HEIST","BrandweerSTRAAT 7","WEST-VLAANDEREN"]
[8310,"BRUGGE","PIT AZ St. Lucas Brugge","Sint Lucaslaan 29","WEST-VLAANDEREN"]
[8370,"BLANKENBERGE","Brandweer BLANKENBERGE","VREDELAAN 27","WEST-VLAANDEREN"]
[8400,"OOSTENDE","Brandweer OOSTENDE","VELODROOMSTRAAT 13","WEST-VLAANDEREN"]
[8470,"GISTEL","Brandweer GISTEL","NEERHOFSTRAAT 16 B","WEST-VLAANDEREN"]
[8500,"KORTRIJK","Brandweer KORTRIJK","DOORNIKSESTEENWEG 214 A","WEST-VLAANDEREN"]
[8530,"HARELBEKE","Brandweer HARELBEKE","TWEEBRUGGENSTRAAT 2","WEST-VLAANDEREN"]
[8540,"DEERLIJK","Brandweer DEERLIJK","HOOGSTRAAT 109 A","WEST-VLAANDEREN"]
[8560,"WEVELGEM-MOORSELE","Brandweer WEVELGEM-MOORSELE","BURG. PAREITLAAN 12A","WEST-VLAANDEREN"]
[8580,"AVELGEM","Rode Kruis AVELGEM","TOEKOMSTSTRAAT 46","WEST-VLAANDEREN"]
[8600,"DIKSMUIDE","Brandweer DIKSMUIDE","HEERNISSE 4","WEST-VLAANDEREN"]
[8620,"NIEUWPOORT","Brandweer NIEUWPOORT","GASSTRAAT 37","WEST-VLAANDEREN"]
[8630,"VEURNE","Brandweer VEURNE","OUDE VESTINGSTRAAT 30","WEST-VLAANDEREN"]
[8650,"HOUTHULST","Brandweer HOUTHULST","KOUTERSTRAAT 46","WEST-VLAANDEREN"]
[8660,"DE PANNE","Brandweer DE PANNE","LOOSKAAI 14","WEST-VLAANDEREN"]
[8670,"KOKSIJDE","Brandweer KOKSIJDE","Zeelaan 37","WEST-VLAANDEREN"]
[8700,"TIELT","Rode Kruis TIELT","DRIESSTRAAT 90","WEST-VLAANDEREN"]
[8790,"WAREGEM","KLINIEK O.L.V. VAN LOURDES WAREGEM","VIJFSEWEG 150","WEST-VLAANDEREN"]
[8790,"WAREGEM","Brandweer WAREGEM","WEVERSTRAAT 11","WEST-VLAANDEREN"]
[8800,"ROESELARE","Brandweer ROESELARE","KONING ALBERT 1 LAAN, 4","WEST-VLAANDEREN"]
[8810,"LICHTERVELDE","Brandweer LICHTERVELDE","BEVERENSTRAAT 16","WEST-VLAANDEREN"]
[8820,"TORHOUT","Brandweer TORHOUT","AARTRIJKSESTRAAT 13","WEST-VLAANDEREN"]
[8860,"LENDELEDE","Rode Kruis LENDELEDE","IZEGEMSESTRAAT 17","WEST-VLAANDEREN"]
[8870,"IZEGEM","Brandweer IZEGEM","DIRK MARTENSLAAN 15","WEST-VLAANDEREN"]
[8880,"LEDEGEM","Brandweer LEDEGEM","KLOOSTERSTRAAT 4","WEST-VLAANDEREN"]
[8900,"IEPER","Regionaal ZH JAN YPERMAN","BRIEKESTRAAT 12","WEST-VLAANDEREN"]
[8930,"MENEN","Brandweer MENEN","LEOPOLDSPLEIN 12","WEST-VLAANDEREN"]
[8940,"WERVIK","Brandweer WERVIK","GASSTRAAT 2","WEST-VLAANDEREN"]
[8950,"HEUVELLAND","BW Nieuwkerke-Heuvelland","DRANOUTERSTR.9","WEST-VLAANDEREN"]
[8970,"POPERINGE","BW POPERINGE","DOORNSTRAAT 45","WEST-VLAANDEREN"]
[8972,"ROESBRUGGE","Brandweer ROESBRUGGE-HARINGE-POPERINGE","HARINGESTRAAT 26 A","WEST-VLAANDEREN"]

{"sheet":"Addresses MUG services","index":6,"n_rows":100,"n_cols":5,"rows_kept":100,"cut":false,"hidden":false,"merged":[[0,0,0,4],[1,0,1,4]]}
["Terug naar invulluik"]
["MUG diensten"]
["POST-NUMMER","GEMEENTE","DIENST","ADRES","PROVINCIE"]
[2170,"MERKSEM","ZNA Campus JAN PALFIJN","Lange Bremstraat 70, 2170 Merksem","ANTWERPEN"]
[2060,"ANTWERPEN","ZNA Campus STUIVENBERG","Lange Beeldekensstraat 267, 2060 Antwerpen","ANTWERPEN"]
[2020,"ANTWERPEN","ZNA Campus MIDDELHEIM","Lindendreef 1, 2020 Antwerpen","ANTWERPEN"]
[2100,"DEURNE","MONICA","Florent Pauwelsstraat 1, 2100 Deurne","ANTWERPEN"]
[2018,"ANTWERPEN","AZ ST.VINCENTIUS","St.Vincentiusstraat 20, 2018 Antwerpen","ANTWERPEN"]
[2820,"BONHEIDEN","IMELDA ZKH","Imeldalaan 9, 2820 Bonheiden","ANTWERPEN"]
[2930,"BRASSCHAAT","KLINA","Augusteinslei 100, 2930 Brasschaat","ANTWERPEN"]
[2650,"EDEGEM","UNIVERSITAIR ZH A'PEN","Wilrijkstraat 10, 2650 Edegem","ANTWERPEN"]
[2440,"GEEL","ST. DIMPNA GEEL","JB Stessenstraat 2, 2440 Geel","ANTWERPEN"]
[2200,"HERENTALS","ST. ELISABETH","Nederrij 133, 2200 Herentals","ANTWERPEN"]
[2500,"LIER","HEILIG HART","Mechelsestraat 24, 2500 Lier","ANTWERPEN"]
[2390,"MALLE","ST. JOZEF","Oude Liersebaan 4, 2390 Malle","ANTWERPEN"]
[2800,"MECHELEN","ST.-MAARTEN MECHELEN","Leopoldstraat 2, 2800 Mechelen","ANTWERPEN"]
[2300,"TURNHOUT","ST. ELISABETH","Rubensstraat 160, 2300 Turnhout","ANTWERPEN"]
[2610,"WILRIJK","ST. AUGUSTINUS","Oosterveldlaan 24, 2610 Wilrijk","ANTWERPEN"]
["9000","GENT","UNIVERSITAIR ZIEKENHUIS GENT","DE PINTELAAN 185","Oost-Vlaanderen"]
["9000","GENT","ALGEMEEN ZIEKENHUIS ST. LUCAS ","GROENEBRIEL 1","Oost-Vlaanderen"]
["9000","GENT","ALGEMEEN ZIEKENHUIS JAN PALFIJN","H. DUNANTLAAN 5","Oost-Vlaanderen"]
["9100","SINT-NIKLAAS","ALGEMEEN ZIEKENHUIS NIKOLAAS","MOERLANDSTRAAT 1","Oost-Vlaanderen"]
["9200","DENDERMONDE","ALGEMEEN ZIEKENHUIS ST. BLASIUS","KROONVELDLAAN 50","Oost-Vlaanderen"]
["9300","AALST","ONZE LIEVE VROUWZIEKENHUIS","MOORSELBAAN 164","Oost-Vlaanderen"]
["9300","AALST","ALGEMEEN STEDELIJK ZIEKENHUIS","MERESTRAAT 80","Oost-Vlaanderen"]
["9600","RONSE","A. Z. ZUSTERS VAN BARMHARTIGHEID","GLORIEUXLAAN 55","Oost-Vlaanderen"]
["9620","ZOTTEGEM","ALGEMEEN ZIEKENHUIS ST.-ELISABETH","GODVEERDEGEMSTRAAT 69","Oost-Vlaanderen"]
["9700","OUDENAARDE","ALGEMEEN ZIEKENHUIS OUDENAARDE","MINDERBROEDERSSTRAAT 3","Oost-Vlaanderen"]
["9900","EEKLO","ALGEMEEN ZIEKENHUIS ALMA","MOEIE 18","Oost-Vlaanderen"]
["8000","BRUGGE","ALGEMEEN ZIEKENHUIS ST.-JAN ","RUDDERSHOVE 10","West-Vlaanderen"]
["8300","KNOKKE-HEIST","GEZONDHEIDSZORG OOSTKUST","GRAAF JANSDIJK 162","West-Vlaanderen"]
["8370","BLANKENBERGE","GEZONDHEIDSZORG OOSTKUST","DR. VERHAEGHESTRAAT 1","West-Vlaanderen"]
["8400","OOSTENDE","HENRY SERRUYSZIEKENHUIS A.V.","KAIROSTRAAT 84","West-Vlaanderen"]
["8400","OOSTENDE","ALGEMEEN ZIEKENHUIS DAMIAAN","NIEUWPOORTSTEENWEG 57","West-Vlaanderen"]
["8500","KORTRIJK","ALGEMEEN ZIEKENHUIS GROENINGE","LOOFSTRAAT 43","West-Vlaanderen"]
["8630","VEURNE","ALGEMEEN ZIEKENHUIS ST. AUGUSTINUS","IEPERSE STEENWEG 100","West-Vlaanderen"]
["8700","TIELT","ST.-ANDRIESZIEKENHUIS","KROMMEWALSTRAAT 11","West-Vlaanderen"]
["8800","ROESELARE","STEDELIJK ZIEKENHUIS","BRUGSESTEENWEG 90","West-Vlaanderen"]
["8800","ROESELARE","H.- HARTZIEKENHUIS ROESELARE - MENEN","WILGENSTRAAT 2","West-Vlaanderen"]
["8820","TORHOUT","ST.-REMBERTZIEKENHUIS V.Z.W.","ST.-REMBERTLAAN 21","West-Vlaanderen"]
["8900","IEPER","JAN YPERMAN ZIEKENHUIS Vzw","BRIEKESTRAAT 12","West-Vlaanderen"]
["8930","MENEN","H.- HARTZIEKENHUIS ROESELARE - MENEN","RIJSELSTRAAT 71-73","West-Vlaanderen"]
["3800","SINT-TRUIDEN","REGIONAAL ZIEKENHUIS ST.-TRUDO","DIESTERSTEENWEG 100","Limburg"]
["3500","HASSELT","A.Z. SALVATOR - ST. URSULA","SALVATORSTRAAT 20","Limburg"]
["3500","HASSELT","VIRGA JESSE ZIEKENHUIS","STADSOMVAART 11","Limburg"]
["3550","HEUSDEN","ST. FRANCISKUSZIEKENHUIS","PASTOOR PAQUAYLAAN 129","Limburg"]
["3600","GENK","ZIEKENHUIS OOST - LIMBURG","SCHIEPSE BOS 6","Limburg"]
["3680","MAASEIK","ZIEKENHUIS MAAS EN KEMPEN ","MGR. KONINGSSTRAAT 10","Limburg"]
["3700","TONGEREN","ALGEMEEN ZIEKENHUIS VESALIUS","HAZELEREIK 51","Limburg"]
["3900","OVERPELT","MARIAZIEKENHUIS NOORD-LIMBURG","MAESENSVELD 1","Limburg"]
["3000","LEUVEN","UNIVERSITAIRE ZIEKENHUIZEN K.U.L.","HERESTRAAT 49","Vlaams-Brabant"]
["1800","VILVOORDE","ALGEMEEN ZIEKENHUIS JAN PORTAELS","GENDARMERIESTRAAT 65","Vlaams-Brabant"]
["3300","TIENEN","REGIONAAL ZIEKENHUIS HEILIG HART Vzw","KLINIEKSTRAAT 45","Vlaams-Brabant"]
["3290","DIEST","ALGEMEEN ZIEKENHUIS DIEST","MICHEL THEYSSTRAAT 18","Vlaams-Brabant"]
["1030","BRUXELLES--3","CENTRE HOSPITALIER UNIVERSITAIRE BRUGMANN","RUE DU FOYER SCHAERBEEKOIS 36","Brussel-Bruxelles"]
["1070","BRUXELLES--7","CLINIQUES UNIVERSITAIRES DE BRUXELLES HOPITAL ERASME","ROUTE DE LENNIK 808","Brussel-Bruxelles"]
["1000","BRUXELLES--1","CENTRE HOSPITALIER UNIV. ST.-PIERRE","RUE HAUTE 322","Brussel-Bruxelles"]
["1200","BRUXELLES-20","CLINIQUES UNIVERSITAIRES ST.-LUC","AVENUE HIPPOCRATE 10","Brussel-Bruxelles"]
["1180","BRUSSEL-18","EUROPAZIEKENHUIZEN - CLINIQUES DE L'EUROPE","DE FRELAAN 206","Brussel-Bruxelles"]
["1090","BRUSSEL--9","UNIVERSITAIR ZIEKENHUIS BRUSSEL","LAARBEEKLAAN 101","Brussel-Bruxelles"]
["1340","OTTIGNIES","CLINIQUE SAINT PIERRE","AVENUE REINE FABIOLA 9","Brabant Wallon"]
["1400","NIVELLES","CENTRE HOSPITALIER TUBIZE - NIVELLES","RUE SAMIETTE 1","Brabant Wallon"]
["1420","BRAINE-L'ALLEUD","C.H. INTERREGIONAL EDITH CAVELL","RUE WAYEZ 35","Brabant Wallon"]
["1480","TUBIZE","CENTRE HOSPITALIER TUBIZE - NIVELLES","AVENUE DE SCANDIANO 8","Brabant Wallon"]
["7000","MONS","C.H. UNIVERSITAIRE AMBROISE PARE","BOULEVARD KENNEDY 2","Hainaut"]
["7000","MONS","C.H.R. CLIN.ST. JOSEPH - HOPITAL DE WARQUIGNIES","AV. B. DE CONSTANTINOPLE 5","Hainaut"]
["6041","GOSSELIES","CLINIQUE NOTRE-DAME DE GRACE","CHAUSSEE DE NIVELLES 212","Hainaut"]
["7100","LA LOUVIERE","CENTRE HOSPITALIER UNIVERSITAIRE TIVOLI","AVENUE MAX BUSET 34","Hainaut"]
["7100","HAINE-SAINT-PAUL","CENTRE HOSPITALIER DE JOLIMONT - LOBBES","RUE FERRER 159","Hainaut"]
["7331","BAUDOUR","RHMS - CLINIQUE LOUIS CATY","RUE LOUIS CATY 136","Hainaut"]
["7300","BOUSSU","C.H.R. CLINIQUE ST. JOSEPH - HÔPITAL DE WARQUIGNIES","RUE DES CHAUFOURS 27","Hainaut"]
["7301","HORNU","CENTRE HOSPITALIER HORNU - FRAMERIES","ROUTE DE MONS 63","Hainaut"]
["7500","TOURNAI","CENTRE HOSPITALIER DE WALLONIE PICARDE - Chwapi","AVENUE DELMEE 9","Hainaut"]
["7500","TOURNAI","CENTRE HOSPITALIER DE WALLONIE PICARDE - Chwapi","BOULEVARD DU ROI ALBERT 1","Hainaut"]
["7500","TOURNAI","CENTRE HOSPITALIER DE WALLONIE PICARDE - Chwapi","CHAUSSEE ST.-AMAND 80","Hainaut"]
["7700","MOUSCRON","CENTRE HOSPITALIER DE MOUSCRON","RUE DU COUVENT 39","Hainaut"]
["7800","ATH","RHMS - HOPITAL DE LA MADELEINE","RUE MARIA THOMEE 1","Hainaut"]
["6000","CHARLEROI","GRAND HOPITAL DE CHARLEROI","GRAND'RUE 3","Hainaut"]
["6000","CHARLEROI","C.H.U. DE CHARLEROI","BOULEVARD PAUL JANSON 92","Hainaut"]
["7060","SOIGNIES","CENTRE HOSPITALIER DE LA HAUTE SENNE","CHAUSSEE DE BRAINE 47","Hainaut"]
["6460","CHIMAY","CENTRE DE SANTE DES FAGNES","BOULEVARD LOUISE 18","Hainaut"]
["6110","MONTIGNY-LE-TILLEUL","C. H. UNIVERSITAIRE ANDRE VESALE","RUE DE GOZEE 706","Hainaut"]
["5000","NAMUR","CENTRE HOSPITALIER REGIONAL","AVENUE ALBERT 1IER 185","Namur"]
["5060","AUVELAIS","CENTRE HOSPITALIER REGIONAL DU VAL DE SAMBRE","RUE CHERE VOIE 75","Namur"]
["5500","DINANT","CENTRE HOSPITALIER DE DINANT","RUE ST.-JACQUES 501","Namur"]
["5530","MONT-GODINNE","CLINIQUES UNIVERSITAIRES (U.C.L.)","AVENUE DR. G.THERASSE 1","Namen"]
["4000","LIEGE","CENTRE HOSPITALIER REGIONAL DE LA CITADELLE","BOULEV. DU 12E DE LIGNE 1","Liège"]
["4032","CHENEE","CENTRE HOSPITALIER UNIVERSITAIRE DE LIEGE","RUE DE GAILLARMONT 600","Liège"]
["4100","SERAING","CENTRE HOSPITALIER DU BOIS DE L'ABBAYE ET DE HESBAYE","RUE LAPLACE 40","Liège"]
["4420","MONTEGNEE","CLINIQUES SAINT-JOSEPH","RUE ST.-NICOLAS 447","Liège"]
["4300","WAREMME","CENTRE HOSPITALIER DU BOIS DE L'ABBAYE ET DE HESBAYE","AVENUE DE LA RESISTANCE 2","Liège"]
["4300","WAREMME","CLINIQUES SAINT-JOSEPH","RUE DE SELYS LONGCHAMPS 4","Liège"]
["4500","HUY","CENTRE HOSPITALIER REGIONAL DE HUY","RUE TROIS PONTS 2","Liège"]
["4700","EUPEN","ST.-NIKOLAUS HOSPITAL","HUFENGASSE 4-8","Lüttich"]
["4780","SANKT-VITH","KLINIK ST.-JOSEF","KLOSTERSTRASSE 9","Lüttich"]
["4800","VERVIERS","CENTRE HOSPITALIER  PELTZER - LA TOURELLE","RUE DU PARC 29","Liège"]
["6600","BASTOGNE","INTERCOM. HOSP. FAMENNE ARDENNE CONDROZ (I.F.A.C.)","RUE DE HOUFFALIZE 1","Luxembourg"]
["6700","ARLON","CLINIQUES DU SUD-LUXEMBOURG","RUE DES DEPORTES 137","Luxembourg"]
["6800","LIBRAMONT","CENTRE HOSPITALIER DE L'ARDENNE","AVENUE DE HOUFFALIZE 35","Luxembourg"]
["6900","MARCHE-EN-FAMENNE","INTERCOM. HOSP. FAMENNE ARDENNE CONDROZ (I.F.A.C.)","RUE DU VIVIER 21","Luxembourg"]

{"sheet":"Addresses Emergency services","index":7,"n_rows":116,"n_cols":5,"rows_kept":116,"cut":false,"hidden":false,"merged":[[0,0,0,4],[1,0,1,4]]}
["Terug naar invulluik"]
["Spoedgevallendiensten"]
["POST-NUMMER","GEMEENTE","DIENST","ADRES","PROVINCIE"]
[2170,"MERKSEM","ZNA Campus JAN PALFIJN","Lange Bremstraat 70, 2170 Merksem","ANTWERPEN"]
[2060,"ANTWERPEN","ZNA Campus STUIVENBERG","Lange Beeldekensstraat 267, 2060 Antwerpen","ANTWERPEN"]
[2020,"ANTWERPEN","ZNA Campus MIDDELHEIM","Lindendreef 1, 2020 Antwerpen","ANTWERPEN"]
[2140,"BORGERHOUT","ZNA Campus ERASMUS","Lt. Lippenslaan 55, 2140 Borgerhout","ANTWERPEN"]
[2100,"DUERNE","MONICA","Florent Pauwelsstraat 1, 2100 Deurne","ANTWERPEN"]
[2018,"ANTWERPEN","AZ ST.VINCENTIUS","St.Vincentiusstraat 20, 2018 Antwerpen","ANTWERPEN"]
[2820,"BONHEIDEN","IMELDA ZKH","Imeldalaan 9, 2820 Bonheiden","ANTWERPEN"]
[2880,"BORNEM","ST. JOZEF","Kasteelstraat 23, 2880 Bornem","ANTWERPEN"]
[2930,"BRASSCHAAT","KLINA","Augusteinslei 100, 2930 Brasschaat","ANTWERPEN"]
[2570,"DUFFEL","ST. MAARTEN DUFFEL","Rooienberg 25, 2570 Duffel","ANTWERPEN"]
[2650,"EDEGEM","UNIVERSITAIR ZH A'PEN","Wilrijkstraat 10, 2650 Edegem","ANTWERPEN"]
[2440,"GEEL","ST. DIMPNA GEEL","JB Stessenstraat 2, 2440 Geel","ANTWERPEN"]
[2200,"HERENTALS","ST. ELISABETH","Nederrij 133, 2200 Herentals","ANTWERPEN"]
[2500,"LIER","HEILIG HART","Mechelsestraat 24, 2500 Lier","ANTWERPEN"]
[2390,"MALLE","ST. JOZEF","Oude Liersebaan 4, 2390 Malle","ANTWERPEN"]
[2800,"MECHELEN","ST.-MAARTEN MECHELEN","Leopoldstraat 2, 2800 Mechelen","ANTWERPEN"]
[2400,"MOL","HEILIG HART","Gasthuisstraat 1, 2400 Mol","ANTWERPEN"]
[2840,"RUMST","HEILIGE FAMILIE","S Heerenbaan 172, 2840 Rumst ","ANTWERPEN"]
[2300,"TURNHOUT","ST. ELISABETH","Rubensstraat 160, 2300 Turnhout","ANTWERPEN"]
[2300,"TURNHOUT","ST. JOZEF","Steenweg op Merksplas 44, 2300 Turnhout","ANTWERPEN"]
[2610,"WILRIJK","ST. AUGUSTINUS","Oosterveldlaan 24, 2610 Wilrijk","ANTWERPEN"]
[1000,"BRUSSEL--1","KLINIEK ST.-JAN - CLINIQUE ST. JEAN","KRUIDTUINLAAN 32","Brussel"]
["1000","BRUXELLES--1","CENTRE HOSPITALIER UNIV. ST.PIERRE","RUE HAUTE 322","Brussel"]
["1020","BRUXELLES--2","CENTRE HOSPITALIER UNIVERSITAIRE BRUGMANN","PLACE A. VAN GEHUCHTEN 4","Brussel"]
["1020","BRUXELLES--2","HOPITAL UNIV. DES ENFANTS REINE FABIOLA","AVENUE J.J. CROCQ 15","Brussel"]
["1040","BRUXELLES--4","HOPITAUX IRIS SUD - IRIS ZIEKENHUIZEN ZUID","RUE BARON LAMBERT 38","Brussel"]
["1070","BRUXELLES--7","CLINIQUES UNIV. DE BRUXELLES - HOPITAL ERASME","ROUTE DE LENNIK 808","Brussel"]
["1070","BRUXELLES--7","CLINIQUE STE. ANNE - ST. REMI","BOULEVARD J. GRAINDOR 66","Brussel"]
["1090","BRUSSEL--9","UNIVERSITAIR ZIEKENHUIS BRUSSEL","LAARBEEKLAAN 101","Brussel"]
["1180","BRUSSEL-18","EUROPAZIEKENHUIZEN - CLINIQUES DE L'EUROPE","DE FRELAAN 206","Brussel"]
["1180","BRUXELLES-18","C.H. INTERREGIONAL EDITH CAVELL (CHIREC)","RUE EDITH CAVELL 32","Brussel"]
["1200","BRUXELLES-20","CLINIQUES UNIVERSITAIRES ST.LUC","AVENUE HIPPOCRATE 10","Brussel"]
["1500","HALLE","REGIONAAL ZIEKENHUIS ST.-MARIA","ZIEKENHUISLAAN 100","Vlaams Brabant"]
["1800","VILVOORDE","ALGEMEEN ZIEKENHUIS JAN PORTAELS","GENDARMERIESTRAAT 65","Vlaams Brabant"]
["3000","LEUVEN","REGIONAAL ZIEKENHUIS H.-HART","NAAMSESTRAAT 105","Vlaams Brabant"]
["3000","LEUVEN","UNIVERSITAIRE ZIEKENHUIZEN K.U.L.","HERESTRAAT 49","Vlaams Brabant"]
["3290","DIEST","ALGEMEEN ZIEKENHUIS DIEST","MICHEL THEYSSTRAAT 18","Vlaams Brabant"]
["3300","TIENEN","REGIONAAL ZIEKENHUIS HEILIG HART TIENEN","KLINIEKSTRAAT 45","Vlaams Brabant"]
["3500","HASSELT","ALGEMEEN ZIEKENHUIS SALVATOR - ST. URSULA","SALVATORSTRAAT 20","Limburg"]
["3500","HASSELT","VIRGA JESSE ZIEKENHUIS","STADSOMVAART 11","Limburg"]
["3550","HEUSDEN","ST. FRANCISKUSZIEKENHUIS","PASTOOR PAQUAYLAAN 129","Limburg"]
["3600","GENK","ZIEKENHUIS OOST - LIMBURG","SCHIEPSE BOS 6","Limburg"]
["3680","MAASEIK","ZIEKENHUIS MAAS EN KEMPEN","MGR. KONINGSSTRAAT 10","Limburg"]
["3700","TONGEREN","ALGEMEEN ZIEKENHUIS VESALIUS","HAZELEREIK 51","Limburg"]
["3800","SINT-TRUIDEN","REGIONAAL ZIEKENHUIS ST.-TRUDO","DIESTERSTEENWEG 100","Limburg"]
["3900","OVERPELT","MARIAZIEKENHUIS NOORD LIMBURG","MAESENSVELD 1","Limburg"]
["8000","BRUGGE","A.Z. ST.-JAN BRUGGE-OOSTENDE","RUDDERSHOVE 10","West-Vlaanderen"]
["8300","KNOKKE-HEIST","GEZONDHEIDSZORG OOSTKUST","GRAAF JANSDIJK 162","West-Vlaanderen"]
["8310","BRUGGE","ALGEMEEN ZIEKENHUIS ST.LUCAS","ST.-LUCASLAAN 29","West-Vlaanderen"]
["8400","OOSTENDE","ALGEMEEN ZIEKENHUIS DAMIAAN","GOUWELOZESTRAAT 100","West-Vlaanderen"]
["8500","KORTRIJK","ALGEMEEN ZIEKENHUIS GROENINGE","REEPKAAI 4","West-Vlaanderen"]
["8630","VEURNE","ALGEMEEN ZIEKENHUIS ST. AUGUSTINUS","IEPERSE STEENWEG 100","West-Vlaanderen"]
["8700","TIELT","ST.-ANDRIESZIEKENHUIS","KROMMEWALSTRAAT 11","West-Vlaanderen"]
["8790","WAREGEM","O.L.V. VAN LOURDES ZIEKENHUIS WAREGEM","VIJFSEWEG 150","West-Vlaanderen"]
["8800","ROESELARE","STEDELIJK ZIEKENHUIS","BRUGSESTEENWEG 90","West-Vlaanderen"]
["8800","ROESELARE","H.- HARTZIEKENHUIS ROESELARE - MENEN VZW","WILGENSTRAAT 2","West-Vlaanderen"]
["8820","TORHOUT","ST.-REMBERTZIEKENHUIS","ST.-REMBERTLAAN 21","West-Vlaanderen"]
["8870","IZEGEM","ST.-JOZEFSKLINIEK V.Z.W.","ROESELAARSESTRAAT 47","West-Vlaanderen"]
["8900","IEPER","JAN YPERMAN ZIEKENHUIS","BRIEKESTRAAT 12","West-Vlaanderen"]
["9000","GENT","ALGEMEEN ZIEKENHUIS MARIA MIDDELARES","KORTRIJKSESTEENWEG 1026","Oost-Vlaanderen"]
["9000","GENT","ALGEMEEN ZIEKENHUIS ST. LUCAS","GROENEBRIEL 1","Oost-Vlaanderen"]
["9000","GENT","UNIVERSITAIR ZIEKENHUIS GENT","DE PINTELAAN 185","Oost-Vlaanderen"]
["9000","GENT","ALGEMEEN ZIEKENHUIS JAN PALFIJN","H. DUNANTLAAN 5","Oost-Vlaanderen"]
["9100","SINT-NIKLAAS","ALGEMEEN ZIEKENHUIS NIKOLAAS","MOERLANDSTRAAT 1","Oost-Vlaanderen"]
["9160","LOKEREN","ALGEMEEN ZIEKENHUIS LOKEREN","LEPELSTRAAT 2","Oost-Vlaanderen"]
["9200","DENDERMONDE","ALGEMEEN ZIEKENHUIS ST. BLASIUS","KROONVELDLAAN 50","Oost-Vlaanderen"]
["9300","AALST","ONZE LIEVE VROUW ZIEKENHUIS","MOORSELBAAN 164","Oost-Vlaanderen"]
["9300","AALST","ALGEMEEN STEDELIJK ZIEKENHUIS","MERESTRAAT 80","Oost-Vlaanderen"]
["9600","RONSE","A.Z. ZUSTERS VAN BARMHARTIGHEID","GLORIEUXLAAN 55","Oost-Vlaanderen"]
["9620","ZOTTEGEM","ALGEMEEN ZIEKENHUIS ST. ELISABETH","GODVEERDEGEMSTRAAT 69","Oost-Vlaanderen"]
["9700","OUDENAARDE","ALGEMEEN ZIEKENHUIS OUDENAARDE","MINDERBROEDERSSTRAAT 3","Oost-Vlaanderen"]
["9800","DEINZE","ST. VINCENTIUSZIEKENHUIS","SCHUTTERIJSTRAAT 34","Oost-Vlaanderen"]
["9900","EEKLO","ALGEMEEN ZIEKENHUIS ALMA","MOEIE 18","Oost-Vlaanderen"]
["1340","OTTIGNIES","CLINIQUE SAINT PIERRE","AVENUE REINE FABIOLA 9","Brabant Wallon"]
["1400","NIVELLES","CENTRE HOSPITALIER TUBIZE -  NIVELLES","RUE SAMIETTE 1","Brabant Wallon"]
["4000","LIEGE","CENTRE HOSPITALIER REGIONAL DE LA CITADELLE","BOULEV. DU 12E DE LIGNE 1","Luik"]
["4000","LIEGE-1","CLINIQUES SAINT-JOSEPH","RUE DE HESBAYE 75","Luik"]
["4000","LIEGE-1 (SART-TILMAN)","CENTRE HOSPITALIER UNIVERSITAIRE DE LIEGE","DOMAINE UNIV. BAT. B35","Luik"]
["4000","ROCOURT","C.H. ST. VINCENT & ST. ELISABETH","RUE FRANCOIS LEFEBVRE 207","Luik"]
["4040","HERSTAL","CLINIQUE ANDRE RENARD","RUE A. RENARD 1","Luik"]
["4100","SERAING","C.H. DU BOIS DE L'ABBAYE ET DE HESBAYE","RUE LAPLACE 40","Luik"]
["4500","HUY","CENTRE HOSPITALIER REGIONAL DE HUY","RUE TROIS PONTS 2","Luik"]
["4700","EUPEN","ST.-NIKOLAUS HOSPITAL EUPEN","HUFENGASSE 4-8","Luik"]
["4780","SANKT-VITH","KLINIK ST.-JOSEF","KLOSTERSTRASSE 9","Luik"]
["4800","VERVIERS","CENTRE HOSPITALIER PELTZER - LA TOURELLE","RUE DU PARC 29","Luik"]
["4960","MALMEDY","CLINIQUE REINE ASTRID","RUE DEVANT LES RELIGIEUSES","Luik"]
["5000","NAMUR","CENTRE HOSPITALIER REGIONAL DE NAMUR","AVENUE ALBERT Ier 185","Namen"]
["5000","NAMUR","CLINIQUE ET MATERNITE STE.-ELISABETH","PLACE LOUISE GODIN 15","Namen"]
["5004","BOUGE","CLINIQUE ST.-LUC","RUE SAINT LUC 8","Namen"]
["5060","AUVELAIS","C.H. REGIONAL DU VAL DE SAMBRE","RUE CHERE VOIE 75","Namen"]
["5500","DINANT","CENTRE HOSPITALIER DE DINANT","RUE ST.-JACQUES 501","Namen"]
["5530","MONT-GODINNE","CLINIQUES UNIVERSITAIRES U.C.L. DE MONT-GODINNE","AVENUE DR. G. THERASSE 1","Namen"]
["6000","CHARLEROI","GRAND HOPITAL DE CHARLEROI","GRAND'RUE 3","Henegouwen"]
["6000","CHARLEROI","CENTRE HOSPITALIER UNIV. DE CHARLEROI","BOULEVARD PAUL JANSON 92","Henegouwen"]
["6041","GOSSELIES","CLINIQUE NOTRE-DAME DE GRACE","CHAUSSEE DE NIVELLES 212","Henegouwen"]
["6060","GILLY","GRAND HOPITAL DE CHARLEROI","RUE DE LA DUCHERE 6","Henegouwen"]
["6110","MONTIGNY-LE-TILLEUL","CENTRE HOSPITALIER UNIVERSITAIRE A. VESALE","RUE DE GOZEE 706","Henegouwen"]
["6460","CHIMAY","CENTRE DE SANTE DES FAGNES","BOULEVARD LOUISE 18","Henegouwen"]
["6700","ARLON","CLINIQUES DU SUD-Luxembourg","RUE DES DEPORTES 137","Luxemburg"]
["6800","LIBRAMONT","CENTRE HOSPITALIER DE L'ARDENNE","AVENUE DE HOUFFALIZE 35","Luxemburg"]
["6900","MARCHE-EN-FAMENNE","INTERCOM. HOSP. FAMENNE ARDENNE CONDROZ","RUE DU VIVIER 21","Luxemburg"]
["7000","MONS","CENTRE HOSPITALIER UNIVERSITAIRE A. PARE","BOULEVARD KENNEDY 2","Henegouwen"]
["7000","MONS","C.H.R. CLIN. ST.-JOSEPH - HÔPITAL DE WARQUIGNIES","AV. B. DE CONSTANTINOPLE 5","Henegouwen"]
["7060","SOIGNIES","CENTRE HOSPITALIER REGIONAL DE LA HAUTE SENNE","CHAUSSEE DE BRAINE 49","Henegouwen"]
["7100","HAINE-SAINT-PAUL","CENTRE HOSPITALIER JOLIMONT - LOBBES","RUE FERRER 159","Henegouwen"]
["7100","LA-LOUVIERE","CENTRE HOSPITALIER UNIVERSITAIRE TIVOLI","AVENUE MAX BUSET 34","Henegouwen"]
["7301","HORNU","CENTRE HOSPITALIER HORNU - FRAMERIES","ROUTE DE MONS 63","Henegouwen"]
["7331","BAUDOUR","RHMS - CLINIQUE LOUIS CATY","RUE LOUIS CATY 136","Henegouwen"]
["7500","TOURNAI","CENTRE HOSPITALIER DE WALLONIE PICARDE - Chwapi","AVENUE DELMEE 9","Henegouwen"]
["7500","TOURNAI","CENTRE HOSPITALIER DE WALLONIE PICARDE - Chwapi","BOULEVARD LALAING 39","Henegouwen"]
[7500,"TOURNAI","CENTRE HOSPITALIER DE WALLONIE PICARDE - Chwapi","CHAUSSEE ST.-AMAND 80","Henegouwen"]
["7700","MOUSCRON","CENTRE HOSPITALIER DE MOUSCRON","RUE DU COUVENT 39","Henegouwen"]
["7800","ATH","RHMS - HOPITAL DE LA MADELEINE","RUE MARIA THOMEE 1","Henegouwen"]

{"sheet":"Toilets","index":8,"n_rows":1,"n_cols":1,"rows_kept":1,"cut":false,"hidden":false,"merged":[[0,0,0,6]]}
["Back to section"]

{"sheet":"SECTION for the Organiser","index":9,"n_rows":32,"n_cols":5,"rows_kept":32,"cut":false,"hidden":false,"merged":[[1,1,1,4],[3,1,3,4],[5,1,5,4],[28,1,29,1],[4,1,4,2],[9,2,9,4],[16,1,17,1],[8,1,8,3],[7,1,7,4],[11,6,11,10],[12,6,12,10],[6,1,6,2],[27,1,27,4],[11,2,11,4],[12,2,12,4],[20,1,21,1],[23,1,25,1]]}
[]
[null,"Further processing"]
[]
[null,"You have completed all the necessary steps."]
[]
[null,"This document must be saved and e-mailed to the disaster officer of the municipality where the event is to take place."]
[]
[null,"E-mail the saved file to :"]
[null,"Disaster officer’s e-mail address :"]
[]
[]
[null,"Surname and first name"]
[null,"Phone number"]
[]
[]
[]
[null,"TRACK RECORD",37,"Organiser’s reputation with safety services","To be completed by the disaster officer"]
[null,null,38,"Event age","To be completed by the disaster officer"]
[null,"MEDICAL LITERATURE",40,"Problems to be expected according to medical literature (+ specify which literature)","To be completed by the disaster officer"]
[]
[null,"MULTIDISCIPLINARY COORDINATION",52,"Previous negative experience with this type of event","To be completed by the disaster officer"]
[null,null,54,"Specific legislation concerning this type of event","To be completed by the disaster officer"]
[]
[null,"PREPAREDNESS ",67,"Does the communication model comply with DGH requirements","To be completed by the disaster officer"]
[null,null,68,"Has the 100 switchboard been notified?","To be completed by the disaster officer"]
[null,null,69,"Is the Medical Intervention Plan compliant with the Royal Decree of 16/02/06","To be completed by the disaster officer"]
[]
[null,"The questions below will be answered by the FPS."]
[null,"HC100",70,"Has the application form with relevant information been submitted to the HC100 (DOC 100)",{"$f":"IF(SECTION5!F13<>0,\"neen\",\"ja\")","v":"neen"}]
[null,null,71,"Have the site maps been submitted to the HC100","To be completed by FPS"]
[]
[null,"OPERATION ORDER",72,"Should an operation order be drawn up for the emergency medical service ",{"$f":"IF(SECTION5!F13<>0,\"ja\",\"NEEN\")","v":"ja"}]

{"sheet":"Care provided","index":10,"n_rows":25,"n_cols":9,"rows_kept":25,"cut":false,"hidden":false,"merged":[[23,0,23,8],[24,0,24,8],[10,0,10,4],[18,4,18,8],[19,4,19,8],[17,0,17,8],[11,0,11,3],[12,0,12,3],[20,0,20,3],[21,0,21,3],[0,0,0,9],[2,0,2,1],[2,2,2,3],[1,7,1,9],[2,6,2,9],[1,0,1,6],[20,4,20,8],[21,4,21,8],[14,6,14,9],[15,6,15,9],[18,0,18,3],[14,0,14,3],[15,0,15,3],[3,8,3,9],[19,0,19,3],[5,5,5,9],[8,8,8,9],[3,0,3,1],[3,2,3,4],[3,5,3,7],[7,8,7,9],[8,0,8,3],[5,0,5,4],[13,0,13,3],[6,0,6,3],[7,0,7,3]]}
["This tab must be completed after the event."]
[{"$f":"'SECTION 1 - APPLICATION'!$G$5","v":"VERSION 25"},null,null,null,null,null,null,{"$f":"'SECTION 1 - APPLICATION'!$G$4","v":"00/00/0000"}]
["Event address",null,{"$f":"'SECTION 1 - APPLICATION'!$G$7","v":0},null,"in",{"$f":"'SECTION 1 - APPLICATION'!$J$7","v":0},{"$f":"'SECTION 1 - APPLICATION'!$G$3","v":0}]
["Type of event",null,{"$f":"'SECTION 1 - APPLICATION'!$G$6","v":"ALL OTHER EVENTS"},null,null,"Duration of the event in hours",null,null,{"$f":"'SECTION 1 - APPLICATION'!$K$8","v":false}]
[]
["VISITORS",null,null,null,null,"Remark : the model was based on the following estimate"]
["Number of visitors attending the event",null,null,null,null,null,{"$f":"'SECTION 1 - APPLICATION'!I14","v":0}]
["Average number of hours spent at the event ",null,null,null,null,null,{"$f":"'SECTION3 + SCORE'!E53*'SECTION3 + SCORE'!E51/100","v":0},{"$f":"'SECTION3 + SCORE'!E53","v":0},"% of total event duration "]
["Maximum simultaneous attendance",null,null,null,null,null,{"$f":"'SECTION 1 - APPLICATION'!I20*SUM('SECTION 1 - APPLICATION'!I14:I18)/100","v":0},{"$f":"'SECTION 1 - APPLICATION'!I20","v":100},"% of attendance"]
[]
["MEDICAL WORKLOAD"]
["Number of people with a potentially life-threatening condition (T1)",null,null,null,null,null,{"$f":"'part 1 letter'!D25","v":0}]
["Number of people with an urgent condition (T2)",null,null,null,null,null,{"$f":"'part 1 letter'!D26","v":0}]
["Number of people requiring basic care (T3)",null,null,null,null,null,{"$f":"'part 1 letter'!D27","v":0}]
["Number of people present at the event who were transported to the hospital by ambulance",null,null,null,null,null,"No estimate given"]
["Number of people present at the event who were transported to the hospital by another vehicle/other ambulance",null,null,null,null,null,"No estimate given"]
[]
["VARIABLES"]
["Average temperature at the event (estimate)",null,null,null,"Please select"]
["Alcohol consumption",null,null,null,"Please select"]
["Drug use",null,null,null,"Please select"]
["Predominant age group",null,null,null,"Please select"]
[]
["FURTHER COMMENTS (FREE COMMENTS)"]
["Please share any comments here."]

{"sheet":"SECTION Disasters","index":11,"n_rows":27,"n_cols":3,"rows_kept":27,"cut":false,"hidden":false,"merged":[[1,1,1,2],[3,1,3,2]]}
[]
[null,"Further processing"]
[]
[null,"Check whether all information has been filled in correctly and click on “Next”"]
[]
[]
[]
[]
[]
[]
[]
[]
[]
[]
[]
[]
[]
[]
[]
[null,{"$f":"'[1]LUIK 4 - RISICO''S VGZ'!$D$51","v":{"$error":"#REF!"}},"No Medical facilities/resources are required"]
[null,{"$f":"'SECTION3 + SCORE'!$F$125","v":"?"},"A small-scale aid station is required. The presence of a nurse, ambulance or MUG team is not necessary here"]
[]
[]
[{"$f":"'SECTION3 + SCORE'!E121","v":"Completion check - section 1"},{"$f":"'SECTION3 + SCORE'!F121","v":1}]
[{"$f":"'SECTION3 + SCORE'!E122","v":"Completion check - section 2"},{"$f":"'SECTION3 + SCORE'!F122","v":1}]
[{"$f":"'SECTION3 + SCORE'!E123","v":"Completion check - section 4"},{"$f":"'SECTION3 + SCORE'!F123","v":{"$error":"#REF!"}}]
[{"$f":"'SECTION3 + SCORE'!E124","v":"Completion check - section 3"},{"$f":"'SECTION3 + SCORE'!F124","v":1}]

{"sheet":"SECTION6","index":12,"n_rows":22,"n_cols":3,"rows_kept":22,"cut":false,"hidden":false,"merged":[[1,1,1,2],[2,1,2,2],[10,1,10,2],[8,1,8,2],[9,1,9,2],[4,0,4,2],[3,1,3,2]]}
[]
[null,"Further processing"]
[null,"You have completed all the necessary steps."]
[null,"You can print the required letters by clicking on the buttons bellow."]
[]
[null,"Letter 1 will provide a brief summary of the event, showing that no medical facilities and resources are required.","Letter 2 shows the points of attention. The aim is to bring these problems to the organiser’s attention."]
[]
[]
[null,"These letters must then be sent to the organiser, so that they can see which arrangements are to be made. The letters must also be sent to the mayor."]
[null,"After the event, you are kindly requested to complete the “Care provided” section or to delegate this to the person responsible for medical facilities (as specified in section 1) and to return it to us, with the subject line “No medical facilities/resources”."]
[null,{"$f":"FIGURES!C36","v":"icm.antwerpen@health.fgov.be"}]
[]
[]
[]
[{"$f":"'SECTION Disasters'!B20","v":{"$error":"#REF!"}},"No Medical facilities/resources are required"]
[{"$f":"'SECTION Disasters'!B21","v":"?"},"A small-scale aid station is required. The presence of a nurse, ambulance or MUG team is not necessary here"]
[]
[]
[{"$f":"'SECTION Disasters'!B24","v":1},"Completion check - section 1"]
[{"$f":"'SECTION Disasters'!B25","v":1},"Completion check - section 2"]
[{"$f":"'SECTION Disasters'!B26","v":{"$error":"#REF!"}},"Completion check - section 4"]
[{"$f":"'SECTION Disasters'!B27","v":1},"Completion check - section 3"]

{"sheet":"SECTION7","index":13,"n_rows":23,"n_cols":3,"rows_kept":23,"cut":false,"hidden":false,"merged":[[1,1,1,2],[3,1,3,2],[9,1,9,2],[7,1,7,2],[2,1,2,2],[4,0,4,2],[8,1,8,2]]}
[]
[null,"Further processing"]
[null,"You have completed all the necessary steps."]
[null,"You can print the required letters by clicking on the buttons bellow."]
[]
[null,"Letter 1 will provide a brief summary of the event, showing that no medical facilities and resources are required.","Letter 2 shows the points of attention. The aim is to bring these problems to the organiser’s attention."]
[]
[null,"These letters must then be sent to the organiser, so that they can see which arrangements are to be made. The letters must also be sent to the mayor."]
[null,"After the event, you are kindly requested to complete the “Care provided” section or to delegate this to the person responsible for medical facilities (as specified in section 1) and to return it to us, with the subject line “Limited aid station”."]
[null,{"$f":"FIGURES!C36","v":"icm.antwerpen@health.fgov.be"}]
[]
[]
[]
[]
[]
[{"$f":"SECTION6!A15","v":{"$error":"#REF!"}},{"$f":"SECTION6!B15","v":"No Medical facilities/resources are required"}]
[{"$f":"SECTION6!A16","v":"?"},{"$f":"SECTION6!B16","v":"A small-scale aid station is required. The presence of a nurse, ambulance or MUG team is not necessary here"}]
[]
[]
[{"$f":"SECTION6!A19","v":1},{"$f":"SECTION6!B19","v":"Completion check - section 1"}]
[{"$f":"SECTION6!A20","v":1},{"$f":"SECTION6!B20","v":"Completion check - section 2"}]
[{"$f":"SECTION6!A21","v":{"$error":"#REF!"}},{"$f":"SECTION6!B21","v":"Completion check - section 4"}]
[{"$f":"SECTION6!A22","v":1},{"$f":"SECTION6!B22","v":"Completion check - section 3"}]

{"sheet":"SECTION8","index":14,"n_rows":9,"n_cols":2,"rows_kept":9,"cut":false,"hidden":false,"merged":[]}
[]
[]
[null,"Further processing"]
[]
[null,"Please do not forget to save this file and e-mail it to :"]
[null,{"$f":"FIGURES!C36","v":"icm.antwerpen@health.fgov.be"}]
[null,"with the subject line : “FPS advice”"]
[]
[null,"After the event, you are kindly requested to complete the “Care provided” section or to delegate this to the person responsible for medical facilities (as specified in section 1) and to return it to us, with the subject line “Care provided”."]

{"sheet":"SECTION5","index":15,"n_rows":108,"n_cols":9,"rows_kept":108,"cut":false,"hidden":false,"merged":[[97,2,97,6],[71,0,71,7],[67,2,67,5],[73,0,73,7],[88,0,88,1],[69,0,69,7],[96,2,96,6],[65,3,65,5],[65,6,65,7],[76,0,76,1],[74,0,74,1],[53,4,53,7],[51,4,51,7],[63,6,64,8],[63,3,63,5],[59,2,59,5],[61,2,61,5],[54,2,54,3],[51,2,51,3],[54,4,54,7],[40,1,41,1],[42,1,43,1],[47,1,48,1],[40,2,41,2],[42,2,43,2],[47,2,48,2],[45,1,46,1],[37,4,37,7],[37,1,38,1],[37,2,38,2],[1,6,1,8],[8,6,11,7],[0,0,0,5],[8,2,8,5],[9,2,9,3],[10,2,10,3],[2,4,2,5],[2,1,2,3],[3,2,3,3],[4,2,4,3],[5,2,5,3],[6,2,6,3],[7,2,7,3],[72,2,72,5],[12,2,12,3],[11,2,11,3],[18,2,18,5],[31,2,31,5],[34,2,34,5],[36,1,36,3],[53,2,53,3],[13,2,15,2],[45,2,46,2],[40,4,40,7],[52,2,52,3]]}
["Schema voorwaarden knoppen en afdrukken brieven"]
[null,null,null,null,null,null,"aangepaste cellen na rondsturen"]
[null,"Controles",null,null,"resultaat",null,"luik","waarde","formule"]
[null,1,"Luik1 = ingevuld ==> I40 = 0 ==> opgepast als de naam van de versie veranderd ==> formule aanpassen",null,{"$f":"IF(F4=0,\"ok\",\"FOUT\")","v":"FOUT"},{"$f":"'SECTION 1 - APPLICATION'!I69","v":1},1,"waardeluik 1","=ALS(OF(K21=0;K8=0;G3=\"\";G22=\"Maak uw keuze\";I14=0;G5=\"VERSIE 16\";G6=\"Maak uw keuze\");1;0)"]
[null,2,"Als er geen medische inzet is ==> Luik2!E10 = NEEN",null,{"$f":"'SECTION 2 - RISK ASSESSMENT'!E10","v":"NO"},{"$f":"IF(E5=\"NEEN\",0,1)","v":1},2,"waardemed","ALS(EN($D$4<>\"Maak uw keuze\";$D$5<>\"Maak uw keuze\";$D$6<>\"Maak uw keuze\";$D$7<>\"Maak uw keuze\";$D$8<>\"Maak uw keuze\");0;1)"]
[null,3,"Luik 2 = ingevuld ==> D23 = 0",null,{"$f":"IF(F6=0,\"ok\",\"FOUT\")","v":"FOUT"},{"$f":"'SECTION 2 - RISK ASSESSMENT'!$C$32","v":1},2,"waardeluik2"]
[null,4,"Luik 3 = ingevuld ==> niet nodig moet toch door Gks nagekeken\nwel nodig om te beslissen of ze brief mogen afprinten (nagaan of vermoedelijke inzet wel degelijk 0 is)",null,{"$f":"IF(F7=0,\"ok\",\"FOUT\")","v":"FOUT"},{"$f":"'SECTION3 + SCORE'!F124","v":1},3,"waardeluik3","ALS(EN($E$41<>\"Maak uw keuze\";$E$42<>\"Maak uw keuze\";$E$43<>\"Maak uw keuze\";$E$44<>\"Maak uw keuze\";$E$45<>\"Maak uw keuze\";$E$46<>\"Maak uw keuze\";$E$47<>\"Maak uw keuze\";$E$52<>\"Maak uw keuze\";$E$53<>\"Maak uw keuze\";$E$54<>\"Maak uw keuze\");0;1) + appart Luik5 F13 = NEEN"]
[null,5,"Luik 4 = ingevuld ==> D27 = 0",null,{"$f":"IF(F8=0,\"ok\",\"FOUT\")","v":{"$error":"#REF!"}},{"$f":"'[1]LUIK 4 - RISICO''S VGZ'!D50","v":{"$error":"#REF!"}},4,"waardeluik4","ALS(EN($D$7<>\"Maak uw keuze\";$D$8<>\"Maak uw keuze\";$D$9<>\"Maak uw keuze\";$D$10<>\"Maak uw keuze\";$D$11<>\"Maak uw keuze\";$D$12<>\"Maak uw keuze\";$D$13<>\"Maak uw keuze\";$D$14<>\"Maak uw keuze\";$D$15<>\"Maak uw keuze\";$D$16<>\"Maak uw keuze\";$D$17<>\"Maak uw keuze\";$D$18<>\"Maak uw keuze\";$D$19<>\"Maak uw keuze\";$D$20<>\"Maak uw keuze\";$D$21<>\"Maak uw keuze\";$D$22<>\"Maak uw keuze\");0;1) + appart luik4 D29 = NEEN"]
[null,null,"Vermoedelijke inzet",null,null,null,"Als K8 van luik 1 en Luik 3 volledig is ingevuld kan men zeggen dat deze uitkomst juist is anders zijn de nodige gegevens voor het berekenen van deze velden niet ingevuld en weet men het resultaat nog niet"]
[null,null,{"$f":"'WORKING DOC'!A43","v":"Minimum number of nurses (other than MUG team(s))"},null,null,{"$f":"'WORKING DOC'!B43","v":0}]
[null,null,{"$f":"'WORKING DOC'!A44","v":"Minimum number of doctors (other than MUG team(s))"},null,null,{"$f":"'WORKING DOC'!B44","v":0}]
[null,null,{"$f":"'WORKING DOC'!A28","v":"Minimum number of ambulances"},null,null,{"$f":"'WORKING DOC'!B28","v":0}]
[null,6,null,null,{"$f":"IF(F13=0,\"ok\",\"FOUT\")","v":"FOUT"},{"$f":"IF('SECTION 1 - APPLICATION'!K8=0,\"?\",IF(waardeluik3.3,\"?\",SUM(F10:F12)))","v":"?"},5,"waardeinzet"]
[null,null,"BLS of andere inzet","BLS",null,{"$f":"'WORKING DOC'!B30","v":{"$error":"#VALUE!"}}]
[null,null,null,"andere hulpverleners",null,{"$f":"'WORKING DOC'!B31","v":0}]
[null,7,null,"totaal",{"$f":"IF(F16<0.5,\"NEEN\",\"JA\")","v":{"$error":"#VALUE!"}},{"$f":"SUM(F14:F15)","v":{"$error":"#VALUE!"}}]
[]
[]
[null,null,"KNOPPEN"]
[null,null,"STAP","MOGELIJKHEDEN","CONTROLE","benoeming waarde"]
[null,null,"Van luik 1 ==> luik 2","alleen controle op invullen luik 1","1 (F4)","waardeluik1.1"]
[null,null,"Van luik 2 ==> luik 4","- controle op invullen luik 1\n- controle op invullen luik 2","1 (F4)\n3 (F6)","waardeluik2.1\nwaardeluik2.2"]
[null,null,"Van luik 4 ==> luik 3","- nood medische antenne = NEEN (0) ==> printen (geen advies FOD)\n- nood medische antenne = JA (1) ==> luik 3\n+ controle op invullen luik 1\n+ contorle op invullen luik 2\n+ contorle op invullen luik 4","2 (F5)\n1 (F4)\n3 (F6)\n5 (F8)","waardemed4\nwaardeluik4.1\nwaardeluik4.2\nwaardeluik4.4"]
[null,null,"luik 3 ==> einde","- vermoedelijke inzet = 0 ==> printen (geen advies FOD)\n- vermoedelijke inzet <> 0 ==> mailen (advies van FOD)\n+ controle op invullen luik 1\n+ contorle op invullen luik 2\n+ contorle op invullen luik 4\n\n+ contorle op invullen luik 3","6 (F13)\n\n1 (F4)\n3 (F6)\n5 (F8)\n\n4 (F7)","waardeinzet3\n\nwaardeluik3.1\nwaardeluik3.2\nwaardeluik3.4\n\nwaardeluik3.3"]
[null,null,"afprinten luik 6 - 7 - 8","- vermoedelijke inzet = 0 ==> printen (geen advies FOD)\n- vermoedelijke inzet <> 0 ==> mailen (advies van FOD)\n+ controle op invullen luik 1\n+ contorle op invullen luik 2\n+ contorle op invullen luik 4\n+ contorle op invullen luik 3","6 (F13)\n\n1 (F4)\n3 (F6)\n5 (F8)\n4 (F7)","waardeinzet6 - 7 - 8\n\nwaardeluik6.1 - 7.1 - 8.2\nwaardeluik6.2 - 7.2 - 8.2\nwaardeluik6.4 - 7.4 - 8.4\nwaardeluik6.3 - 7.3 - 8.3"]
[]
[]
[]
[]
[]
[]
[null,null,"BRIEVEN"]
[]
[]
[null,null,"Beveiligde versie : organisator"]
[]
[null,"TE DOEN"]
[null,"1.","Luik 1","rij 69 onzichtbaar maken","opmaak ==> rij ==> verbergen"]
[null,null,null,"kolom P tot T onzichtbaar maken"]
[null,"2.","Luik 2","rij 31- 35 onzichtbaar maken"]
[null,"3.","Luik 4","Kolom J onzichtbaar maken","opmaak ==> kolom ==> verbergen"]
[null,null,null,"rij 48 tot 52 onzichtbaar maken"]
[null,"4.","Luik 3","Kolom I tot q onzichtbaar maken"]
[null,null,null,"rij 121 tot 126 onzichtbaar maken"]
[null,"5.","Luik rampen","rij 20 - 27 onzichtbaar maken"]
[null,"6.","deel 2 brief geen advies","zien dat de keuze \"alle velden\" op staat"]
[null,null,null,"kolom F onzichtbaar maken"]
[null,"7.","deel 2 brief geen advies","zien dat de keuze \"alle velden\" op staat"]
[null,null,null,"kolom F onzichtbaar maken"]
[null,"8.","Luik 6","rij 15 - 22 onzichtbaar maken"]
[null,"9.","Luik 7","rij 16 - 23 onzichtbaar maken"]
[null,"10.","alle tabbladen beveiligen met ons paswoord behalve de brieven geen advies en tabblad \"organisator\"",null,"Extra ==> beveiliging ==> blad beveiligen"]
[null,"11.","de helblauwe tabbladen : deel 1 brief en deel 2 brief mogen niet beveiligd worden met paswoord en tabblad \"organisator\" (moet beveiligd met paswoord rampen)."]
[null,"12.","Allen de rode tabbladen en het tabblad \"Verzorgingen\" zichtbaar laten, de rest verbergen.\nVoor de versie 'rampen' mogen ook de zwarte tabbladen zichtbaar blijven.",null,"opmaak ==> blad ==> verbergen"]
[null,"13.","de database beveiligen met paswoord voor rampenambtenaar",null,"Extra ==> beveiliging ==> werkmap beveiligen"]
[]
[]
[]
[]
[null,null,"Opmerkingen"]
[]
[null,null,"De volgende cellen werken met verwijzingen maar zullen slechts 1 x werken !!!\nIndien de formule is verwijderd kan men onderstaande terug plaatsen"]
[]
[null,null,"Luik 4 cel D16 tot D19","ALS('LUIK 1 - AANVRAAG'!G$20=\"neen\";\"Niet van toepassing\";\"Maak uw keuze\")",null,null,"camping = misschien te linken aan luik 4 logies"]
[]
[null,null,"Luik 3  cel E21 tot E25","ALS($E$20=\"neen\";\"Niet van toepassing\";\"Maak uw keuze\")",null,null,"omwonende"]
[]
[null,null,"Vragen"]
[]
["Eventueel een kleurcode toepasen als een veld is ingevuld zoals bij de melding van agressie ???"]
[]
[]
[null,null,"Formules in cellen die gewist kunnen worden"]
[]
["Luik 3",null,"cel E6","='LUIK 2 - RISICOVRAAG'!D4"]
[null,null,"cel E7","='LUIK 2 - RISICOVRAAG'!D5"]
[null,null,"cel E11","=IF(E10=0;\"\";IF(E10<>\"\";\"niet van toepassing\";\"\"))"]
[null,null,"cel E18","=IF('LUIK 1 - AANVRAAG'!I18=0;\"NEEN\";\"JA\")"]
[null,null,"cel E19","=IF($E$18=\"neen\";\"Niet van toepassing\";\"Maak uw keuze\")"]
[null,null,"cel E20","=IF($E$18=\"neen\";\"Niet van toepassing\";\"Maak uw keuze\")"]
[null,null,"cel E21","=IF($E$18=\"neen\";\"Niet van toepassing\";\"Maak uw keuze\")"]
[null,null,"cel E22","=IF($E$18=\"neen\";\"Niet van toepassing\";\"Maak uw keuze\")"]
[null,null,"cel E23","=IF($E$18=\"neen\";\"Niet van toepassing\";\"Maak uw keuze\")"]
[null,null,"cel E73","='LUIK 2 - RISICOVRAAG'!D8"]
[null,null,"cel E74","='LUIK 2 - RISICOVRAAG'!D7"]
[null,null,"cel E90","=ALS(LUIK5!F13<>0;\"neen\";\"ja\")"]
[null,null,"cel E93","=ALS(LUIK5!F13<>0;\"ja\";\"NEEN\")"]
[]
["Luik 4",null,"cel D19","=IF('LUIK 1 - AANVRAAG'!G$22=\"neen\";\"Niet van toepassing\";\"Maak uw keuze\")"]
[null,null,"cel D20","=IF('LUIK 1 - AANVRAAG'!G$22=\"neen\";\"Niet van toepassing\";\"Maak uw keuze\")"]
[null,null,"cel D21","=IF('LUIK 1 - AANVRAAG'!G$22=\"neen\";\"Niet van toepassing\";\"Maak uw keuze\")"]
[null,null,"cel D22","=IF('LUIK 1 - AANVRAAG'!G$22=\"neen\";\"Niet van toepassing\";\"Maak uw keuze\")"]
[]
[]
[null,null,"keuzelijst aanmaken"]
[]
[null,1,"gegevens ingeven ==> in vak waar de cel staat (C68) de naam ingeven"]
[null,2,"in de cel waar men de keuzelijst wil maken : Data ==> valideren ==> toestaan : lijst ==> bron = naam van de lijst"]
[]
[]
[]
[null,null,"Appart luik 6 maken voor ieder mogelijk geval ?"]
[null,null,"1 geen medische inzet ==> niets mailen naar FOD : NEEN?Brief gemeente : JA  , Brief 100 : NEEN"]
[null,null,"2 wel medische inzet maar VPK … = 0 ==> mailen FOD ?brief gemeente ? Brief 100 ? Verzorgingen"]
[null,null,"3 geen automatisch advies ==> mailen FOD ?brief gemeente ? Brief 100 ? Verzorgingen"]
[]
[null,null,"vanaf OF amb en/of VP => mailen FOD, anders brief gemeente"]
[null,null,"Brief 100 : alleen via FOD => verbergen voor invuller"]

{"sheet":"part 1 letter no advice","index":16,"n_rows":74,"n_cols":7,"rows_kept":74,"cut":false,"hidden":false,"merged":[[59,2,59,3],[70,2,70,3],[71,2,71,3],[63,2,63,3],[64,2,64,3],[65,2,65,3],[66,2,66,3],[9,0,9,2],[10,0,10,2],[56,2,56,3],[57,2,57,3],[58,2,58,3],[13,6,26,9],[50,2,50,3],[27,0,27,2],[28,0,28,2],[38,0,38,2],[26,0,26,2],[19,0,19,2],[25,0,25,2],[52,0,52,3],[35,0,35,2],[36,0,36,2],[29,0,29,2],[47,2,47,3],[49,2,49,3],[0,0,0,3],[1,0,1,3],[2,0,2,3],[48,2,48,3],[4,0,4,3],[13,0,13,3],[42,0,42,2],[43,0,43,2],[17,0,17,2],[18,0,18,2],[5,0,5,3],[6,2,6,3],[6,0,6,1],[11,0,11,2],[7,0,7,2],[8,0,8,2]]}
["FPS Public Health, Safety of the Food Chain and the Environment"]
[{"$f":"FIGURES!C41","v":"ICM - Antwerp Field Service - Advice for Increased-risk Events (PRIMA)"}]
[{"$f":"FIGURES!C36","v":"icm.antwerpen@health.fgov.be"}]
[null,null,null,null,null,"Please select"]
["1. GENERAL EVENT INFORMATION",null,null,null,null,1]
[{"$f":"'SECTION 1 - APPLICATION'!$G$5","v":"VERSION 25"},null,null,null,null,1]
["Municipality",null,{"$f":"'SECTION 1 - APPLICATION'!$G$3","v":0},null,null,1]
[{"$f":"'WORKING DOC'!A11","v":"Event date"},null,null,{"$f":"'WORKING DOC'!B11","v":"00/00/0000"},null,1]
[{"$f":"'WORKING DOC'!A12","v":"Total attendance after correction"},null,null,{"$f":"IF(OR('[1]LUIK 4 - RISICO''S VGZ'!D52=0,'SECTION3 + SCORE'!F126=0),'WORKING DOC'!B12,\"?\")","v":{"$error":"#REF!"}},null,1]
[{"$f":"'WORKING DOC'!A13","v":"Total event duration in hours"},null,null,{"$f":"IF(OR('[1]LUIK 4 - RISICO''S VGZ'!D52=0,'SECTION3 + SCORE'!F126=0),'WORKING DOC'!B13,\"?\")","v":{"$error":"#REF!"}},null,1]
[{"$f":"'WORKING DOC'!A14","v":"Maximum number of simultaneous visitors"},null,null,{"$f":"IF(OR('[1]LUIK 4 - RISICO''S VGZ'!$D$52=0,'SECTION3 + SCORE'!F126=0),'WORKING DOC'!$B14,\"?\")","v":{"$error":"#REF!"}},null,1]
[{"$f":"'WORKING DOC'!A15","v":"Maximum time spent by said visitors at the event in hours"},null,null,{"$f":"IF(OR('[1]LUIK 4 - RISICO''S VGZ'!$D$52=0,'SECTION3 + SCORE'!F126=0),'WORKING DOC'!$B15,\"?\")","v":{"$error":"#REF!"}},null,1]
[null,null,null,null,null,1]
["2. TEMPORARY MEDICAL CENTRE",null,null,null,null,1,"Using a random sample, check that section 2 has been completed and that medical resources/facilities = NO or, if medical resources/facilities = YES, check that section 3 has been completed : If these conditions are not met ==>? (Letter to become invalid if these conditions are not met)"]
[null,null,null,null,null,1]
["2.1. Is a temporary medical centre needed",null,null,null,null,1]
[null,null,null,null,null,1]
[{"$f":"'WORKING DOC'!A17","v":"Is a temporary medical centre needed during this event"},null,null,{"$f":"IF(OR('[1]LUIK 4 - RISICO''S VGZ'!$D$50<>0,'SECTION3 + SCORE'!F124<>0),\"?\",SECTION5!E16)","v":{"$error":"#REF!"}},null,1]
[{"$f":"'WORKING DOC'!A18","v":"Are additional public health measures needed"},null,null,{"$f":"IF(OR('[1]LUIK 4 - RISICO''S VGZ'!$D$52=0,'SECTION3 + SCORE'!F126=0),'WORKING DOC'!$B18,\"?\")","v":{"$error":"#REF!"}},null,1]
[{"$f":"'WORKING DOC'!A19","v":"Are additional measures for a campsite needed"},null,null,{"$f":"IF(OR('[1]LUIK 4 - RISICO''S VGZ'!$D$52=0,'SECTION3 + SCORE'!F126=0),'WORKING DOC'!$B19,\"?\")","v":{"$error":"#REF!"}},null,1]
[null,null,null,null,null,1]
["2.2 Expected workload and injuries",null,null,null,null,1]
[null,null,null,null,null,1]
["Workload",null,null,null,null,1]
[null,null,null,null,null,1]
[{"$f":"'WORKING DOC'!A21","v":"Number of life-threatening conditions (after handover)"},null,null,{"$f":"IF(OR('[1]LUIK 4 - RISICO''S VGZ'!$D$52=0,'SECTION3 + SCORE'!F126=0),'WORKING DOC'!$B21,\"?\")","v":{"$error":"#REF!"}},null,1]
[{"$f":"'WORKING DOC'!A22","v":"Number of urgent conditions (request doctor and/or ambulance transport to hospital)"},null,null,{"$f":"IF(OR('[1]LUIK 4 - RISICO''S VGZ'!$D$52=0,'SECTION3 + SCORE'!F126=0),'WORKING DOC'!$B22,\"?\")","v":{"$error":"#REF!"}},null,1]
[{"$f":"'WORKING DOC'!A23","v":"Number of requests for (basic) medical care"},null,null,{"$f":"IF(OR('[1]LUIK 4 - RISICO''S VGZ'!$D$52=0,'SECTION3 + SCORE'!F126=0),'WORKING DOC'!$B23,\"?\")","v":{"$error":"#REF!"}},null,1]
[{"$f":"'WORKING DOC'!A24","v":"Total number of people receiving care"},null,null,{"$f":"IF(OR('[1]LUIK 4 - RISICO''S VGZ'!$D$52=0,'SECTION3 + SCORE'!F126=0),'WORKING DOC'!$B24,\"?\")","v":{"$error":"#REF!"}},null,1]
[{"$f":"'WORKING DOC'!A25","v":"Number of simultaneous cases and, therefore, required number of beds/spots in aid station(s)"},null,null,{"$f":"IF(OR('[1]LUIK 4 - RISICO''S VGZ'!$D$52=0,'SECTION3 + SCORE'!$F$126=0),'WORKING DOC'!$B25,\"?\")","v":{"$error":"#REF!"}},null,1]
[null,null,null,null,null,1]
["2.3. Medical resources",null,null,null,null,1]
[null,null,null,null,null,1]
["Other aid workers",null,null,null,null,1]
[null,null,null,null,null,1]
[{"$f":"'WORKING DOC'!A30","v":"Minimum number of BLS teams"},null,null,{"$f":"IF(AND('SECTION3 + SCORE'!E10=\"\",'SECTION3 + SCORE'!I11=\"\"),\"oppervlakte in luik 3 ?\",IF(OR('[1]LUIK 4 - RISICO''S VGZ'!$D$52=0,'SECTION3 + SCORE'!F116=0),IF('SECTION 2 - RISK ASSESSMENT'!E10=\"NEEN\",0,'WORKING DOC'!$B30),\"?\"))","v":"oppervlakte in luik 3 ?"},null,1]
[{"$f":"'WORKING DOC'!A31","v":"Minimum number of other aid workers (excluding the BLS teams and the ambulance aid workers)"},null,null,{"$f":"IF(OR('[1]LUIK 4 - RISICO''S VGZ'!$D$52=0,'SECTION3 + SCORE'!F126=0),'WORKING DOC'!$B31,\"?\")","v":{"$error":"#REF!"}},null,1]
[null,null,null,null,null,1]
[{"$f":"'WORKING DOC'!A36","v":"Can the roles of BLS team member and aid station worker be combined"},null,null,"NO",null,1]
[null,null,null,null,null,1]
["Aid stations",null,null,null,null,1]
[null,null,null,null,null,1]
[{"$f":"'WORKING DOC'!A38","v":"Minimum area for the aid station"},null,null,{"$f":"IF(OR('[1]LUIK 4 - RISICO''S VGZ'!$D$52=0,'SECTION3 + SCORE'!F126=0),'WORKING DOC'!$B38,\"?\")","v":{"$error":"#REF!"}},null,1]
[{"$f":"'WORKING DOC'!A40","v":"Should multiple aid stations be setp up"},null,null,"NO",null,1]
[null,null,null,null,null,1]
["2.4. Communication model",null,null,null,null,{"$f":"IF(D$18=\"NEEN\",0,1)","v":{"$error":"#REF!"}}]
[null,null,null,null,null,{"$f":"IF(D$18=\"NEEN\",0,1)","v":{"$error":"#REF!"}}]
["MODEL","TYPE","CALL GROUPS",null,null,{"$f":"IF(D$18=\"NEEN\",0,1)","v":{"$error":"#REF!"}}]
["Mobile","Basic","Exchange mobile numbers of responsible persons!",null,null,{"$f":"IF(D$18=\"NEEN\",0,IF(INTERPRETATION!$J$91=0,1,0))","v":{"$error":"#REF!"}}]
["Model 1","Minimum","Call group for multidisciplinary coordination and consultation",null,null,{"$f":"IF(D$18=\"NEEN\",0,IF(INTERPRETATION!$J$91=1,1,0))","v":{"$error":"#REF!"}}]
["Model 1","Minimum","Operational medical call group",null,null,{"$f":"IF(D$18=\"NEEN\",0,IF(INTERPRETATION!$J$91=1,1,0))","v":{"$error":"#REF!"}}]
[null,null,null,null,null,{"$f":"IF(D$18=\"NEEN\",0,IF(INTERPRETATION!$J$91=1,1,0))","v":{"$error":"#REF!"}}]
["3. ADMINISTRATIVE DETAILS ",null,null,null,null,1]
[null,null,null,null,null,1]
["3.1. Organiser",null,null,null,null,1]
[null,null,null,null,null,1]
["Name and first name",null,{"$f":"IF('SECTION 1 - APPLICATION'!G25=\"\",\"niet ingevuld\",'SECTION 1 - APPLICATION'!G25)","v":"niet ingevuld"},null,null,1]
["Organisation",null,{"$f":"IF('SECTION 1 - APPLICATION'!G24=\"\",\"niet ingevuld\",'SECTION 1 - APPLICATION'!G24)","v":"niet ingevuld"},null,null,1]
["Outside event",null,{"$f":"IF('SECTION 1 - APPLICATION'!G30=\"\",\"niet ingevuld\",'SECTION 1 - APPLICATION'!G30)","v":"niet ingevuld"},null,null,1]
["During event",null,{"$f":"IF('SECTION 1 - APPLICATION'!G31=\"\",\"niet ingevuld\",'SECTION 1 - APPLICATION'!G31)","v":"niet ingevuld"},null,null,1]
[null,null,null,null,null,1]
["3.2. Person responsible for medical facilities",null,null,null,null,1]
[null,null,null,null,null,1]
["Name and first name",null,{"$f":"IF(D36<0,\"Niet van toepassing\",IF('SECTION 1 - APPLICATION'!G34=\"\",\"niet ingevuld\",'SECTION 1 - APPLICATION'!G34))","v":"niet ingevuld"},null,null,1]
["Organisation",null,{"$f":"IF(D36<0,\"Niet van toepassing\",IF('SECTION 1 - APPLICATION'!G39=\"\",\"niet ingevuld\",'SECTION 1 - APPLICATION'!G39))","v":"niet ingevuld"},null,null,1]
["Outside event",null,{"$f":"IF(D36<0,\"Niet van toepassing\",IF('SECTION 1 - APPLICATION'!G40=\"\",\"niet ingevuld\",'SECTION 1 - APPLICATION'!G40))","v":"niet ingevuld"},null,null,1]
["During event",null,{"$f":"IF(D36<0,\"Niet van toepassing\",IF('SECTION 1 - APPLICATION'!G41=\"\",\"niet ingevuld\",'SECTION 1 - APPLICATION'!G41))","v":"niet ingevuld"},null,null,1]
[null,null,null,null,null,1]
["3.3. Insurance",null,null,null,null,1]
[null,null,null,null,null,1]
["Insurance company",null,{"$f":"IF('SECTION 1 - APPLICATION'!G53=\"\",\"niet ingevuld\",'SECTION 1 - APPLICATION'!G53)","v":"niet ingevuld"},null,null,1]
["Policy number",null,{"$f":"IF('SECTION 1 - APPLICATION'!G55=\"\",\"niet ingevuld\",'SECTION 1 - APPLICATION'!G55)","v":"niet ingevuld"},null,null,1]
[]
[null,null,null,null,null,"?"]

{"sheet":"part 2 letter no advice","index":17,"n_rows":134,"n_cols":6,"rows_kept":134,"cut":false,"hidden":false,"merged":[[111,1,111,2],[111,0,117,0],[117,1,117,2],[113,1,113,2],[112,1,112,2],[110,1,110,2],[108,1,108,2],[88,2,88,3],[89,2,89,3],[90,2,90,3],[76,2,76,3],[77,2,77,3],[78,2,78,3],[91,2,91,3],[102,0,102,4],[106,0,108,0],[88,0,91,1],[79,2,79,3],[86,2,86,3],[94,0,94,2],[84,2,84,3],[99,0,100,0],[99,1,99,3],[100,1,100,3],[76,0,87,1],[92,0,92,3],[96,1,96,3],[97,0,98,0],[97,1,97,3],[98,1,98,3],[133,1,133,2],[104,0,104,4],[120,0,120,4],[125,0,126,0],[128,0,129,0],[129,1,129,2],[109,1,109,2],[130,0,132,0],[122,1,122,2],[123,1,123,2],[132,1,132,2],[124,1,124,2],[125,1,125,2],[126,1,126,2],[127,1,127,2],[128,1,128,2],[130,1,130,2],[131,1,131,2],[118,0,118,3],[115,1,115,2],[114,1,114,3],[116,1,116,2],[106,1,106,2],[107,1,107,2],[6,0,6,4],[21,0,21,4],[58,0,58,4],[71,0,71,4],[37,0,37,1],[66,0,66,3],[10,2,10,3],[11,2,11,3],[32,0,32,1],[12,2,12,3],[13,2,13,3],[26,2,26,3],[50,0,50,1],[68,0,68,3],[69,0,69,3],[65,0,65,3],[67,0,67,3],[28,2,28,3],[25,2,25,3],[28,0,28,1],[38,0,38,1],[40,0,40,1],[39,2,39,3],[40,2,40,3],[4,0,4,4],[38,2,38,3],[42,0,42,1],[62,0,62,3],[60,0,60,3],[46,0,46,3],[48,0,48,1],[42,2,42,3],[43,2,43,3],[44,0,44,3],[50,2,50,3],[53,0,53,1],[53,2,53,3],[51,0,51,1],[51,2,51,3],[52,0,52,1],[52,2,52,3],[56,0,56,1],[56,2,56,3],[54,0,54,1],[54,2,54,3],[55,0,55,1],[55,2,55,3],[27,2,27,3],[74,0,74,3],[63,0,63,3],[64,0,64,3],[87,2,87,3],[80,2,80,3],[81,2,81,3],[82,2,82,3],[83,2,83,3],[85,2,85,3],[73,0,73,3],[0,2,0,4],[1,2,1,4],[2,2,2,4],[30,2,30,3],[8,0,8,3],[14,2,14,3],[15,2,15,3],[16,2,16,3],[10,0,10,1],[11,0,11,1],[12,0,13,1],[14,0,15,1],[16,0,16,1],[17,0,17,1],[18,0,18,1],[19,0,19,3],[17,2,17,3],[18,2,18,3],[25,0,25,1],[26,0,26,1],[27,0,27,1],[29,0,29,1],[29,2,29,3],[23,0,23,3],[49,0,49,1],[49,2,49,3],[43,0,43,1],[30,0,30,1],[35,0,35,1],[35,2,35,3],[34,2,34,3],[31,2,31,3],[31,0,31,1],[41,0,41,1],[32,2,32,3],[39,0,39,1],[37,2,37,3],[48,2,48,3],[36,0,36,1],[34,0,34,1],[36,2,36,3],[33,0,33,1],[41,2,41,3]]}
[null,null,"FPS Public Health, Safety of the Food Chain and the Environment"]
[null,null,{"$f":"FIGURES!C41","v":"ICM - Antwerp Field Service - Advice for Increased-risk Events (PRIMA)"}]
[null,null,{"$f":"FIGURES!C36","v":"icm.antwerpen@health.fgov.be"}]
[]
["3. MISCELLANEOUS MEASURES"]
[]
["3.1. Measures for local residents"]
[]
[{"$f":"INTERPRETATION!D37","v":"Should measures be taken for local residents"},null,null,null,{"$f":"IF(OR('[1]LUIK 4 - RISICO''S VGZ'!$D$52=0,'SECTION3 + SCORE'!F126=0),INTERPRETATION!$G37,\"?\")","v":{"$error":"#REF!"}}]
[null,null,null,null,null,"choice"]
["Residents inside isolation perimeter",null,"Look up the total number of local residents living near the event site\nInform these residents of the event.  Check whether a liaison officer should be appointed to answer questions",null,null,{"$f":"IF(OR('[1]LUIK 4 - RISICO''S VGZ'!$D$52=0,'SECTION3 + SCORE'!F126=0),RESULTS!$H43,\"?\")","v":{"$error":"#REF!"}}]
["Retirement home/hospital inside perimeter",null,"Check that the institute in question has been notified of the event and that there is an alternative access point.\nIF NOT : allocate additional resources in or near the institute in question for the entire duration it will have to run autonomously",null,null,{"$f":"IF(OR('[1]LUIK 4 - RISICO''S VGZ'!$D$52=0,'SECTION3 + SCORE'!F126=0),RESULTS!$H44,\"?\")","v":{"$error":"#REF!"}}]
["On-call GP needed inside perimeter",null,"Notify GPs in the vicinity of the event, informing them of the time that the perimeter will be closed",null,null,{"$f":"IF(OR('[1]LUIK 4 - RISICO''S VGZ'!$D$52=0,'SECTION3 + SCORE'!F126=0),RESULTS!$H45,\"?\")","v":{"$error":"#REF!"}}]
[null,null,"Share the phone number of the Operational Control Centre (GP consultations + parking)",null,null,{"$f":"IF(OR('[1]LUIK 4 - RISICO''S VGZ'!$D$52=0,'SECTION3 + SCORE'!F126=0),RESULTS!$H46,\"?\")","v":{"$error":"#REF!"}}]
["On-call nurse needed inside perimeter",null,"Notify on-call nurses in the vicinity of the event, informing them of the time that the perimeter will be closed",null,null,{"$f":"IF(OR('[1]LUIK 4 - RISICO''S VGZ'!$D$52=0,'SECTION3 + SCORE'!F126=0),RESULTS!$H47,\"?\")","v":{"$error":"#REF!"}}]
[null,null,"Share the phone number of the Operational Control Centre (Nurse consultations + parking)",null,null,{"$f":"IF(OR('[1]LUIK 4 - RISICO''S VGZ'!$D$52=0,'SECTION3 + SCORE'!F126=0),RESULTS!$H48,\"?\")","v":{"$error":"#REF!"}}]
["meal delivery needed inside perimeter",null,"Contact the PCSW to check whether the service(s) responsible for meal delivery are aware of the event and, if necessary, know where they will pass  the perimeter",null,null,{"$f":"IF(OR('[1]LUIK 4 - RISICO''S VGZ'!$D$52=0,'SECTION3 + SCORE'!F126=0),RESULTS!$H49,\"?\")","v":{"$error":"#REF!"}}]
["on-call pharmacist needed inside perimeter ",null,"Ask whether it is possible for the on-call pharmacist to arrange for a replacement\nIF NOT POSSIBLE: ensure free access to the pharmacy",null,null,{"$f":"IF(OR('[1]LUIK 4 - RISICO''S VGZ'!$D$52=0,'SECTION3 + SCORE'!F126=0),RESULTS!$H50,\"?\")","v":{"$error":"#REF!"}}]
["Number of municipalities concerned",null,"Are all municipalities involved in the planning process",null,null,{"$f":"IF(OR('[1]LUIK 4 - RISICO''S VGZ'!$D$52=0,'SECTION3 + SCORE'!F126=0),RESULTS!$H51,\"?\")","v":{"$error":"#REF!"}}]
["NOT APPLICABLE",null,null,null,null,{"$f":"IF(OR(F11=1,F12=1,F13=1,F14=1,F15=1,F16=1,F17=1,F18=1,F19=1),0,\"?\")","v":{"$error":"#REF!"}}]
[null,null,null,null,null,1]
["3.2. Measures for multidisciplinary consultation",null,null,null,null,1]
[null,null,null,null,null,1]
[{"$f":"INTERPRETATION!D74","v":"Is multidisciplinary adjustment necessary"},{"$f":"INTERPRETATION!E74","v":0},null,{"$f":"INTERPRETATION!F74","v":0},{"$f":"IF(OR('[1]LUIK 4 - RISICO''S VGZ'!$D$52=0,'SECTION3 + SCORE'!F126=0),INTERPRETATION!G74,\"?\")","v":{"$error":"#REF!"}},1]
[null,null,null,null,null,1]
["Presence of utilities",null,"Check with the fire brigade whether the capacity of the utilities is sufficient for the requirements of this event.  \nAlso check that they will not hinder/cause any problems for the traffic flow of medical services",null,null,{"$f":"IF('SECTION3 + SCORE'!I66=0,\"?\",\"1\")","v":"?"}]
["Means of communication",null,"Check that the emergency services are familiar with the communication equipment used, if specific equipment is used.",null,null,{"$f":"IF(OR('[1]LUIK 4 - RISICO''S VGZ'!$D$52=0,'SECTION3 + SCORE'!F126=0),'SECTION3 + SCORE'!I67,\"?\")","v":{"$error":"#REF!"}}]
["Presence of large animals",null,"The event must be adapted to the presence of large animals.",null,null,{"$f":"IF(OR('[1]LUIK 4 - RISICO''S VGZ'!$D$52=0,'SECTION3 + SCORE'!F126=0),'SECTION3 + SCORE'!I68,\"?\")","v":{"$error":"#REF!"}}]
["International reputation (> 9 % foreigners expected)",null,"The presence of foreign visitors may lead to language problems.",null,null,{"$f":"IF(OR('[1]LUIK 4 - RISICO''S VGZ'!$D$52=0,'SECTION3 + SCORE'!F$126=0),'SECTION3 + SCORE'!I69,\"?\")","v":{"$error":"#REF!"}}]
["Presence of wheelchair users",null,"If the event is visited by multiple wheelchair users, access to the event and the corresponding facilities must be adapted accordingly.",null,null,{"$f":"IF('SECTION3 + SCORE'!I46=1,1,0)","v":0}]
["Presence of children",null,"Has thought been given to the fact that children may get lost. Is there a fixed place where lost/missing children can wait to be picked up. The event’s organisers may recommend that children’s parents or guardians write their mobile number/contact details on the child’s arm or on a wristband.",null,null,{"$f":"IF('SECTION3 + SCORE'!E42=\"< 10 jaar met begeleiding van de ouders\",1,IF('SECTION3 + SCORE'!E42=\"alle leeftijden\",1,0))","v":0}]
["Presence of children under the age of 10 without parental supervision",null,"It is strongly recommended to designate a specific area where parents and guardians can pick up lost/missing children. Make sure that a proper monitoring system is in place",null,null,{"$f":"IF('SECTION3 + SCORE'!E42=\"< 10 jaar zonder begeleiding van de ouders\",1,0)","v":0}]
["Presence of drugs",null,"Ascertain which drugs were used.",null,null,{"$f":"IF('SECTION3 + SCORE'!E44=\"Overvloedig gebruik\",1,0)","v":0}]
["Presence of fireworks",null,"Fireworks can cause burns",null,null,{"$f":"IF(OR('[1]LUIK 4 - RISICO''S VGZ'!$D$52=0,'SECTION3 + SCORE'!F$126=0),'SECTION3 + SCORE'!I70,\"?\")","v":{"$error":"#REF!"}}]
["Presence of weapons",null,"Weapons can cause gunshot and/or stab wounds",null,null,{"$f":"IF(OR('[1]LUIK 4 - RISICO''S VGZ'!$D$52=0,'SECTION3 + SCORE'!F$126=0),'SECTION3 + SCORE'!I71,\"?\")","v":{"$error":"#REF!"}}]
["Sold out",null,"At sold-out events, visitors have less room to move on site.  At the same time, people will attempt to access the site unlawfully.  This increases the workload of emergency services, as they will also have to respond to problems outside the event proper, at the edge of the perimeter",null,null,{"$f":"IF(OR('[1]LUIK 4 - RISICO''S VGZ'!$D$52=0,'SECTION3 + SCORE'!F$126=0),'SECTION3 + SCORE'!I72,\"?\")","v":{"$error":"#REF!"}}]
["Simultaneous increased-risk events nearby",null,"Organise a multi-disciplinary coordination meeting or ensure that the Operational Control Centres of the various events can contact each other",null,null,{"$f":"IF(OR('[1]LUIK 4 - RISICO''S VGZ'!$D$52=0,'SECTION3 + SCORE'!F$126=0),'SECTION3 + SCORE'!I73,\"?\")","v":{"$error":"#REF!"}}]
["Specific risks in the area",null,"Check whether these specific risks may affect the event.",null,null,{"$f":"IF(OR('[1]LUIK 4 - RISICO''S VGZ'!$D$52=0,'SECTION3 + SCORE'!F$126=0),'SECTION3 + SCORE'!I74,\"?\")","v":{"$error":"#REF!"}}]
["Problem according to police",null,"A multidisciplinary coordination meeting should be scheduled with the police",null,null,{"$f":"IF(OR('[1]LUIK 4 - RISICO''S VGZ'!$D$52=0,'SECTION3 + SCORE'!F126=0),'SECTION3 + SCORE'!I75,\"?\")","v":{"$error":"#REF!"}}]
["Problem according to the fire department",null,"A multidisciplinary coordination meeting should be scheduled with the police",null,null,{"$f":"IF(OR('[1]LUIK 4 - RISICO''S VGZ'!$D$52=0,'SECTION3 + SCORE'!F126=0),'SECTION3 + SCORE'!I76,\"?\")","v":{"$error":"#REF!"}}]
["Previous negative experience with this type of event",null,"What solution was suggested and/or offered in these cases\nAre there sufficient guarantees to avoid these problems this time",null,null,{"$f":"IF(OR('[1]LUIK 4 - RISICO''S VGZ'!$D$52=0,'SECTION3 + SCORE'!F126=0),'SECTION3 + SCORE'!I77,\"?\")","v":{"$error":"#REF!"}}]
["Organiser’s reputation",null,"If the organiser’s reputation is unknown, it is recommended to have various parties visit the site prior to the event and, if necessary, during the event",null,null,{"$f":"IF(OR('[1]LUIK 4 - RISICO''S VGZ'!$D$52=0,'SECTION3 + SCORE'!F126=0),'SECTION3 + SCORE'!I60,\"?\")","v":{"$error":"#REF!"}}]
["Event has own security in addition to police",null,"Check whether other emergency services are sufficiently aware of the resources/facilities allocated.",null,null,{"$f":"IF(OR('[1]LUIK 4 - RISICO''S VGZ'!$D$52=0,'SECTION3 + SCORE'!F126=0),'SECTION3 + SCORE'!I78,\"?\")","v":{"$error":"#REF!"}}]
["Specific legislation concerning this type of event",null,"Check whether all legal requirements have been met  There is currently specific legislation in place for car rallies, football matches and motocross events, in addition to the provision of the Royal Decree of 16/02/06",null,null,{"$f":"IF(OR('[1]LUIK 4 - RISICO''S VGZ'!$D$52=0,'SECTION3 + SCORE'!F126=0),'SECTION3 + SCORE'!I79,\"?\")","v":{"$error":"#REF!"}}]
["NOT APPLICABLE",null,null,null,null,{"$f":"IF(OR(F26=1,F27=1,F28=1,F29=1,F30=1,F34=1,F35=1,F36=1,F37=1,F38=1,F39=1,F40=1,F41=1,F42=1,F43=1,F44=1),0,\"?\")","v":{"$error":"#REF!"}}]
[null,null,null,null,null,{"$f":"F47","v":1}]
["Specific multidisciplinary points of attention ",null,null,null,null,{"$f":"IF(AND(F49=0,F50=0,F51=0,F52=0,F53=0,F54=0,F55=0,F57=0),0,1)","v":1}]
[null,null,null,null,null,{"$f":"F47","v":1}]
["Are tents open to the public",null,"If tents are open to the public, the fire department must advise whether all evacuation requirements have been met",null,null,{"$f":"'SECTION3 + SCORE'!I81","v":0}]
["Number of tents with a surface area greater than 50 m2",null,{"$f":"'SECTION3 + SCORE'!$J$82","v":"Please select"},null,null,{"$f":"'SECTION3 + SCORE'!I82","v":0}]
["Main utilities used",null,{"$f":"'SECTION3 + SCORE'!E83","v":"Please select"},null,null,{"$f":"'SECTION3 + SCORE'!I83","v":0}]
["Are VIPs expected",null,"* VIPs form an increased risk for the police and for other emergency services.  Have emergency services coordination to assess the impact of the policing plan on the plans of other emergency services\n* Does the presence of a particular VIP require that additional measures be taken by the teams on site.",null,null,{"$f":"'SECTION3 + SCORE'!I84","v":0}]
["Are there NADAR or HERAS fences",null,"In long stretches of fencing, are there enough places for emergency services to cross the fences",null,null,{"$f":"'SECTION3 + SCORE'!I85","v":0}]
["Is the event easily accessible by public transport",null,"* If public transport reaches all the way up to the event : is there a separate road for public transport\n* If people get off public transport near the event : is there a separate road for pedestrians.  Has care been taken to ensure that this road does not cross the road used by emergency services.\n* If there is no public transport in the vicinity of the event : is this taken into account in the mobility plan",null,null,{"$f":"'SECTION3 + SCORE'!I86","v":1}]
["Are there enough car parks nearby",null,{"$f":"'SECTION3 + SCORE'!E85","v":"Please select"},null,null,1]
["Are the car parks supervised in any way (alerting emergency services in the event of an emergency)",null,"Problems can also occur on car parks.  Can parking attendants (if any) contact the Operational Control Centre to call in assistance if necessary.",null,null,1]
["Does the event have its own shuttle service",null,"Is the shuttle service clearly recognisable\nare the stops of the shuttle service clearly marked on the map\nIs there are specific route for the shuttle service",null,null,{"$f":"'SECTION3 + SCORE'!I89","v":0}]
[null,null,null,null,null,1]
["3.3. Measures concerning the MIP",null,null,null,null,1]
[null,null,null,null,null,1]
[{"$f":"INTERPRETATION!D79","v":"Are any additional disaster preparedness measures needed"},{"$f":"INTERPRETATION!E79","v":0},null,{"$f":"INTERPRETATION!F79","v":0},{"$f":"IF(OR('[1]LUIK 4 - RISICO''S VGZ'!$D$52=0,'SECTION3 + SCORE'!F126=0),INTERPRETATION!G79,\"?\")","v":{"$error":"#REF!"}},1]
[null,null,null,null,null,1]
["QUESTION",null,null,null,null,{"$f":"IF(OR(F64=1,F65=1,F66=1,F67=1,F68=1,F69=1),0,\"?\")","v":{"$error":"#REF!"}}]
["Are there adequate maps of the site",null,null,null,null,{"$f":"IF(OR('[1]LUIK 4 - RISICO''S VGZ'!$D$52=0,'SECTION3 + SCORE'!F126=0),'SECTION3 + SCORE'!I94,\"?\")","v":{"$error":"#REF!"}}]
["Are there adequate maps of the entire isolation area",null,null,null,null,{"$f":"IF(OR('[1]LUIK 4 - RISICO''S VGZ'!$D$52=0,'SECTION3 + SCORE'!F126=0),'SECTION3 + SCORE'!I95,\"?\")","v":{"$error":"#REF!"}}]
["Is there a clear communication model that can be used in the event of a collective problem",null,null,null,null,{"$f":"IF(OR('[1]LUIK 4 - RISICO''S VGZ'!$D$52=0,'SECTION3 + SCORE'!F126=0),'SECTION3 + SCORE'!I96,\"?\")","v":{"$error":"#REF!"}}]
["Does the communication model comply with DGH requirements",null,null,null,null,{"$f":"IF(OR('[1]LUIK 4 - RISICO''S VGZ'!$D$52=0,'SECTION3 + SCORE'!F126=0),'SECTION3 + SCORE'!I97,\"?\")","v":{"$error":"#REF!"}}]
["Is there a direct link to the 100 switchboard",null,null,null,null,{"$f":"IF(OR('[1]LUIK 4 - RISICO''S VGZ'!$D$52=0,'SECTION3 + SCORE'!F126=0),'SECTION3 + SCORE'!I98,\"?\")","v":{"$error":"#REF!"}}]
["Is the Medical Intervention Plan compliant with the Royal Decree of 16/02/06",null,null,null,null,{"$f":"IF(OR('[1]LUIK 4 - RISICO''S VGZ'!$D$52=0,'SECTION3 + SCORE'!F126=0),'SECTION3 + SCORE'!I99,\"?\")","v":{"$error":"#REF!"}}]
["NOT APPLICABLE",null,null,null,null,{"$f":"IF(OR(F64=1,F65=1,F66=1,F67=1,F68=1,F69=1),0,\"?\")","v":{"$error":"#REF!"}}]
[null,null,null,null,null,1]
["3.4. Other public health measures",null,null,null,null,1]
[null,null,null,null,null,1]
[{"$f":"INTERPRETATION!D85","v":{"$error":"#REF!"}},{"$f":"INTERPRETATION!E85","v":0},null,{"$f":"INTERPRETATION!F85","v":0},{"$f":"IF(OR('[1]LUIK 4 - RISICO''S VGZ'!$D$52=0,'SECTION3 + SCORE'!F126=0),INTERPRETATION!G85,\"?\")","v":{"$error":"#REF!"}},1]
[{"$f":"INTERPRETATION!D86","v":{"$error":"#REF!"}},{"$f":"INTERPRETATION!E86","v":0},null,{"$f":"INTERPRETATION!F86","v":0},{"$f":"IF(OR('[1]LUIK 4 - RISICO''S VGZ'!$D$52=0,'SECTION3 + SCORE'!F126=0),INTERPRETATION!G86,\"?\")","v":{"$error":"#REF!"}},1]
[null,null,null,null,null,1]
["POINTS OF ATTENTION FOR EVENT",null,"Sufficient attention should be paid to the prevention of sunburn.  This must be done prior to the event.  Make sure that visitors bring sunscreen, sunglasses and a hat to the event.",null,null,{"$f":"IF(OR('[1]LUIK 4 - RISICO''S VGZ'!$D$52=0,'SECTION3 + SCORE'!F126=0),RESULTS!$H82,\"?\")","v":{"$error":"#REF!"}}]
[null,null,"If security problems are expected, this should be brought to the attention of the police.",null,null,{"$f":"IF(OR('[1]LUIK 4 - RISICO''S VGZ'!$D$52=0,'SECTION3 + SCORE'!F126=0),RESULTS!$H83,\"?\")","v":{"$error":"#REF!"}}]
[null,null,"During hot weather, medical resources/facilities may be in high demand and visitors may even go into a coma, especially as a result of dehydration.  Therefore, organisers must provide free drinking water when outdoor temperatures exceed 27°C",null,null,{"$f":"IF(OR('[1]LUIK 4 - RISICO''S VGZ'!$D$52=0,'SECTION3 + SCORE'!F126=0),RESULTS!$H84,\"?\")","v":{"$error":"#REF!"}}]
[null,null,"Consult the relevant tables to find out how many toilets should be arranged.  Do not forget to subtract the number of fixed toilets from the total number of required toilets!",null,null,{"$f":"IF(OR('[1]LUIK 4 - RISICO''S VGZ'!$D$52=0,'SECTION3 + SCORE'!F126=0),RESULTS!$H85,\"?\")","v":{"$error":"#REF!"}}]
[null,null,"If portable toilets are not regularly cleaned and emptied, they will not or hardly be used.  Instead, visitors will opt to use the surrounding area as a toilet.  It is important that the task of cleaning the toilets is assigned to a specific team and that a clear responsible person is nominated in case of questions from the Operational Control Centre",null,null,{"$f":"IF(OR('[1]LUIK 4 - RISICO''S VGZ'!$D$52=0,'SECTION3 + SCORE'!F126=0),RESULTS!$H86,\"?\")","v":{"$error":"#REF!"}}]
[null,null,"Good waste management during the event helps avoid clean-up issues after the event.  Check whether the people attending the event can find the bins (mark bins with a clear logo)",null,null,{"$f":"IF(OR('[1]LUIK 4 - RISICO''S VGZ'!$D$52=0,'SECTION3 + SCORE'!F126=0),RESULTS!$H87,\"?\")","v":{"$error":"#REF!"}}]
[null,null,"Check whether it is possible to separate waste (Plastic, Metal & Drink cartons, general waste, etc.)",null,null,{"$f":"IF(OR('[1]LUIK 4 - RISICO''S VGZ'!$D$52=0,'SECTION3 + SCORE'!F126=0),RESULTS!$H88,\"?\")","v":{"$error":"#REF!"}}]
[null,null,"Check whether waste is collected during the event (also at weekends)  If no waste is collected during the weekend, arrangements should be made to store waste in a location where it will not inconvenience anyone",null,null,{"$f":"IF(OR('[1]LUIK 4 - RISICO''S VGZ'!$D$52=0,'SECTION3 + SCORE'!F126=0),RESULTS!$H89,\"?\")","v":{"$error":"#REF!"}}]
[null,null,"Do food stalls have access to a properly functioning cold chain. In the absence of a sound cold chain, visitors may suffer food poisoning.  Arrangements made with regard to the cold chain must also be discussed with the fire department !",null,null,{"$f":"IF(OR('[1]LUIK 4 - RISICO''S VGZ'!$D$52=0,'SECTION3 + SCORE'!F126=0),RESULTS!$H90,\"?\")","v":{"$error":"#REF!"}}]
[null,null,"Stalls using fire must meet all requirements set by the fire department.  Naturally, a minimum requirement is that a fire extinguisher be present.",null,null,{"$f":"IF(OR('[1]LUIK 4 - RISICO''S VGZ'!$D$52=0,'SECTION3 + SCORE'!F126=0),RESULTS!$H91,\"?\")","v":{"$error":"#REF!"}}]
[null,null,"It is advisable to recommend that visitors with a chronic condition carry a medical card with them, along with their medication. If desired, such visitors can hand over their medical card to the medical staff on site.",null,null,{"$f":"IF(OR('[1]LUIK 4 - RISICO''S VGZ'!$D$52=0,'SECTION3 + SCORE'!F126=0),RESULTS!$H92,\"?\")","v":{"$error":"#REF!"}}]
[null,null,"It is recommended to distribute flyers with information about prevention and the availability (or unavailability) of medical staff on site during ticket sales.",null,null,{"$f":"IF(OR('[1]LUIK 4 - RISICO''S VGZ'!$D$52=0,'SECTION3 + SCORE'!F126=0),RESULTS!$H93,\"?\")","v":{"$error":"#REF!"}}]
["POINTS OF ATTENTION FOR CAMPSITE",null,"Drinking water supply system with sufficient flow rate",null,null,{"$f":"IF(OR('[1]LUIK 4 - RISICO''S VGZ'!$D$52=0,'SECTION3 + SCORE'!F126=0),RESULTS!$H94,\"?\")","v":{"$error":"#REF!"}}]
[null,null,"Consult the relevant tables to find out how many toilets should be arranged.  Do not forget to subtract the number of fixed toilets from the total number of required toilets!",null,null,{"$f":"IF(OR('[1]LUIK 4 - RISICO''S VGZ'!$D$52=0,'SECTION3 + SCORE'!F126=0),RESULTS!$H95,\"?\")","v":{"$error":"#REF!"}}]
[null,null,"The must be ample shower facilities!!",null,null,{"$f":"IF(OR('[1]LUIK 4 - RISICO''S VGZ'!$D$52=0,'SECTION3 + SCORE'!F126=0),RESULTS!$H96,\"?\")","v":{"$error":"#REF!"}}]
[null,null,"It is advisable to set up a system with medical services that allows for the storage and labelling of chronic medication, especially when said medication is to be kept cool",null,null,{"$f":"IF(OR('[1]LUIK 4 - RISICO''S VGZ'!$D$52=0,'SECTION3 + SCORE'!F126=0),RESULTS!$H97,\"?\")","v":{"$error":"#REF!"}}]
["NOT APPLICABLE",null,null,null,null,{"$f":"IF(OR(F77=1,F78=1,F79=1,F80=1,F81=1,F82=1,F83=1,F84=1,F85=1,F86=1,F87=1,F88=1,F89=1,F90=1,F91=1,F92=1),0,\"?\")","v":{"$error":"#REF!"}}]
[null,null,null,null,null,{"$f":"F95","v":1}]
["3.5. Other administrative details",null,null,null,null,{"$f":"(IF(AND(F97=0,F98=0,F99=0,F100=0,F101=0),0,1))","v":1}]
[null,null,null,null,null,{"$f":"F95","v":1}]
["Insurance","The insurance details are missing.  Organisers requesting advice from the health inspectorate must at all times arrange for insurance, as their event will necessarily be a major one.",null,null,null,{"$f":"IF('SECTION 1 - APPLICATION'!G53=\"\",1,0)","v":1}]
["Organiser","The organiser’s name is missing.  We recommend refraining from giving advice if the organiser is unknown.",null,null,null,{"$f":"IF('SECTION 1 - APPLICATION'!G25=\"\",1,0)","v":1}]
[null,"The organiser’s phone number is missing.  We recommend refraining from giving advice if the organiser cannot be contacted.",null,null,null,{"$f":"IF(AND('SECTION 1 - APPLICATION'!G30=\"\",'SECTION 1 - APPLICATION'!G31=\"\"),1,0)","v":1}]
["Person responsible for medical facilities","The name of the person responsible for medical facilities is missing.  We recommend refraining from giving advice if the organiser is unknown.",null,null,null,{"$f":"IF('SECTION 1 - APPLICATION'!G34=\"\",1,0)","v":1}]
[null,"The phone number of the person responsible for medical facilities is missing.  We recommend refraining from giving advice if the organiser cannot be contacted.",null,null,null,{"$f":"IF(AND('SECTION 1 - APPLICATION'!G38=\"\",'SECTION 1 - APPLICATION'!G39=\"\"),1,0)","v":0}]
[null,null,null,null,null,1]
["4. OVERVIEW OF VARIABLES",null,null,null,null,1]
[null,null,null,null,null,1]
["4.1. Isolation risk",null,null,null,null,1]
[null,null,null,null,null,1]
["DISTANCES","Nearest 100 ambulance",null,{"$f":"'SECTION3 + SCORE'!E6","v":0},null,1]
[null,"Nearest MUG",null,{"$f":"'SECTION3 + SCORE'!E7","v":0},null,1]
[null,"Nearest emergency department",null,{"$f":"'SECTION3 + SCORE'!$E$18","v":0},null,1]
["ACCESSABILITY","Access routes to the event",null,{"$f":"'SECTION3 + SCORE'!$E$8","v":"Please select"},null,1]
["PERIMETERS","Number of perimeters to pass ",null,{"$f":"'SECTION3 + SCORE'!E9","v":0},null,1]
["SITE VARIABLES","Surface area of the site in km2",null,{"$f":"'SECTION3 + SCORE'!E10","v":0},null,1]
[null,"Subsurface of the site",null,{"$f":"'SECTION3 + SCORE'!$E$13","v":"Please select"},null,1]
[null,"Structure where event takes place",null,{"$f":"'SECTION3 + SCORE'!$E$14","v":"Please select"},null,1]
[null,"Please keep in mind that temporary structures must be inspected by the fire department.",null,null,null,{"$f":"IF(D114=\"Tijdelijke structuur\",1,0)","v":0}]
[null,"Presence of stairs",null,{"$f":"'SECTION3 + SCORE'!$E$15","v":"Please select"},null,1]
[null,"Presence of seats",null,{"$f":"'SECTION3 + SCORE'!$E$16","v":"Please select"},null,1]
[null,"Location",null,{"$f":"'SECTION3 + SCORE'!$E$17","v":"Please select"},null,1]
[" NOT APPLICABLE",null,null,null,null,{"$f":"IF(OR(F107=1,F108=1,F109=1,F110=1,F111=1,F112=1,F113=1,F114=1,F116=1,F117=1,F118=1),0,\"?\")","v":0}]
[null,null,null,null,null,1]
["4.2. Population risk",null,null,null,null,1]
[null,null,null,null,null,1]
["AGE","Predominant age group",null,{"$f":"'SECTION3 + SCORE'!$E$42","v":"Please select"},null,1]
["ALCOHOL CONSUMPTION","Is alcohol consumption expected",null,{"$f":"'SECTION3 + SCORE'!$E$43","v":"Please select"},null,1]
["DRUG USE ","Is drug use expected",null,{"$f":"'SECTION3 + SCORE'!$E$44","v":"Please select"},null,1]
["HEALTH","Audience type",null,{"$f":"'SECTION3 + SCORE'!$E$45","v":"Please select"},null,1]
[null,"Known pathologies among at least 10% of the audience",null,{"$f":"'SECTION3 + SCORE'!$E$46","v":"Please select"},null,1]
[null,"Catering",null,{"$f":"'SECTION3 + SCORE'!$E$47","v":"Please select"},null,1]
["ACCOMMODATION","For visitors",null,{"$f":"'SECTION3 + SCORE'!$E$48","v":"Please select"},null,1]
[null,"For organisers",null,{"$f":"'SECTION3 + SCORE'!$E$49","v":"Please select"},null,1]
["EVENT","Type of event",null,{"$f":"'SECTION3 + SCORE'!$E$50","v":"ALL OTHER EVENTS"},null,1]
[null,"Exact duration of the event",null,{"$f":"'SECTION3 + SCORE'!$E$51","v":false},null,1]
[null,"Time of event",null,{"$f":"'SECTION3 + SCORE'!$E$54","v":"Please select"},null,1]
["TEMPERATURE","Expected temperature",null,{"$f":"'SECTION3 + SCORE'!$E$55","v":"Please select"},null,1]

{"sheet":"part 1 letter","index":18,"n_rows":144,"n_cols":9,"rows_kept":144,"cut":false,"hidden":false,"merged":[[109,0,109,3],[107,0,107,3],[65,0,65,2],[39,0,39,3],[137,0,137,1],[132,0,132,1],[130,0,130,2],[133,0,133,1],[134,0,134,1],[135,0,135,1],[91,2,91,3],[90,2,90,3],[136,0,136,1],[41,0,41,3],[45,0,45,3],[42,0,42,3],[43,0,43,3],[44,0,44,3],[40,0,40,3],[46,0,46,3],[105,0,105,3],[100,0,100,2],[101,0,101,2],[92,2,92,3],[93,2,93,3],[94,2,94,3],[95,2,95,3],[77,0,77,2],[48,0,48,3],[56,0,56,2],[57,0,57,2],[96,0,96,3],[62,0,62,2],[67,0,67,2],[83,2,83,3],[61,0,61,2],[103,6,103,13],[67,6,67,11],[68,6,68,11],[89,2,89,3],[103,0,103,2],[46,7,46,8],[47,7,47,8],[50,10,50,16],[88,2,88,3],[79,0,79,2],[85,2,85,3],[86,2,86,3],[87,2,87,3],[84,2,84,3],[75,0,75,2],[63,0,63,2],[64,0,64,2],[68,0,68,2],[69,0,69,2],[55,0,55,2],[47,0,47,3],[18,0,18,2],[127,2,127,3],[128,2,128,3],[127,0,127,1],[128,0,128,1],[113,2,113,3],[114,2,114,3],[115,2,115,3],[116,2,116,3],[120,2,120,3],[121,2,121,3],[122,2,122,3],[123,2,123,3],[120,0,120,1],[121,0,121,1],[122,0,122,1],[123,0,123,1],[115,0,115,1],[116,0,116,1],[113,0,113,1],[114,0,114,1],[34,0,34,3],[35,0,35,3],[38,0,38,3],[36,0,36,3],[1,2,1,3],[0,1,0,3],[30,0,30,4],[71,0,71,3],[9,0,9,2],[16,0,16,2],[37,0,37,3],[10,0,10,2],[6,0,6,2],[7,0,7,2],[8,0,8,2],[25,0,25,2],[27,0,27,2],[24,0,24,2],[28,0,28,2],[49,0,49,3],[3,0,3,3],[12,0,12,3],[4,0,4,3],[5,2,5,3],[5,0,5,1],[26,0,26,2],[17,0,17,2]]}
[null,{"$f":"FIGURES!C41","v":"ICM - Antwerp Field Service - Advice for Increased-risk Events (PRIMA)"}]
[null,null,{"$f":"FIGURES!C36","v":"icm.antwerpen@health.fgov.be"}]
[]
["1. GENERAL EVENT INFORMATION"]
[{"$f":"'SECTION 1 - APPLICATION'!$G$5","v":"VERSION 25"}]
["Municipality",null,{"$f":"'SECTION 1 - APPLICATION'!$G$3","v":0}]
[{"$f":"'WORKING DOC'!A11","v":"Event date"},null,null,{"$f":"'WORKING DOC'!B11","v":"00/00/0000"}]
[{"$f":"'WORKING DOC'!A12","v":"Total attendance after correction"},null,null,{"$f":"'WORKING DOC'!B12","v":0}]
[{"$f":"'WORKING DOC'!A13","v":"Total event duration in hours"},null,null,{"$f":"'WORKING DOC'!B13","v":false}]
[{"$f":"'WORKING DOC'!A14","v":"Maximum number of simultaneous visitors"},null,null,{"$f":"'WORKING DOC'!B14","v":0}]
[{"$f":"'WORKING DOC'!A15","v":"Maximum time spent by said visitors at the event in hours"},null,null,{"$f":"'WORKING DOC'!B15","v":0}]
[]
["2. TEMPORARY MEDICAL CENTRE"]
[]
["2.1. Is a temporary medical centre needed"]
[]
[{"$f":"'WORKING DOC'!A17","v":"Is a temporary medical centre needed during this event"},null,null,{"$f":"IF(AND(D56=0,D57=0,D58=0,D62=0,D64=0,D65=0),\"NEEN\",'WORKING DOC'!H3)","v":{"$error":"#VALUE!"}}]
[{"$f":"'WORKING DOC'!A18","v":"Are additional public health measures needed"},null,null,{"$f":"'WORKING DOC'!B18","v":{"$error":"#REF!"}}]
[{"$f":"'WORKING DOC'!A19","v":"Are additional measures for a campsite needed"},null,null,{"$f":"'WORKING DOC'!B19","v":{"$error":"#REF!"}}]
[]
["2.2 Expected workload and injuries/pathologies"]
[]
["Workload"]
[]
[{"$f":"'WORKING DOC'!A21","v":"Number of life-threatening conditions (after handover)"},null,null,{"$f":"'WORKING DOC'!B21","v":0}]
[{"$f":"'WORKING DOC'!A22","v":"Number of urgent conditions (request doctor and/or ambulance transport to hospital)"},null,null,{"$f":"'WORKING DOC'!B22","v":0}]
[{"$f":"'WORKING DOC'!A23","v":"Number of requests for (basic) medical care"},null,null,{"$f":"'WORKING DOC'!B23","v":0}]
[{"$f":"'WORKING DOC'!A24","v":"Total number of people receiving care"},null,null,{"$f":"'WORKING DOC'!B24","v":0}]
[{"$f":"'WORKING DOC'!A25","v":"Number of simultaneous cases and, therefore, required number of beds/spots in aid station(s)"},null,null,{"$f":"'WORKING DOC'!B25","v":0}]
[null,null,null,null,null,"choice"]
["If a heat wave is expected during the event, the RED figures apply.  The expected workload and injuries/pathologies must be known at least 2 days before the start of the event",null,null,null,null,{"$f":"IF(OR(E25>0,E26>0,E27>0,E28>0,E29>0,E56>0,E57>0,E58>0,E62>0,E64>0,E65>0),1,0)","v":0}]
[null,null,null,null,null,1]
["Conditions/injuries",null,null,null,null,1]
[null,null,null,null,null,1,null,null,"= to be completed"]
["Illness due to alcohol abuse",null,null,null,null,{"$f":"IF('SECTION3 + SCORE'!I43>0,1,0)","v":0}]
["Drug intoxication",null,null,null,null,{"$f":"IF('SECTION3 + SCORE'!$I$44>0,1,0)","v":0},null,null,"= automatically"]
["Trauma due to falls",null,null,null,null,0]
["Trauma due to brawls",null,null,null,null,0]
["Crushing trauma (audience)",null,null,null,null,0]
["Cuts",null,null,null,null,0]
["Hypothermia",null,null,null,null,{"$f":"IF('SECTION3 + SCORE'!L55=1,1,IF('SECTION3 + SCORE'!M55=1,1,IF('SECTION3 + SCORE'!N55=1,1,0)))","v":0}]
["Drowning",null,null,null,null,0]
["Sunburn",null,null,null,null,{"$f":"IF('SECTION3 + SCORE'!O55=1,1,IF('SECTION3 + SCORE'!P55=1,1,0))","v":0}]
["CO poisoning",null,null,null,null,0]
["Insect bites",null,null,null,null,0]
["Exhaustion",null,null,null,null,0]
["Burns",null,null,null,null,{"$f":"'SECTION3 + SCORE'!I70","v":0}]
["Gunshot wounds",null,null,null,null,{"$f":"'SECTION3 + SCORE'!I71","v":0}]
["blank",null,null,null,null,0]
["Not applicable",null,null,null,null,{"$f":"IF(OR(F35=1,F36=1,F37=1,F38=1,F40=1,F41=1,F42=1,F43=1,F44=1,F45=1,F46=1,F49=1),0,1)","v":1}]
[null,null,null,null,null,1]
["2.3. Location of edical resources",null,null,null,null,1]
[null,null,null,null,null,1]
["Doctors and nurses",null,null,null,null,1]
[null,null,null,null,null,1]
[{"$f":"'WORKING DOC'!A42","v":"Minimum number of MUG teams"},null,null,{"$f":"'WORKING DOC'!B42","v":0},null,1,null,{"$f":"IF('SECTION3 + SCORE'!I55=33,'part 1 letter'!D56,\"?\")","v":"?"}]
[{"$f":"'WORKING DOC'!A43","v":"Minimum number of nurses (other than MUG team(s))"},null,null,{"$f":"'WORKING DOC'!B43","v":0},null,1]
[{"$f":"'WORKING DOC'!A44","v":"Minimum number of doctors (other than MUG team(s))"},null,null,{"$f":"'WORKING DOC'!B44","v":0},null,1]
[null,null,null,null,null,1]
["Other aid workers",null,null,null,null,1]
[null,null,null,null,null,1]
[{"$f":"'WORKING DOC'!A28","v":"Minimum number of ambulances"},null,null,{"$f":"'WORKING DOC'!B28","v":0},null,1]
[{"$f":"'WORKING DOC'!A29","v":"  Note : ambulances are always manned by 2 ambulance aid workers"},null,{"$f":"'WORKING DOC'!B29","v":0},null,null,{"$f":"IF(D62=0,0,1)","v":0}]
[{"$f":"'WORKING DOC'!A30","v":"Minimum number of BLS teams"},null,null,{"$f":"'WORKING DOC'!B30","v":{"$error":"#VALUE!"}},null,1]
[{"$f":"'WORKING DOC'!A31","v":"Minimum number of other aid workers (excluding the BLS teams and the ambulance aid workers)"},null,null,{"$f":"'WORKING DOC'!B31","v":0},null,1]
[{"$f":"'WORKING DOC'!A32","v":"Note : if this number is equal to 0, the ambulance aid worker is responsible\nfor transport, if necessary, as well as general medical assistance."},null,{"$f":"'WORKING DOC'!B32","v":0},null,null,{"$f":"IF(D65=0,0,1)","v":0}]
[null,null,null,null,null,1]
[{"$f":"'WORKING DOC'!A34","v":"Can the roles of ambulance aid worker and BLS team member be combined"},null,null,{"$f":"IF(D64=0,\"niet van toepassing\",\"Maak uw keuze\")","v":{"$error":"#VALUE!"}},null,{"$f":"IF(D68=\"ja\",1,IF(D68=\"neen\",1,0))","v":{"$error":"#VALUE!"}}]
[{"$f":"'WORKING DOC'!A35","v":"Can the roles of ambulance aid worker and aid station worker be combined"},null,null,{"$f":"IF(D64=0,\"niet van toepassing\",\"Maak uw keuze\")","v":{"$error":"#VALUE!"}},null,{"$f":"IF(D69=\"ja\",1,IF(D69=\"neen\",1,0))","v":{"$error":"#VALUE!"}}]
[{"$f":"'WORKING DOC'!A36","v":"Can the roles of BLS team member and aid station worker be combined"},null,null,{"$f":"IF(D64=0,\"niet van toepassing\",\"Maak uw keuze\")","v":{"$error":"#VALUE!"}},null,{"$f":"IF(D70=\"ja\",1,IF(D70=\"neen\",1,0))","v":{"$error":"#VALUE!"}}]
[null,null,null,null,null,1]
["A representative of Medical, Sanitary & Psychosocial emergency services must be present in the Operational Control Centre to help coordinate medical assistance and follow up on cases handed over to hospitals.  This person must at least be a qualified MUG nurse.",null,null,null,null,1]
[null,null,null,null,null,{"$f":"F72","v":1}]
["Aid stations",null,null,null,null,1]
[null,null,null,null,null,1]
[{"$f":"'WORKING DOC'!A38","v":"Minimum area for the aid station"},null,null,{"$f":"'WORKING DOC'!B38","v":12},null,1]
[null,null,null,null,null,1]
[{"$f":"'WORKING DOC'!A40","v":"Should multiple aid stations be setp up"},null,null,"Please select",null,1]
[null,null,null,null,null,1]
["*** Specify the number and location ***",null,null,null,null,{"$f":"IF(D78=\"JA\",1,0)","v":0}]
[null,null,null,null,null,{"$f":"F80","v":0}]
["2.4. Communication model",null,null,null,null,1]
[null,null,null,null,null,1]
["MODEL","TYPE","CALL GROUPS",null,null,1]
["Mobile","Basic","Exchange mobile numbers of responsible persons!",null,null,{"$f":"IF(INTERPRETATION!$J$91=0,1,0)","v":{"$error":"#DIV/0!"}}]
["Model 1","Minimum","Call group for multidisciplinary coordination and consultation",null,null,{"$f":"IF(INTERPRETATION!$J$91=1,1,0)","v":{"$error":"#DIV/0!"}}]
["Model 1","Minimum","Operational medical call group",null,null,{"$f":"IF(INTERPRETATION!$J$91=1,1,0)","v":{"$error":"#DIV/0!"}}]
["Model 2","Medium","Call group for multidisciplinary coordination and consultation",null,null,{"$f":"IF(INTERPRETATION!$J$91=2,1,0)","v":{"$error":"#DIV/0!"}}]
["Model 2","Medium","Call group for medical operations",null,null,{"$f":"IF(INTERPRETATION!$J$91=2,\"1\",\"0\")","v":{"$error":"#DIV/0!"}}]
["Model 2","Medium","Call group for medical logistics",null,null,{"$f":"IF(INTERPRETATION!$J$91=2,\"1\",\"0\")","v":{"$error":"#DIV/0!"}}]
["Model 3","Maximum","Call group for multidisciplinary coordination and consultation",null,null,{"$f":"IF(INTERPRETATION!$J$91=3,1,0)","v":{"$error":"#DIV/0!"}}]
["Model 3","Maximum","Call group for medical operations",null,null,{"$f":"IF(INTERPRETATION!$J$91=3,1,0)","v":{"$error":"#DIV/0!"}}]
["Model 3","Maximum","Call group for medical logistics",null,null,{"$f":"IF(INTERPRETATION!$J$91=3,1,0)","v":{"$error":"#DIV/0!"}}]
["Model 3","Maximum","Call group for medical coordination",null,null,{"$f":"IF(INTERPRETATION!$J$91=3,1,0)","v":{"$error":"#DIV/0!"}}]
["Model 3","Maximum","Call group for medical regulation",null,null,{"$f":"IF(INTERPRETATION!$J$91=3,1,0)","v":{"$error":"#DIV/0!"}}]
["Model 3","Maximum","Medical call group (backup)",null,null,{"$f":"IF(INTERPRETATION!$J$91=3,1,0)","v":{"$error":"#DIV/0!"}}]
["NOT APPLICABLE",null,{"$f":"#REF!","v":{"$error":"#REF!"}},{"$f":"#REF!","v":{"$error":"#REF!"}},null,{"$f":"IF(OR(F85=1,F86=1,F87=1,F88=1,F89=1,F90=1,F91=1,F92=1,F93=1,F94=1,F95=1,F96=1),0,1)","v":{"$error":"#DIV/0!"}}]
[null,null,null,null,null,1]
["2.5. Relationship with the HC 100",null,null,null,null,1]
[null,null,null,null,null,1]
[{"$f":"'WORKING DOC'!A46","v":"Has the application form with relevant information been submitted to the HC100 (DOC 100)"},null,null,{"$f":"'WORKING DOC'!B46","v":"NEEN"},null,1]
[{"$f":"'WORKING DOC'!A47","v":"Have the site maps been submitted to the HC100"},null,null,{"$f":"'WORKING DOC'!B47","v":"JA"},null,1]
[null,null,null,null,null,1]
[{"$f":"'WORKING DOC'!A49","v":"Date on which the HC100 should be notified if the answer to one of these questions is “NO”"},null,null,{"$f":"'part 2 letter'!C45","v":{"$error":"#VALUE!"}},null,1]
[null,null,null,null,null,1]
["Note : if these documents are not submitted in time, this will automatically trigger a negative advice and the event may not be able to go ahead.",null,null,null,null,1]
[null,null,null,null,null,1]
["After the event, the organisation responsible for preventive aid should evaluate and grade their performance by completing the “Care provided” document and returning it to : icm.antwerpen@health.fgov.be",null,null,null,null,1]
[null,null,null,null,null,1]
["3. ADMINISTRATIVE DETAILS ",null,null,null,null,1]
[null,null,null,null,null,1]
["3.1. Organiser",null,null,null,null,1]
[null,null,null,null,null,1]
["Name and first name",null,{"$f":"IF('SECTION 1 - APPLICATION'!G25=\"\",\"niet ingevuld\",'SECTION 1 - APPLICATION'!G25)","v":"niet ingevuld"},null,null,1]
["Organisation",null,{"$f":"IF('SECTION 1 - APPLICATION'!G24=\"\",\"niet ingevuld\",'SECTION 1 - APPLICATION'!G24)","v":"niet ingevuld"},null,null,1]
["Outside event",null,{"$f":"IF('SECTION 1 - APPLICATION'!G30=\"\",\"niet ingevuld\",'SECTION 1 - APPLICATION'!G30)","v":"niet ingevuld"},null,null,1]
["During event",null,{"$f":"IF('SECTION 1 - APPLICATION'!G31=\"\",\"niet ingevuld\",'SECTION 1 - APPLICATION'!G31)","v":"niet ingevuld"},null,null,1]
[null,null,null,null,null,1]
["3.2. Person responsible for medical facilities",null,null,null,null,1]
[null,null,null,null,null,1]
["Name and first name",null,{"$f":"IF('SECTION 1 - APPLICATION'!G34=\"\",\"niet ingevuld\",'SECTION 1 - APPLICATION'!G34)","v":"niet ingevuld"},null,null,1]
["Organisation",null,{"$f":"IF('SECTION 1 - APPLICATION'!G39=\"\",\"niet ingevuld\",'SECTION 1 - APPLICATION'!G39)","v":"niet ingevuld"},null,null,1]
["Outside event",null,{"$f":"IF('SECTION 1 - APPLICATION'!G40=\"\",\"niet ingevuld\",'SECTION 1 - APPLICATION'!G40)","v":"niet ingevuld"},null,null,1]
["During event",null,{"$f":"IF('SECTION 1 - APPLICATION'!G41=\"\",\"niet ingevuld\",'SECTION 1 - APPLICATION'!G41)","v":"niet ingevuld"},null,null,1]
[null,null,null,null,null,1]
["3.3. Insurance",null,null,null,null,1]
[null,null,null,null,null,1]
["Insurance company",null,{"$f":"IF('SECTION 1 - APPLICATION'!G53=\"\",\"niet ingevuld\",'SECTION 1 - APPLICATION'!G53)","v":"niet ingevuld"},null,null,1]
["Policy number",null,{"$f":"IF('SECTION 1 - APPLICATION'!G55=\"\",\"niet ingevuld\",'SECTION 1 - APPLICATION'!G55)","v":"niet ingevuld"},null,null,1]
[null,null,null,null,null,{"$f":"IF(OR(F134=1,F135=1,F136=1,F137=1,F138=1),1,0)","v":0}]
["3.4 Other persons responsible",null,null,null,null,{"$f":"IF(OR(F135=1,F136=1,F137=1,F138=1,F134=1),1,0)","v":0}]
[null,null,null,null,null,{"$f":"IF(OR(F136=1,F137=1,F138=1,F134=1,F135=1),1,0)","v":0}]
["Surname and first name",null,"role","Mobile",null,{"$f":"IF(OR(F137=1,F138=1,F134=1,F135=1,F136=1),1,0)","v":0}]
[{"$f":"'SECTION 1 - APPLICATION'!B46","v":0},null,{"$f":"'SECTION 1 - APPLICATION'!E46","v":0},{"$f":"'SECTION 1 - APPLICATION'!H46","v":0},null,{"$f":"IF(OR(A134=\"\",A134=0),0,1)","v":0}]
[{"$f":"'SECTION 1 - APPLICATION'!B47","v":0},null,{"$f":"'SECTION 1 - APPLICATION'!E47","v":0},{"$f":"'SECTION 1 - APPLICATION'!H47","v":0},null,{"$f":"IF(OR(A135=\"\",A135=0),0,1)","v":0}]
[{"$f":"'SECTION 1 - APPLICATION'!B48","v":0},null,{"$f":"'SECTION 1 - APPLICATION'!E48","v":0},{"$f":"'SECTION 1 - APPLICATION'!H48","v":0},null,{"$f":"IF(OR(A136=\"\",A136=0),0,1)","v":0}]
[{"$f":"'SECTION 1 - APPLICATION'!B49","v":0},null,{"$f":"'SECTION 1 - APPLICATION'!E49","v":0},{"$f":"'SECTION 1 - APPLICATION'!H49","v":0},null,{"$f":"IF(OR(A137=\"\",A137=0),0,1)","v":0}]
[{"$f":"'SECTION 1 - APPLICATION'!B50","v":0},null,{"$f":"'SECTION 1 - APPLICATION'!E50","v":0},{"$f":"'SECTION 1 - APPLICATION'!H50","v":0},null,{"$f":"IF(OR(A138=\"\",A138=0),0,1)","v":0}]
[]
[]
[{"$f":"FIGURES!C37","v":"Dr. W. Haenen"}]
[{"$f":"FIGURES!C42","v":"Secretary of the Provincial Medical Committee of Antwerp"}]
[{"$f":"FIGURES!C43","v":"Federal Health Inspector for the Province of Antwerp"}]
[{"$f":"FIGURES!C44","v":"Chairman of the Urgent Medical Assistance Committee of Antwerp"}]

{"sheet":"part 2 letter","index":19,"n_rows":140,"n_cols":8,"rows_kept":140,"cut":false,"hidden":false,"merged":[[39,0,39,1],[52,0,52,1],[30,0,30,1],[30,2,30,3],[47,0,47,3],[49,0,49,1],[50,0,50,1],[51,0,51,1],[50,2,50,3],[36,0,36,1],[37,0,37,1],[49,2,49,3],[52,2,52,3],[40,0,40,1],[40,2,40,3],[65,0,65,3],[41,2,41,3],[42,0,42,1],[42,2,42,3],[43,0,43,1],[57,2,57,3],[53,0,53,1],[54,0,54,1],[55,0,55,1],[70,0,70,3],[68,0,68,3],[69,0,69,3],[66,0,66,3],[67,0,67,3],[56,0,56,1],[57,0,57,1],[72,0,72,4],[74,0,74,3],[64,0,64,3],[56,2,56,3],[75,0,75,3],[77,0,88,0],[27,0,27,1],[29,0,29,1],[31,0,31,1],[31,2,31,3],[34,0,34,1],[37,2,37,3],[26,2,26,3],[27,2,27,3],[29,2,29,3],[28,0,28,1],[28,2,28,3],[26,0,26,1],[34,2,34,3],[32,0,32,1],[33,2,33,3],[35,2,35,3],[45,0,45,3],[39,2,39,3],[38,0,38,1],[43,2,43,3],[41,0,41,1],[35,0,35,1],[14,2,14,3],[15,0,15,1],[15,2,15,3],[22,0,22,3],[17,2,17,3],[44,0,44,1],[61,0,61,3],[63,0,63,3],[44,2,44,3],[59,0,59,4],[16,0,16,1],[17,0,17,1],[18,0,18,3],[16,2,16,3],[24,0,24,1],[25,0,25,1],[24,2,24,3],[25,2,25,3],[38,2,38,3],[53,2,53,3],[54,2,54,3],[55,2,55,3],[36,2,36,3],[51,2,51,3],[13,2,13,3],[3,0,3,4],[9,2,9,3],[10,2,10,3],[11,2,11,3],[7,0,7,3],[9,0,9,1],[10,0,10,1],[11,0,12,1],[103,0,103,4],[134,1,134,2],[107,1,107,2],[108,1,108,2],[109,1,109,2],[110,1,110,2],[111,1,111,2],[112,1,112,2],[117,1,117,2],[115,1,115,3],[129,0,130,0],[131,0,133,0],[131,1,131,2],[132,1,132,2],[133,1,133,2],[129,1,129,2],[130,1,130,2],[128,1,128,2],[78,1,78,3],[79,1,79,3],[127,1,127,2],[112,0,118,0],[121,0,121,4],[126,0,127,0],[119,0,119,3],[124,1,124,2],[123,1,123,2],[126,1,126,2],[85,1,85,3],[86,1,86,3],[97,1,97,3],[99,1,99,3],[98,1,98,3],[89,1,89,3],[93,0,93,3],[88,1,88,3],[100,0,101,0],[114,1,114,2],[116,1,116,2],[125,1,125,2],[82,1,82,3],[80,1,80,3],[81,1,81,3],[89,0,92,0],[87,1,87,3],[90,1,90,3],[0,2,0,4],[1,2,1,4],[95,0,95,2],[118,1,118,2],[105,0,105,4],[107,0,109,0],[113,1,113,2],[98,0,99,0],[100,1,100,3],[101,1,101,3],[83,1,83,3],[92,1,92,3],[84,1,84,3],[91,1,91,3],[13,0,14,1],[5,0,5,4],[20,0,20,4],[33,0,33,1],[12,2,12,3],[77,1,77,3]]}
[null,null,{"$f":"FIGURES!C41","v":"ICM - Antwerp Field Service - Advice for Increased-risk Events (PRIMA)"}]
[null,null,{"$f":"FIGURES!C36","v":"icm.antwerpen@health.fgov.be"}]
[]
["4. MISCELLANEOUS MEASURES"]
[]
["4.1. Measures for local residents"]
[]
[{"$f":"INTERPRETATION!D37","v":"Should measures be taken for local residents"},null,null,null,{"$f":"INTERPRETATION!$G37","v":"NEEN"}]
[null,null,null,null,null,"choice"]
["Residents inside isolation perimeter",null,"Look up the total number of local residents living near the event site\nInform these residents of the event.  Check whether a liaison officer should be appointed to answer questions",null,null,{"$f":"RESULTS!$H43","v":0}]
["Retirement home/hospital inside perimeter",null,"Check that the institute in question has been notified of the event and that there is an alternative access point.\nIF NOT : allocate additional resources in or near the institute in question for the entire duration it will have to run autonomously",null,null,{"$f":"RESULTS!$H44","v":0}]
["On-call GP needed inside perimeter",null,"Notify GPs in the vicinity of the event, informing them of the time that the perimeter will be closed",null,null,{"$f":"RESULTS!$H45","v":0}]
[null,null,"Share the phone number of the Operational Control Centre (GP consultations + parking)",null,null,{"$f":"RESULTS!$H46","v":0}]
["On-call nurse needed inside perimeter",null,"Notify on-call nurses in the vicinity of the event, informing them of the time that the perimeter will be closed",null,null,{"$f":"RESULTS!$H47","v":0}]
[null,null,"Share the phone number of the Operational Control Centre (Nurse consultations + parking)",null,null,{"$f":"RESULTS!$H48","v":0}]
["meal delivery needed inside perimeter",null,"Contact the PCSW to check whether the service(s) responsible for meal delivery are aware of the event and, if necessary, know where they will pass  the perimeter",null,null,{"$f":"RESULTS!$H49","v":0}]
["on-call pharmacist needed inside perimeter ",null,"Ask whether it is possible for the on-call pharmacist to arrange for a replacement\nIF NOT POSSIBLE: ensure free access to the pharmacy",null,null,{"$f":"RESULTS!$H50","v":0}]
["Number of municipalities concerned",null,"Are all municipalities involved in the planning process",null,null,{"$f":"RESULTS!$H51","v":0}]
["NOT APPLICABLE",null,null,null,null,{"$f":"IF(OR(F10=1,F11=1,F12=1,F13=1,F14=1,F15=1,F16=1,F17=1,F18=1),0,1)","v":1}]
[null,null,null,null,null,1]
["4.2. Measures for multidisciplinary consultation",null,null,null,null,1]
[null,null,null,null,null,1]
[{"$f":"INTERPRETATION!D74","v":"Is multidisciplinary adjustment necessary"},{"$f":"INTERPRETATION!E74","v":0},null,{"$f":"INTERPRETATION!F74","v":0},{"$f":"INTERPRETATION!G74","v":"JA"},1]
[null,null,null,null,null,1]
["Presence of utilities",null,"Check with the fire brigade whether the capacity of the utilities is sufficient for the requirements of this event.  \nAlso check that they will not hinder/cause any problems for the traffic flow of medical services",null,null,{"$f":"IF('SECTION3 + SCORE'!I66=0,0,\"1\")","v":0}]
["Means of communication",null,"Check that the emergency services are familiar with the communication equipment used, if specific equipment is used.",null,null,{"$f":"'SECTION3 + SCORE'!$I$67","v":0}]
["Presence of dangerous animals",null,"The event must be adapted to the presence of large animals.",null,null,{"$f":"'SECTION3 + SCORE'!I68","v":0}]
["International reputation (> 9 % foreigners expected)",null,"The presence of foreign visitors may lead to language problems.  Have the required measures been taken to remedy such issues",null,null,{"$f":"'SECTION3 + SCORE'!I69","v":0}]
["Presence of wheelchair users",null,"If the event is visited by multiple wheelchair users, access to the event and the corresponding facilities must be adapted accordingly.",null,null,{"$f":"IF('SECTION3 + SCORE'!I46=1,1,0)","v":0}]
["Presence of children",null,"Has thought been given to the fact that children may get lost. Is there a fixed place where lost/missing children can wait to be picked up. The event’s organisers may recommend that children’s parents or guardians write their mobile number/contact details on the child’s arm or on a wristband.",null,null,{"$f":"IF('SECTION3 + SCORE'!E42=\"< 10 jaar met begeleiding van de ouders\",1,IF('SECTION3 + SCORE'!E42=\"alle leeftijden\",1,0))","v":0}]
["Presence of children under the age of 10 without parental supervision",null,"It is strongly recommended to designate a specific area where parents and guardians can pick up lost/missing children. Make sure that a proper monitoring system is in place",null,null,{"$f":"IF('SECTION3 + SCORE'!E42=\"< 10 jaar zonder begeleiding van de ouders\",1,0)","v":0}]
["Presence of drugs",null,"Ascertain which drugs were used.",null,null,{"$f":"IF('SECTION3 + SCORE'!E44=\"Overvloedig gebruik\",1,0)","v":0}]
["Presence of fireworks",null,"Fireworks can cause burns",null,null,{"$f":"'SECTION3 + SCORE'!I70","v":0}]
["Presence of weapons",null,"Weapons can cause gunshot and/or stab wounds",null,null,{"$f":"'SECTION3 + SCORE'!I71","v":0}]
["Sold out",null,"At sold-out events, visitors have less room to move on site.  At the same time, people will attempt to access the site unlawfully.  This increases the workload of emergency services, as they will also have to respond to problems outside the event proper, at the edge of the perimeter",null,null,{"$f":"'SECTION3 + SCORE'!I72","v":0}]
["Simultaneous increased-risk events nearby",null,"Organise a multi-disciplinary coordination meeting or ensure that the Operational Control Centres of the various events can contact each other",null,null,{"$f":"'SECTION3 + SCORE'!I73","v":0}]
["Specific risks in the area",null,"Check whether these specific risks may affect the event.",null,null,{"$f":"'SECTION3 + SCORE'!I74","v":0}]
["Problem according to police",null,"A multidisciplinary coordination meeting should be scheduled with the police",null,null,{"$f":"'SECTION3 + SCORE'!I75","v":0}]
["Problem according to the fire department",null,"A multidisciplinary coordination meeting should be scheduled with the police",null,null,{"$f":"'SECTION3 + SCORE'!I76","v":0}]
["Previous negative experience with this type of event",null,"What solution was suggested and/or offered in these cases\nAre there sufficient guarantees to avoid these problems this time",null,null,{"$f":"'SECTION3 + SCORE'!I77","v":0}]
["Organiser’s reputation",null,"If the organiser’s reputation is unknown, it is recommended to have various parties visit the site prior to the event and, if necessary, during the event",null,null,{"$f":"'SECTION3 + SCORE'!I60","v":0}]
["Event has own security in addition to police",null,"Check whether other emergency services are sufficiently aware of the resources/facilities allocated.",null,null,{"$f":"'SECTION3 + SCORE'!I78","v":0}]
["Specific legislation concerning this type of event",null,"Check whether all legal requirements have been met  There is currently specific legislation in place for car rallies, football matches and motocross events, in addition to the provision of the Royal Decree of 16/02/06",null,null,{"$f":"'SECTION3 + SCORE'!I79","v":0}]
["Should an operation order be drawn up for the emergency medical service ",null,"An operation order must be submitted to the health inspectorate at least 10 days prior to the event. If this deadline is not met, this may automatically trigger a negative advice and the event may not be able to go ahead.",null,null,{"$f":"'SECTION3 + SCORE'!I104","v":1}]
["Submission deadline :",null,{"$f":"INTERPRETATION!K16","v":{"$error":"#VALUE!"}},null,null,{"$f":"'SECTION3 + SCORE'!I104","v":1}]
["NOT APPLICABLE",null,null,null,null,{"$f":"IF(OR(F25=1,F26=1,F27=1,F28=1,F29=1,F33=1,F34=1,F35=1,F36=1,F37=1,F38=1,F39=1,F40=1,F41=1,F42=1,F43=1,F44=1,F45=1),0,1)","v":0}]
[null,null,null,null,null,{"$f":"F48","v":1}]
["Specific multidisciplinary points of attention ",null,null,null,null,{"$f":"IF(AND(F50=0,F51=0,F52=0,F53=0,F54=0,F55=0,F56=0,F58=0),0,1)","v":1}]
[null,null,null,null,null,{"$f":"F48","v":1},null,5]
["Are tents open to the public",null,"If tents are open to the public, the fire department must advise whether all evacuation requirements have been met",null,null,{"$f":"'SECTION3 + SCORE'!I81","v":0}]
["Number of tents with a surface area greater than 50 m2",null,{"$f":"'SECTION3 + SCORE'!J82","v":"Please select"},null,null,{"$f":"'SECTION3 + SCORE'!I82","v":0}]
["Main utilities used",null,{"$f":"'SECTION3 + SCORE'!E83","v":"Please select"},null,null,{"$f":"'SECTION3 + SCORE'!I83","v":0}]
["Are VIPs expected",null,"* VIPs form an increased risk for the police and for other emergency services.  Have emergency services coordination to assess the impact of the policing plan on the plans of other emergency services\n* Does the presence of a particular VIP require that additional measures be taken by the teams on site.",null,null,{"$f":"'SECTION3 + SCORE'!I84","v":0}]
["Are there NADAR or HERAS fences",null,"In long stretches of fencing, are there enough places for emergency services to cross the fences",null,null,{"$f":"'SECTION3 + SCORE'!I85","v":0}]
["Is the event easily accessible by public transport",null,"* If public transport reaches all the way up to the event : is there a separate road for public transport\n* If people get off public transport near the event : is there a separate road for pedestrians.  Has care been taken to ensure that this road does not cross the road used by emergency services.\n* If there is no public transport in the vicinity of the event : is this taken into account in the mobility plan",null,null,{"$f":"'SECTION3 + SCORE'!I86","v":1}]
["Are there enough car parks nearby",null,{"$f":"'SECTION3 + SCORE'!E87","v":"Please select"},null,null,1]
["Are the car parks supervised in any way (alerting emergency services in the event of an emergency)",null,"Problems can also occur on car parks.  Can parking attendants (if any) contact the Operational Control Centre to call in assistance if necessary.",null,null,1]
["Does the event have its own shuttle service",null,"Is the shuttle service clearly recognisable\nare the stops of the shuttle service clearly marked on the map\nIs there are specific route for the shuttle service",null,null,{"$f":"'SECTION3 + SCORE'!I89","v":0}]
[null,null,null,null,null,1]
["4.3. Measures concerning the MIP",null,null,null,null,1]
[null,null,null,null,null,1]
[{"$f":"INTERPRETATION!D79","v":"Are any additional disaster preparedness measures needed"},{"$f":"INTERPRETATION!E79","v":0},null,{"$f":"INTERPRETATION!F79","v":0},{"$f":"INTERPRETATION!G79","v":"NEEN"},1]
[null,null,null,null,null,1]
["QUESTION",null,null,null,null,{"$f":"IF(OR(F65=1,F66=1,F67=1,F68=1,F69=1,F70=1),0,1)","v":1}]
["Have adequate maps of the site been made available to the emergency services",null,null,null,null,{"$f":"'SECTION3 + SCORE'!I94","v":0}]
["Have adequate maps of the total isolation area been made available to the emergency services",null,null,null,null,{"$f":"'SECTION3 + SCORE'!I95","v":0}]
["Is there a clear communication model that can be used in the event of a collective problem  \nIs the communication model used during the event scalable to this system",null,null,null,null,{"$f":"'SECTION3 + SCORE'!I96","v":0}]
["Does the communication model comply with DGH requirements (ASTRID communication with various call groups)",null,null,null,null,{"$f":"'SECTION3 + SCORE'!I97","v":0}]
["Was the 100 switchboard notified of the event",null,null,null,null,{"$f":"'SECTION3 + SCORE'!I98","v":0}]
["Is the Medical Intervention Plan compliant with the Royal Decree of 16/02/06",null,null,null,null,{"$f":"'SECTION3 + SCORE'!I99","v":0}]
["NOT APPLICABLE",null,null,null,null,{"$f":"IF(OR(F65=1,F66=1,F67=1,F68=1,F69=1,F70=1),0,1)","v":1}]
[null,null,null,null,null,1]
["4.4. Other public health measures",null,null,null,null,1]
[null,null,null,null,null,1]
[{"$f":"INTERPRETATION!D85","v":{"$error":"#REF!"}},{"$f":"INTERPRETATION!E85","v":0},null,{"$f":"INTERPRETATION!F85","v":0},{"$f":"INTERPRETATION!G85","v":{"$error":"#REF!"}},1]
[{"$f":"INTERPRETATION!D86","v":{"$error":"#REF!"}},{"$f":"INTERPRETATION!E86","v":0},null,{"$f":"INTERPRETATION!F86","v":0},{"$f":"INTERPRETATION!G86","v":{"$error":"#REF!"}},1]
[null,null,null,null,null,1]
["POINTS OF ATTENTION FOR EVENT","Sufficient attention should be paid to the prevention of sunburn.  This must be done prior to the event.  Make sure that visitors bring sunscreen, sunglasses and a hat to the event.",null,null,null,{"$f":"RESULTS!$H82","v":{"$error":"#REF!"}}]
[null,"If security problems are expected, this should be brought to the attention of the police.",null,null,null,{"$f":"RESULTS!$H83","v":{"$error":"#REF!"}}]
[null,"During hot weather, medical resources/facilities may be in high demand and visitors may even go into a coma, especially as a result of dehydration.  Therefore, organisers must provide free drinking water when outdoor temperatures exceed 27°C",null,null,null,{"$f":"RESULTS!$H84","v":{"$error":"#REF!"}}]
[null,"Consult the relevant tables to find out how many toilets should be arranged.  Do not forget to subtract the number of fixed toilets from the total number of required toilets!",null,null,null,{"$f":"RESULTS!$H85","v":{"$error":"#REF!"}}]
[null,"If portable toilets are not regularly cleaned and emptied, they will not or hardly be used.  Instead, visitors will opt to use the surrounding area as a toilet.  It is important that the task of cleaning the toilets is assigned to a specific team and that a clear responsible person is nominated in case of questions from the Operational Control Centre",null,null,null,{"$f":"RESULTS!$H86","v":{"$error":"#REF!"}}]
[null,"Good waste management during the event helps avoid clean-up issues after the event.  Check whether the people attending the event can find the bins (mark bins with a clear logo)",null,null,null,{"$f":"RESULTS!$H87","v":{"$error":"#REF!"}}]
[null,"Check whether it is possible to separate waste (Plastic, Metal & Drink cartons, general waste, etc.)",null,null,null,{"$f":"RESULTS!$H88","v":{"$error":"#REF!"}}]
[null,"Check whether waste is collected during the event (also at weekends)  If no waste is collected during the weekend, arrangements should be made to store waste in a location where it will not inconvenience anyone",null,null,null,{"$f":"RESULTS!$H89","v":{"$error":"#REF!"}}]
[null,"Do food stalls have access to a properly functioning cold chain. In the absence of a sound cold chain, visitors may suffer food poisoning.  Arrangements made with regard to the cold chain must also be discussed with the fire department !",null,null,null,{"$f":"RESULTS!$H90","v":{"$error":"#REF!"}}]
[null,"Stalls using fire must meet all requirements set by the fire department.  Naturally, a minimum requirement is that a fire extinguisher be present.",null,null,null,{"$f":"RESULTS!$H91","v":{"$error":"#REF!"}}]
[null,"It is advisable to recommend that visitors with a chronic condition carry a medical card with them, along with their medication. If desired, such visitors can hand over their medical card to the medical staff on site.",null,null,null,{"$f":"RESULTS!$H92","v":{"$error":"#REF!"}}]
[null,"It is recommended to distribute flyers with information about prevention and the availability (or unavailability) of medical staff on site during ticket sales.",null,null,null,{"$f":"RESULTS!$H93","v":{"$error":"#REF!"}}]
["POINTS OF ATTENTION FOR CAMPSITE","The drinking water supply system must have a sufficient flow rate !",null,null,null,{"$f":"RESULTS!$H94","v":{"$error":"#REF!"}}]
[null,"Consult the relevant tables to find out how many toilets should be arranged.  Do not forget to subtract the number of fixed toilets from the total number of required toilets!",null,null,null,{"$f":"RESULTS!$H95","v":{"$error":"#REF!"}}]
[null,"The must be ample shower facilities!!",null,null,null,{"$f":"RESULTS!$H96","v":{"$error":"#REF!"}}]
[null,"It is advisable to set up a system with medical services that allows for the storage and labelling of chronic medication, especially when said medication is to be kept cool",null,null,null,{"$f":"RESULTS!$H97","v":{"$error":"#REF!"}}]
["NOT APPLICABLE",null,null,null,null,{"$f":"IF(OR(F78=1,F79=1,F80=1,F81=1,F82=1,F83=1,F84=1,F85=1,F86=1,F87=1,F88=1,F89=1,F90=1,F91=1,F92=1,F93=1),0,1)","v":{"$error":"#REF!"}}]
[null,null,null,null,null,1]
["4.5. Other administrative details",null,null,null,null,{"$f":"(IF(AND(F98=0,F99=0,F100=0,F101=0,F102=0),0,1))","v":1}]
[null,null,null,null,null,{"$f":"F96","v":1}]
["Insurance","The insurance details are missing.  Organisers requesting advice from the health inspectorate must at all times arrange for insurance, as their event will necessarily be a major one.",null,null,null,{"$f":"IF('SECTION 1 - APPLICATION'!G53=\"\",1,0)","v":1}]
["Organiser","The organiser’s name is missing.  We recommend refraining from giving advice if the organiser is unknown.",null,null,null,{"$f":"IF('SECTION 1 - APPLICATION'!G25=\"\",1,0)","v":1}]
[null,"The organiser’s phone number is missing.  We recommend refraining from giving advice if the organiser cannot be contacted.",null,null,null,{"$f":"IF(AND('SECTION 1 - APPLICATION'!G30=\"\",'SECTION 1 - APPLICATION'!G31=\"\"),1,0)","v":1}]
["Person responsible for medical facilities","The name of the person responsible for medical facilities is missing.  We recommend refraining from giving advice if the organiser is unknown.",null,null,null,{"$f":"IF('SECTION 1 - APPLICATION'!G34=\"\",1,0)","v":1}]
[null,"The phone number of the person responsible for medical facilities is missing.  We recommend refraining from giving advice if the organiser cannot be contacted.",null,null,null,{"$f":"IF(AND('SECTION 1 - APPLICATION'!G40=\"\",'SECTION 1 - APPLICATION'!G41=\"\"),1,0)","v":1}]
[null,null,null,null,null,{"$f":"F96","v":1}]
["5. OVERVIEW OF VARIABLES",null,null,null,null,1]
[null,null,null,null,null,1]
["5.1. Isolation risk",null,null,null,null,1]
[null,null,null,null,null,1]
["DISTANCES","Nearest 100 ambulance",null,{"$f":"'SECTION3 + SCORE'!E6","v":0},null,1]
[null,"Nearest MUG",null,{"$f":"'SECTION3 + SCORE'!E7","v":0},null,1]
[null,"Nearest emergency department",null,{"$f":"'SECTION3 + SCORE'!$E$18","v":0},null,1]
["ACCESSABILITY","Access routes to the event",null,{"$f":"'SECTION3 + SCORE'!$E$8","v":"Please select"},null,1]
["PERIMETERS","Number of perimeters to pass ",null,{"$f":"'SECTION3 + SCORE'!E9","v":0},null,1]
["SITE VARIABLES","Surface area of the site in km2",null,{"$f":"'SECTION3 + SCORE'!E10","v":0},null,1]
[null,"Subsurface of the site",null,{"$f":"'SECTION3 + SCORE'!$E$13","v":"Please select"},null,1]
[null,"Structure where event takes place",null,{"$f":"'SECTION3 + SCORE'!$E$14","v":"Please select"},null,1]
[null,"Please keep in mind that temporary structures must be inspected by the fire department.",null,null,null,{"$f":"IF(D115=\"Tijdelijke structuur\",1,0)","v":0}]
[null,"Presence of stairs",null,{"$f":"'SECTION3 + SCORE'!$E$15","v":"Please select"},null,1]
[null,"Presence of seats",null,{"$f":"'SECTION3 + SCORE'!$E$16","v":"Please select"},null,1]
[null,"Location",null,{"$f":"'SECTION3 + SCORE'!$E$17","v":"Please select"},null,1]
[" NOT APPLICABLE",null,null,null,null,{"$f":"IF(OR(F108=1,F109=1,F110=1,F111=1,F112=1,F113=1,F114=1,F115=1,F117=1,F118=1,F119=1),0,1)","v":0}]
[null,null,null,null,null,1]
["5.2. Factors influencing/affecting the health status",null,null,null,null,1]
[null,null,null,null,null,1]
["AGE","Predominant age group",null,{"$f":"'SECTION3 + SCORE'!$E$42","v":"Please select"},null,1]
["ALCOHOL CONSUMPTION","Is alcohol consumption expected",null,{"$f":"'SECTION3 + SCORE'!$E$43","v":"Please select"},null,1]
["DRUG USE ","Is drug use expected",null,{"$f":"'SECTION3 + SCORE'!$E$44","v":"Please select"},null,1]
["HEALTH","Audience type",null,{"$f":"'SECTION3 + SCORE'!$E$45","v":"Please select"},null,1]
[null,"Known pathologies among at least 10% of the audience",null,{"$f":"'SECTION3 + SCORE'!$E$46","v":"Please select"},null,1]
[null,"Catering",null,{"$f":"'SECTION3 + SCORE'!$E$47","v":"Please select"},null,1]
["ACCOMMODATION","For visitors",null,{"$f":"'SECTION3 + SCORE'!$E$48","v":"Please select"},null,1]
[null,"For organisers",null,{"$f":"'SECTION3 + SCORE'!$E$49","v":"Please select"},null,1]
["EVENT","Type of event",null,{"$f":"'SECTION3 + SCORE'!$E$50","v":"ALL OTHER EVENTS"},null,1]
[null,"Exact duration of the event",null,{"$f":"'SECTION3 + SCORE'!$E$51","v":false},null,1]
[null,"Time of event",null,{"$f":"'SECTION3 + SCORE'!$E$54","v":"Please select"},null,1]
["TEMPERATURE","Expected temperature",null,{"$f":"'SECTION3 + SCORE'!$E$55","v":"Please select"},null,1]
[]
[{"$f":"FIGURES!C37","v":"Dr. W. Haenen"}]
[{"$f":"FIGURES!C42","v":"Secretary of the Provincial Medical Committee of Antwerp"}]
[{"$f":"FIGURES!C43","v":"Federal Health Inspector for the Province of Antwerp"}]
[{"$f":"FIGURES!C44","v":"Chairman of the Urgent Medical Assistance Committee of Antwerp"}]

{"sheet":"part 3 letter list","index":20,"n_rows":62,"n_cols":8,"rows_kept":62,"cut":false,"hidden":false,"merged":[[0,2,0,7],[1,2,1,7],[7,6,8,6],[44,6,45,6],[44,7,45,7],[43,0,43,7],[22,0,23,0],[22,1,23,1],[7,2,7,5],[7,0,8,0],[6,0,6,7],[5,0,5,7],[44,0,45,0],[44,1,45,1],[22,6,23,6],[7,1,8,1],[60,2,60,5],[44,2,44,5],[59,0,59,6],[21,0,21,6],[3,0,3,1],[3,2,3,7],[4,1,4,7],[60,6,61,6],[60,0,61,0],[60,1,61,1],[22,2,22,5],[7,7,8,7]]}
[null,null,{"$f":"FIGURES!C41","v":"ICM - Antwerp Field Service - Advice for Increased-risk Events (PRIMA)"}]
[null,null,{"$f":"FIGURES!C36","v":"icm.antwerpen@health.fgov.be"}]
[]
["Re: increased-risk event ",null,{"$f":"'SECTION 1 - APPLICATION'!G5","v":"VERSION 25"}]
["date :",{"$f":"'SECTION 1 - APPLICATION'!G4","v":"00/00/0000"}]
["6. LIST OF NAMES OF THE AID WORKERS PRESENT AT THE EVENT."]
["Doctors"]
["surname","first name","private address",null,null,null,"Mobile phone number","RIZIV number"]
[null,null,"street","no","postcode","municipality"]
[]
[]
[]
[]
[]
[]
[]
[]
[]
[]
[]
[]
["Nurses"]
["surname","first name","private address",null,null,null,"Mobile phone number"]
[null,null,"street","no","postcode","municipality"]
[]
[]
[]
[]
[]
[]
[]
[]
[]
[]
[]
[]
[]
[]
[]
[]
[]
[]
[]
["Ambulance aid workers"]
["surname","first name","private address",null,null,null,"Mobile phone number","Badge number"]
[null,null,"street","no","postcode","municipality"]
[]
[]
[]
[]
[]
[]
[]
[]
[]
[]
[]
[]
[]
["Other aid workers"]
["surname","first name","private address",null,null,null,"Mobile phone number"]
[null,null,"street","no","postcode","municipality"]

{"sheet":"mayor","index":21,"n_rows":55,"n_cols":3,"rows_kept":55,"cut":false,"hidden":false,"merged":[[54,0,54,1],[52,0,52,1],[0,1,0,2],[1,1,1,2],[2,1,2,2],[3,1,3,2],[12,0,12,1],[14,0,14,1],[51,0,51,1],[21,0,21,1],[19,0,19,2],[17,0,17,2],[36,0,36,1],[27,0,27,1],[47,0,47,1],[49,0,49,1],[50,0,50,1],[42,0,42,2],[43,0,43,2],[45,0,45,2]]}
[null,{"$f":"FIGURES!C52","v":"Directorate-General for Basic Health Care and Crisis Management"}]
[null,{"$f":"FIGURES!C53","v":"Health Inspectorate for the Province of Antwerp"}]
[null,{"$f":"FIGURES!C54","v":"Provincial Committee for Urgent Medical"}]
[null,{"$f":"FIGURES!C55","v":"Assistance - Antwerp"}]
["OUR REF :","Risk analysis"]
["DATE :",{"$f":"TODAY()","v":"2020-05-27"}]
["CONTACT : ",{"$f":"FIGURES!C37","v":"Dr. W. Haenen"}]
[null,{"$f":"FIGURES!C38","v":"Jo De Decker"}]
["Tel. No.",{"$f":"FIGURES!C45","v":"02 524 78 53"}]
["Mobile no.",{"$f":"FIGURES!C46","v":"0477 426 026"}]
["Fax. No.",{"$f":"FIGURES!C47","v":"02 524 78 58"}]
["E-mail :",{"$f":"FIGURES!C36","v":"icm.antwerpen@health.fgov.be"}]
["RE : INCREASED-RISK EVENT WITHIN YOUR JURISDICTION :"]
[null,{"$f":"'SECTION 1 - APPLICATION'!$G$3","v":0}]
[{"$f":"'SECTION 1 - APPLICATION'!$G$5","v":"VERSION 25"}]
["on date :",{"$f":"'WORKING DOC'!$B$11","v":"00/00/0000"}]
[]
["Dear mayor,"]
[]
["Medical experts have performed a risk analysis for this event.  A detailed breakdown of this risk analysis, indicating the minimum resources to be deployed, has been enclosed; please find the summary below."]
[]
["Question 1: will  medical facilities be required"]
[]
[null,{"$f":"'WORKING DOC'!G3","v":"Should a temporary medical centre be set up at the event"},{"$f":"'WORKING DOC'!H3","v":"NO"}]
[null,{"$f":"'WORKING DOC'!G4","v":"Should remote measures be taken"},{"$f":"'WORKING DOC'!H4","v":{"$error":"#REF!"}}]
[null,{"$f":"'WORKING DOC'!G5","v":"Should specific measures be taken for campsites"},{"$f":"'WORKING DOC'!H5","v":{"$error":"#REF!"}}]
[]
["Question 2 : if so, which medical facilities :"]
[]
[null,{"$f":"RESULTS!J11","v":"Minimum number of ambulances"},{"$f":"'WORKING DOC'!B28","v":0}]
[null,{"$f":"RESULTS!J12","v":"Minimum number of MUG teams"},{"$f":"RESULTS!K12","v":{"$error":"#DIV/0!"}}]
[null,{"$f":"RESULTS!J13","v":"Minimum number of BLS teams on site"},{"$f":"RESULTS!K13","v":{"$error":"#VALUE!"}}]
[null,{"$f":"RESULTS!J14","v":"Minimum number of aid workers at emergency stations"},{"$f":"RESULTS!K14","v":0}]
[null,{"$f":"RESULTS!J15","v":"Minimum number of nurses other than the MUG nurse"},{"$f":"RESULTS!K15","v":{"$error":"#DIV/0!"}}]
[null,{"$f":"RESULTS!J16","v":"Minimum number of doctors other than the MUG doctor"},{"$f":"RESULTS!K16","v":{"$error":"#DIV/0!"}}]
[]
["Question 3 : Are other measures necessary (see attachment for details)?"]
[]
[null,{"$f":"'WORKING DOC'!G7","v":"Should measures be taken for local residents"},{"$f":"'WORKING DOC'!H7","v":"NEEN"}]
[null,{"$f":"'WORKING DOC'!G8","v":"Multi-disciplinary actions must be taken"},{"$f":"'WORKING DOC'!H8","v":"JA"}]
[null,{"$f":"'WORKING DOC'!G9","v":"Is the medical emergency planning sufficiently detailed"},{"$f":"'WORKING DOC'!H9","v":"NEEN"}]
[]
["May I ask you to ensure that the following documents are completed and returned to us:"]
["- list of professionals (see section : part 3 letter list);\n- the form for the 100 switchboard (see section : 100);\n- the script or operation order of the medical facilities/resources."]
[]
["May I also ask you to make sure that the event report is completed in and sent (see section : care provided) and that this question is part of this advice."]
[]
["Yours sincerely,"]
[]
[{"$f":"FIGURES!C37","v":"Dr. W. Haenen"}]
[{"$f":"FIGURES!C42","v":"Secretary of the Provincial Medical Committee of Antwerp"}]
[{"$f":"FIGURES!C43","v":"Federal Health Inspector for the Province of Antwerp"}]
[{"$f":"FIGURES!C44","v":"Chairman of the Urgent Medical Assistance Committee of Antwerp"}]
[]
[{"$f":"FIGURES!C39","v":"Pelikaanstraat 4 - 2nd floor - 2018 Antwerpen - www.health.fgov.be"}]

{"sheet":"100","index":22,"n_rows":53,"n_cols":3,"rows_kept":53,"cut":false,"hidden":false,"merged":[[21,1,21,2],[3,0,3,2],[30,0,30,1],[27,0,27,1],[28,0,28,1],[6,0,6,2],[29,0,29,1],[22,1,22,2],[26,0,26,1],[11,1,11,2],[12,1,12,2],[13,1,13,2],[18,1,18,2],[19,1,19,2],[20,1,20,2],[52,0,52,2],[41,0,41,2],[31,0,31,1],[37,0,37,1],[36,0,36,1],[35,0,35,1],[50,0,50,1]]}
[null,null,{"$f":"FIGURES!C41","v":"ICM - Antwerp Field Service - Advice for Increased-risk Events (PRIMA)"}]
[null,null,{"$f":"FIGURES!C36","v":"icm.antwerpen@health.fgov.be"}]
[]
["These cells must be completed by the person responsible for medical facilities, after issuing an advisory report"]
["MANDATORY INFORMATION"]
[]
["The following information must always be reported to the Antwerp health inspectorate. The health inspectorate will forward this information to the competent HC100, as well as the hospitals and ambulance departments that may have to respond to the event."]
[]
[]
["General information"]
[]
["Event name",{"$f":"'SECTION 1 - APPLICATION'!$G$5","v":"VERSION 25"}]
["Event date",{"$f":"'WORKING DOC'!$B$11","v":"00/00/0000"}]
["Event address",{"$f":"'SECTION 1 - APPLICATION'!$G$7","v":0}]
["Postcode and city :",{"$f":"'SECTION 1 - APPLICATION'!$J$7","v":0},{"$f":"'SECTION 1 - APPLICATION'!$G$3","v":0}]
[]
["Event area information"]
[]
["Number of perimeters present",{"$f":"'SECTION3 + SCORE'!E9","v":0}]
["Streets within the perimeter"]
["Access roads"]
["RV point"]
["Maps attached (optional)","YES / NO"]
[]
["Information on medical facilities"]
[]
["Start time - medical facilities"]
["End time - medical facilities"]
["The medical facilities can be reached at the following number during these hours"]
["Number of ambulances as per the guidelines of the 100 switchboard"]
["Number of ambulances that do not meet “100” standards"]
["Number of MUG teams"]
[]
["Communication plan"]
[]
["Which communication model ",null,{"$f":"IF(INTERPRETATION!G91=\"schema 1\",\"Minimaal\",IF(INTERPRETATION!G91=\"schema 2\",\"Middelmatig\",\"Maximaal\"))","v":{"$error":"#DIV/0!"}}]
["Which means of communication"]
["If using ASTRID radios: which call groups will be used"]
[]
["Number of attachments :"]
[]
["You can add any comments or remarks in an attachment.  Please specify the number of attachments enclosed correctly"]
[]
[]
[]
[]
[]
[]
[{"$f":"FIGURES!C58","v":"Federal Health Inspectorate of Antwerp"}]
[{"$f":"FIGURES!C59","v":"PRIMA notification to the 100 emergency centre"}]
[{"$f":"FIGURES!C60","v":"and emergency services that may be called on during the event"}]
[]
[{"$f":"FIGURES!C39","v":"Pelikaanstraat 4 - 2nd floor - 2018 Antwerpen - www.health.fgov.be"}]

{"sheet":"FIGURES","index":23,"n_rows":61,"n_cols":9,"rows_kept":61,"cut":false,"hidden":false,"merged":[[1,7,1,8],[11,7,11,8],[8,7,9,8],[26,0,26,2],[36,0,36,1],[28,0,28,2],[29,0,29,2],[30,0,30,2],[31,0,31,2],[34,0,34,2],[35,0,35,1],[54,2,54,7],[44,0,44,1],[45,0,45,1],[38,2,38,7],[40,2,40,7],[40,0,40,1],[38,0,38,1],[39,0,39,1],[57,2,57,7],[37,0,37,1],[57,0,60,1],[41,2,41,7],[42,2,42,7],[43,2,43,7],[46,0,46,1],[50,0,50,1],[41,0,43,1],[51,0,54,1],[51,2,51,7],[58,2,58,7],[59,2,59,7],[60,2,60,7],[52,2,52,7],[53,2,53,7]]}
[]
["CUT-OFF POINTS","AMBULANCE","no ambulance needed","to",8,"minutes",null,"PREVALENCE IN NORMAL POPULATION"]
["ISOLATION",null,"need for evaluation based on other results","to",15,"minutes",null,{"$f":"INTERPRETATION!E55","v":"Average duration of care in minutes"},12]
[null,null,"ambulance definitely needed ","from",{"$f":"E3","v":15},"minutes",null,{"$f":"INTERPRETATION!E56","v":"Surface area per patient in m² (including administration and storage, excluding coordination)"},12]
[null,"MUG","No MUG needed","to",10,"minutes",null,{"$f":"INTERPRETATION!D62","v":"Number of life-threatening conditions (after handover)"},1.9E-2]
[null,null,"Evaluate in the context of other results","to",20,"minutes",null,{"$f":"INTERPRETATION!D63","v":"Number of urgent conditions (request doctor and/or ambulance transport to hospital)"},0.19]
[null,null,"MUG needed","from",{"$f":"E6","v":20},"minutes",null,{"$f":"INTERPRETATION!D64","v":"Number of requests for (basic) medical care"},2]
[]
["CUT-OFF POINTS","AMBULANCE","1 ambulance from",5000,null,null,null,"NOTE : SHOULD ADDITIONAL MEASURES BE TAKEN FOR AMATEUR ATHLETES AT MAJOR SPORTING EVENTS (MOET EEN APARTE VOORZIENING GETROFFEN WORDEN VOOR AMATEURSPORTERS BIJ MASSA-SPORTMANIFESTATIES) (Nguyen et al. Prehosp Dis Med 2008; 23:519-25)"]
["POPULATION",null,"2 ambulances from",10000]
[null,null,"3 ambulances from",20000]
[null,null,"4 ambulances from",40000,null,null,null,"HEALTH SERVICES AT MARATHONS AND TRIATHLONS"]
[null,null,"5 ambulances from",60000,null,null,null,{"$f":"H3","v":"Average duration of care in minutes"},12]
[null,null,"6 ambulances from",80000,null,null,null,{"$f":"H4","v":"Surface area per patient in m² (including administration and storage, excluding coordination)"},12]
[null,null,"7 ambulances from",100000,null,null,null,{"$f":"H5","v":"Number of life-threatening conditions (after handover)"},1]
[null,null,"8 ambulances from",120000,null,null,null,{"$f":"H6","v":"Number of urgent conditions (request doctor and/or ambulance transport to hospital)"},40]
[null,"MUG","No MUG until",50000,null,null,null,{"$f":"H7","v":"Number of requests for (basic) medical care"},200]
[null,null,"2 MUG teams from",120000]
[]
[null,null,"Increased attendance at SOLD-OUT events"]
[null,null,"SOLD OUT",1.05]
[]
[null,null,"take stage into account"]
[null,null,"from",3000]
[]
[]
["PRIMA indication"]
[]
["Maximum number of participants",null,null,500]
["surface area of objects"]
[]
[]
[]
[]
["Please use the following details :"]
["e-mail address",null,"icm.antwerpen@health.fgov.be"]
["contact person 1 - GI",null,"Dr. W. Haenen"]
["contact person 2",null,"Jo De Decker"]
["address :",null,"Pelikaanstraat 4 - 2nd floor - 2018 Antwerpen - www.health.fgov.be"]
[]
["header 1",null,"ICM - Antwerp Field Service - Advice for Increased-risk Events (PRIMA)"]
["title HI",null,"Secretary of the Provincial Medical Committee of Antwerp"]
[null,null,"Federal Health Inspector for the Province of Antwerp"]
[null,null,"Chairman of the Urgent Medical Assistance Committee of Antwerp"]
["tel",null,"02 524 78 53"]
["Mobile phone",null,"0477 426 026"]
["fax",null,"02 524 78 58"]
[]
[]
[]
[]
["letter to the mayor",null,"Directorate-General for Basic Health Care and Crisis Management"]
[null,null,"Health Inspectorate for the Province of Antwerp"]
[null,null,"Provincial Committee for Urgent Medical"]
[null,null,"Assistance - Antwerp"]
[]
[]
["letter to 100",null,"Federal Health Inspectorate of Antwerp"]
[null,null,"PRIMA notification to the 100 emergency centre"]
[null,null,"and emergency services that may be called on during the event"]
[null,null,"DOCUMENT NAME :  PRIMA - HC1"]

{"sheet":"SECTION 3","index":24,"n_rows":83,"n_cols":41,"rows_kept":83,"cut":false,"hidden":false,"merged":[[40,4,40,8],[36,1,36,2],[28,3,28,4],[9,1,10,1],[7,1,8,1],[38,0,38,8],[0,0,0,8],[2,0,2,8],[4,4,4,6],[5,1,6,1],[29,1,34,1],[18,1,24,1],[26,0,26,8],[11,1,16,1],[75,4,75,5],[76,1,82,1],[54,0,54,8],[56,4,56,6],[73,0,73,8]]}
["SECTION 3 : ACTUAL RISK ANALYSIS ACCORDING TO SELECTED QUESTIONS\nQUESTION WITHOUT SCORE"]
[]
["R1 : RISCO-AS 1 : ISOLATION RISK"]
[]
[null,"CLASS","NO","QUESTION","ANSWER OPTIONS"]
[null,"ISOLATION FOR EMERGENCY SERVICES ARRIVING ON THE SCENE",1,"Distance to ambulance","<8 min","8-15 min",">15 min"]
[null,null,2,"Distance to MUG","<10 min","10-15 min",">15 min"]
[null,"EVENT ACCESSIBILITY",3,"accessibility","Separate approach route for emergency services","no separate approach route for emergency services and several major approach routes","No separate approach route for emergency services and restricted access for emergency services and visitors"]
[null,null,4,"Public transport","regular public transport in the area","Regular public transport at a distance and/or own shuttle service","No public transport in the area OR public transport no longer runs at the start/end of the event"]
[null,"EVENT perimeter",5,"Perimeter","No","1 perimeter","Multiple perimeters : enter amount"]
[null,null,6,"Site maps","Present","Do not exist",null,null,"Exact surface area (km²)"]
[null,"SITE VARIABLES",7,"Surface area","2.5 ha - 1 km²",">1 km² (give an estimate of the surface area in km²)",null,null,{"$f":"'SECTION3 + SCORE'!$J$10","v":0}]
[null,null,8,"Subsurface","Hard ","Soft and flat","Soft and undulating"]
[null,null,9,"Structure","Fixed structure","Temporary structure","Improper use of structure"]
[null,null,10,"Stairs present","No","Yes"]
[null,null,11,"Seating","Yes","No"]
[null,null,12,"Location","Indoors","Outdoors"]
[null,"ISOLATION FOR DEPARTING VEHICLES",13,"Distance to the nearest emergency department","<10 min","10-20 min",">20 min"]
[null,"ISOLATION FOR LOCAL RESIDENTS",14,"Residents inside isolation perimeter","No","Yes"]
[null,null,15,"Retirement home/hospital inside perimeter","No","Yes"]
[null,null,16,"On-call GP needed inside perimeter","No","Yes"]
[null,null,17,"On-call nurse needed inside perimeter","No","Yes"]
[null,null,18,"meal delivery needed inside perimeter","No","Yes"]
[null,null,19,"on-call pharmacist needed inside perimeter ","No","Yes"]
[null,null,20,"Number of municipalities concerned",1,"More than 1"]
[]
["R2 : RISK AS 2 : POPULATION RISK"]
[]
[null,"CLASS","NO","QUESTION",null,"AMOUNT ENTERED","TOTAL"]
[null,"APPLICABLE POPULATION",21,"a","expected number of visitors"]
[null,null,null,"b","expected number of participants"]
[null,null,null,"c","expected size of the organiser’s team present at event"]
[null,null,null,"d","expected number of aid workers"]
[null,null,null,"e","number of local resident inside isolation perimeter"]
[null,null,null,"f","Reduction due to population shift"]
[null,null,null,"g","% of population present at the same time"]
[null,"TOTAL POPULATION AT EVENT",null,"h",null,null,"((a+b+c+d+e)-f)*(g/100)"]
[]
["R3 : RISK AS 3 : HEALTH RISKS"]
[null,null,null,null,null,null,null,null,null,null,null,null,null,null,null,null,null,null,null,null,null,null,null,null,null,null,null,null,null,null,null,null,null,null,null,null,null,null,null,{"$f":"11/6.3","v":1.746031746031746}]
[null,"CLASS","NO","QUESTION","ANSWER OPTIONS"]
[null,"AGE",22,"Predominant age group","All ages","° 10-20 y/o\n° 35-65 y/o","° < 10 y/o\n° 20-35 y/o","° More than 65 y/o\n° < 10 y/o without parental supervision",null,null,{"$f":"AN42","v":8.3333333333333321},null,null,null,null,null,0,1,2,null,4,null,null,null,null,null,null,11,null,null,0,1,2,4,null,null,null,null,null,{"$f":"4/$AN$55*100","v":8.3333333333333321}]
[null,"ALCOHOL CONSUMPTION",23,"Is alcohol consumption expected","No","Present, no increased risk expected","Present, increased risk expected","Abundant use",null,null,{"$f":"AN43","v":4.1666666666666661},5,{"$f":"63*L43/100","v":3.15},{"$f":"M43*$AN$40","v":5.5},null,null,0,1,2,null,null,null,null,null,null,null,null,null,null,null,0,4,6,null,null,null,null,null,null,{"$f":"2/$AN$55*100","v":4.1666666666666661}]
[null,"DRUG USE",24,"Is drug use expected","No","Present, no increased risk expected","Present, increased risk expected","Abundant use",null,null,{"$f":"AN44","v":8.3333333333333321},15,{"$f":"63*L44/100","v":9.4499999999999993},{"$f":"M44*$AN$40","v":16.5},null,null,0,null,2,null,4,null,null,null,null,null,null,null,null,null,0,10,17,null,null,null,null,null,null,{"$f":"4/$AN$55*100","v":8.3333333333333321}]
[null,"HEALTH",25,"Audience type","No different from standard population","Homogeneous audience",null,null,null,null,{"$f":"SUM(AN45:AN48)","v":14.583333333333332},10,{"$f":"63*L45/100","v":6.3},{"$f":"M45*$AN$40","v":11},null,null,0,null,2,null,null,null,null,null,null,null,null,null,null,null,0,2,null,null,null,null,null,null,null,{"$f":"2/$AN$55*100","v":4.1666666666666661}]
[null,null,26,"Known pathologies among at least 10% of the audience","No","° Disabled people\n° Mild injury requiring long-term treatment","° Severe injury requiring long-term treatment",null,null,null,null,null,null,null,null,null,0,1,2,null,null,null,null,null,null,null,null,null,null,null,0,1,2,null,null,null,null,null,null,{"$f":"2/$AN$55*100","v":4.1666666666666661}]
[null,null,27,"Catering","No","Cold food","Hot food",null,null,null,null,null,null,null,null,null,0,1,2,null,null,null,null,null,null,null,null,null,null,null,0,1,2,null,null,null,null,null,null,{"$f":"2/$AN$55*100","v":4.1666666666666661}]
[null,null,28,"Accommodation","No","Yes",null,null,null,null,null,null,null,null,null,null,0,1,null,null,null,null,null,null,null,null,null,null,null,null,0,1,null,null,null,null,null,null,null,{"$f":"1/$AN$55*100","v":2.083333333333333}]
[null,"EVENT TYPE",29,"Event type","° Market/fair\n° Concert (classical music)\n° Theatre\n° Show\n° Public concert\n° Exhibition\n° Bazaar\n° Flea market\n° Trade fair","° Street party (except carnival)\n° Sports events (except marathon, cycling, competitive sports)\n° Folkloristic celebration\n° Dance sports event\n° Christmas market\n° ALL OTHER EVENTS","° Fireworks\n° Minor (announced) demonstration\n° Musical event (no classical music or rock/house)\n° Carnival\n° Multi-day marches\n° Competitive sports\n° Marathon\n° Cycling","° Car/motorsports\n° Air Show","° Rock concert\n° Event with Techno/house and related music genres\n",null,{"$f":"SUM(AN49:AN52)","v":52.083333333333336},40,{"$f":"25/0.4","v":62.5},{"$f":"M49*$AN$40","v":109.12698412698413},null,null,null,null,null,null,4,5,null,null,8,11,null,null,12,18,null,25,16,null,null,34,20,null,null,{"$f":"20/$AN$55*100","v":41.666666666666671}]
[null,null,30,"Event duration","< 5 hours","5-12 hours","12-24 hours",">24 hours",null,null,null,null,null,{"$f":"109-(N43+N44+N45+N53)","v":43},null,null,0,1,2,3,null,null,4,null,null,null,null,null,null,null,0,2,4,6,null,null,null,null,null,{"$f":"3/$AN$55*100","v":6.25}]
[null,null,31,"Exact event duration in hours",null,"HOUR",null,null,null,null,null,null,null,null,null,null,null,null,null,null,null,null,null,null,null,null,null,null,null,null,5,10,17,24,32]
[null,null,32,"Time of event","Working hours","(Also) outside working hours",null,null,null,null,null,null,null,null,null,null,0,null,2,null,null,null,null,null,null,null,null,null,null,null,0,4,null,null,null,null,null,null,null,{"$f":"2/$AN$55*100","v":4.1666666666666661}]
[null,"TEMPERATURE AND HUMIDITY",33,"expected temperature","° 7 ° C - 17 ° C","° 4°C-7°C\n° 17 ° C - 22 ° C\n° Air conditioning units present","° 0°C-3°C\n°22°C-27°C","° < 0°C\n° > 27°C",null,null,{"$f":"AN53","v":12.5},30,{"$f":"63*L53/100","v":18.899999999999999},{"$f":"M53*$AN$40","v":33},null,null,0,null,2,null,4,null,6,null,null,null,null,null,null,null,0,7,15,33,null,null,null,null,null,{"$f":"6/$AN$55*100","v":12.5}]
[]
["R4 : RISK AS 4 : OBJECTIVATION",null,null,null,null,null,null,null,null,null,null,null,null,null,null,null,null,null,null,null,null,null,null,null,null,null,null,null,null,null,null,null,null,{"$f":"AH53+AF52+AI51+AH50+AF48+AG47+AG46+AF45+AG44+AG43+AH42","v":109},null,null,null,null,null,{"$f":"U42+S43+U44+S45+S46+S47+R48+AK49+T50+S52+W53","v":48},{"$f":"SUM(AN42:AN53)","v":100}]
[]
[null,"CLASS","NO","QUESTION","ANSWER OPTIONS"]
[null,"TRACK RECORD",34,"Event age","> 10 y/o","4 - 9 y/o","< 4 y/o"]
[null,null,35,"Record available","YES","NO"]
[]
[null,"MEDICAL LITERATURE",36,"Problems to be expected according to medical literature (+specify which literature)","NO","YES (only when notified)"]
[]
[null,"MULTIDISCIPLINARY COORDINATION",37,"Presence of utilities","Ample standard facilities","Limited standard facilities","Set up specifically for this event"]
[null,null,38,"Means of communication","Generously equipped (internal and external communication) via fixed structure","Separate communication structure for this event"]
[null,null,39,"Presence of large animals","NO","YES"]
[null,null,40,"International reputation (> 9 % foreigners expected)","NO","YES"]
[null,null,41,"Presence of an Operational Control Centre for the entire duration of the event","YES and staffed","YES and partly staffed","NO"]
[null,null,42,"Problem according to police","NO","YES"]
[null,null,43,"Problem according to the fire department","NO","YES"]
[null,null,44,"Previous negative experience with this type of event","NO or unknown","YES"]
[null,null,45,"Previous negative experience with the organiser","NO or unknown","YES"]
[null,null,46,"Specific legislation concerning this type of event","NO","YES"]
[]
["R5 : RISK AS 5 : PREPAREDNESS"]
[]
[null,"CLASS","NO","QUESTION","ANSWER OPTIONS"]
[null,"PREPAREDNESS ",47,"Are there adequate maps of the site","YES","NO"]
[null,null,48,"Are there adequate maps of the entire isolation area","YES","NO"]
[null,null,49,"Does the plan meet the requirements of the MIP","YES","NO"]
[null,null,50,"Has a Dir-Med been appointed for the event","YES OR NO NEED","NO"]
[null,null,51,"Is there a clear communication model that can be used in the event of a collective problem","YES","NO"]
[null,null,52,"Is there a direct link to the 100 switchboard","YES","NO"]
[null,null,53,"Is the Medical Intervention Plan compliant with the Royal Decree of 16/02/06","YES","NO"]

{"sheet":"INTERPRETATION","index":25,"n_rows":113,"n_cols":14,"rows_kept":113,"cut":false,"hidden":false,"merged":[[111,3,111,5],[112,3,112,5],[12,9,12,10],[40,9,40,13],[108,0,108,6],[110,3,110,6],[42,3,42,5],[43,3,43,5],[40,3,40,6],[24,1,24,6],[50,9,50,10],[90,3,90,5],[35,3,35,6],[19,4,19,5],[13,9,13,10],[14,1,14,5],[0,0,0,6],[38,0,38,5],[12,4,12,6],[22,4,22,6],[16,4,16,5],[2,0,2,5],[36,3,36,5],[20,4,20,5],[4,1,4,6],[7,4,7,5],[6,4,6,5],[11,4,11,5],[8,4,8,5],[10,4,10,5],[50,3,50,5],[45,0,45,5],[41,3,41,5],[33,1,33,5],[48,3,48,5],[2,8,2,9],[62,3,62,5],[63,3,63,5],[72,9,72,12],[73,9,73,11],[30,3,30,5],[27,3,27,5],[21,4,21,5],[51,3,51,5],[47,3,47,6],[54,4,54,5],[55,4,55,5],[49,3,49,5],[9,4,9,5],[17,4,17,5],[18,4,18,5],[26,3,26,6],[28,3,28,5],[29,3,29,5],[85,3,85,5],[75,0,75,6],[77,3,77,6],[60,3,60,6],[88,0,88,6],[56,4,56,5],[57,4,57,5],[58,4,58,5],[65,3,65,5],[66,3,66,5],[64,3,64,5],[68,0,68,6],[70,3,70,6],[61,3,61,5],[84,3,84,5],[81,0,81,6],[83,3,83,6],[61,8,61,9],[31,3,31,5],[71,3,71,5],[72,3,72,5],[78,3,78,5],[73,3,73,5],[53,4,53,6]]}
["CALCULATION OF RESOURCES/FACILITIES REQUIRED FOR EVENT (3 PAGES)"]
[]
["R1 : RISK AS 1 : ISOLATION RISK",null,null,null,null,null,null,null,"COLOUR CODES USED IN THIS SHEET"]
[null,null,null,null,null,null,null,null,"Green","Value, copied from “SECTION 3 + SCORE”"]
[null,"R1-A - NO. OF AMBULANCES NEEDED",null,null,null,null,null,null,"Blue (table)","Conversion tables: the corresponding value must be entered and/or the corresponding instruction must be followed"]
[null,null,null,null,null,null,null,null,"Purple (table)","Table of basic values, corresponding to the standard population"]
[null,null,null,null,"QUESTION AND ANSWER",null,"RESULT",null,"(Bright) yellow","Result of the calculation"]
[null,null,null,null,"Time needed to reach the event under standard conditions (in minutes and decimals)",null,{"$f":"'SECTION3 + SCORE'!J6","v":0}]
[null,null,null,null,"Delay due to poor accessibility (1)",null,{"$f":"'SECTION3 + SCORE'!J8","v":0}]
[null,null,null,null,"Number of perimeters (1 minute delay per perimeter) : fill in the number",null,{"$f":"'SECTION3 + SCORE'!J9","v":0}]
[null,null,null,null,"TOTAL AMBULANCE RESPONSE TIME",null,{"$f":"IF(AND(G8=0,G9=0,G10=0),0,G8/(G9/10)+G10)","v":0}]
[null,null,null,null,"Need for an ambulance",null,{"$f":"IF(G11<FIGURES!E2,\"geen ambulance nodig\",IF(G11<FIGURES!E3,\"noodzaak te evalueren volgens andere resultaten\",\"ambulance noodzakelijk\"))","v":"geen ambulance nodig"}]
[null,null,null,null,"(1) : This number may increase or decrease according to the POPULATION or HEALTH RISK",null,null,null,null,"DATE CONVERTED TO INTEGER"]
[null,null,null,null,null,null,null,null,null,"REASON: Calculation used to determine the date on which HC100 is to be notified"]
[null,"R1-B - NO. OF MUG TEAMS NEEDED",null,null,null,null,null,null,null,"Date, converted to number",{"$f":"'SECTION 1 - APPLICATION'!G4","v":"00/00/0000"}]
[null,null,null,null,null,null,null,null,null,"Number minus 10 days",{"$f":"K15-10","v":{"$error":"#VALUE!"}}]
[null,null,null,null,"QUESTION AND ANSWER",null,"RESULT"]
[null,null,null,null,"Time needed to reach the event under standard conditions (in minutes and decimals)",null,{"$f":"'SECTION3 + SCORE'!J7","v":0}]
[null,null,null,null,"Delay due to poor accessibility (1)",null,{"$f":"'SECTION3 + SCORE'!J8","v":0}]
[null,null,null,null,"Number of perimeters (1 minute delay per perimeter) : fill in the number",null,{"$f":"'SECTION3 + SCORE'!J9","v":0}]
[null,null,null,null,"TOTAL MUG RESPONSE TIME",null,{"$f":"IF(AND(G8=0,G9=0,G10=0),0,G18/(G19/10)+G20)","v":0}]
[null,null,null,null,"Need for a MUG team",null,{"$f":"IF(G21<FIGURES!E5,\"Geen MUG nodig\",IF(G21<FIGURES!E6,\"Evalueer in functie van andere resultaten\",\"MUG noodzakelijk\"))","v":"Geen MUG nodig"}]
[null,null,null,null,"(1) : This number may increase or decrease according to the POPULATION or HEALTH RISK",null,null,null,null,null,5000,1,416]
[null,null,null,null,null,null,null,null,null,{"$f":"K23-K24","v":300},{"$f":"$K$23*L24","v":4700},0.94,{"$f":"$M$23*L24","v":391.03999999999996},{"$f":"M23-M24","v":24.960000000000036}]
[null,"R1 - C : NO. OF BLS TEAMS NEEDED",null,null,null,null,null,null,null,250,4450,0.89,370.24,20.799999999999955]
[null,null,null,null,null,null,null,null,null,300,4150,0.83,345.28,24.960000000000036]
[null,null,null,"RESULTS FROM SECTION 3",null,null,null,null,null,250,3900,0.78,324.48,20.799999999999955]
[null,null,null,"Surface area of the site in km² (question 7 in section 3)",null,null,{"$f":"IF('SECTION3 + SCORE'!J10>0,'SECTION3 + SCORE'!J10,'SECTION3 + SCORE'!I11)","v":""},null,null,300,3600,0.72,299.52,24.960000000000036]
[null,null,null,"BLS score calculated in section 3",null,null,{"$f":"'SECTION3 + SCORE'!J17","v":0},null,null,250,3350,0.67,278.72000000000003,20.799999999999955]
[null,null,null,"Surface area corresponding to BLS score (copy corresponding surface area from the BLS-1 table",null,null,{"$f":"IF(G29=0,1,IF(G29=1,0.94,IF(G29=2,0.89,IF(G29=3,0.83,IF(G29=4,0.78,IF(G29=5,0.72,IF(G29=6,0.67,IF(G29=7,0.61,0.56))))))))","v":1}]
[null,null,null,"Estimated number of BLS crews required ",null,null,{"$f":"IF('SECTION 2 - RISK ASSESSMENT'!E10=\"NEEN\",0,IF(G28>0,G28/G30,'SECTION3 + SCORE'!J11/INTERPRETATION!G30))","v":{"$error":"#VALUE!"}}]
[null,null,null,"TWEAK BASED ON NUMBER OF STAGES => FINAL NUMBER OF BLS CREWS",null,null,{"$f":"IF('SECTION 1 - APPLICATION'!K21>FIGURES!D24,IF(G31<'SECTION3 + SCORE'!I12,'SECTION3 + SCORE'!I12,INTERPRETATION!G31),G31)","v":{"$error":"#VALUE!"}},null,"BLS modified, no reverted back to version 22"]
[]
[null,"R1 - D : MEASURES TO BE TAKEN FOR LOCAL RESIDENTS"]
[]
[null,null,null,"ASSESSMENT OF THE MEASURES TO BE TAKEN FOR LOCAL RESIDENTS"]
[null,null,null,"Should measures be taken for local residents",null,null,{"$f":"IF('SECTION3 + SCORE'!J25=0,\"NEEN\",\"JA\")","v":"NEEN"},null,null,"Should measures be taken for local residents",{"$f":"G37","v":"NEEN"}]
[]
["R2 : RISK AS 2 : POPULATION RISK"]
[]
[null,null,null,"TOTAL POPULATION AT EVENT"]
[null,null,null,"Calculated population",null,null,{"$f":"'SECTION3 + SCORE'!G37","v":0}]
[null,null,null,"Calculated number of ambulances",null,null,{"$f":"IF(G42<FIGURES!D9,0,IF(G42<FIGURES!D10,1,IF(G42<FIGURES!D11,2,IF(G42<FIGURES!D12,3,IF(G42<FIGURES!D13,4,IF(G42<FIGURES!D14,5,IF(G42<FIGURES!D15,6,IF(G42<FIGURES!D16,7,8))))))))","v":0}]
[null,null,null,"Calculated number of MUG teams",null,null,{"$f":"IF(G42<FIGURES!D17,0,IF(G42<FIGURES!D18,1,2))","v":0}]
[]
["R3 : RISK AS 3 : HEALTH RISKS"]
[]
[null,null,null,"DATA USED TO CALCULATE THE MEDICAL WORKLOAD DURING THE EVENT"]
[null,null,null,"Total population",null,null,{"$f":"'SECTION3 + SCORE'!J37","v":0}]
[null,null,null,"Event duration in hours",null,null,{"$f":"'SECTION3 + SCORE'!J47","v":0}]
[null,null,null,"Illness risk score",null,null,{"$f":"'SECTION3 + SCORE'!J55","v":6},null,null,"SCORE J54 ==> G50 OR INTERPRETATION G50"]
[null,null,null,"multiplier (to be filled in according to table HEA-1)",null,null,{"$f":"IF(G51<44,1,IF(G51<66,2,IF(G51<87,3,IF(G51<99,4,6))))","v":1},null,null,"0-28  =>  2",{"$f":"28/48*100","v":58.333333333333336},{"$f":"K52*109/100","v":63.583333333333343}]
[null,null,null,null,null,null,null,null,null,"29-39  =>  3",{"$f":"39/48*100","v":81.25},{"$f":"K53*109/100","v":88.5625}]
[null,null,null,null,"TABLE HEA-2 : VARIABLES FOR CALCULATING THE WORKLOAD PER 10,000 PEOPLE PER 5 HOURS",null,null,null,null,"40-48  = > 5",100]
[null,null,null,null,"Average duration of care in minutes",null,{"$f":"FIGURES!I3","v":12}]
[null,null,null,null,"Surface area per patient in m² (including administration and storage, excluding coordination)",null,{"$f":"FIGURES!I4","v":12},null,null,40,{"$f":"109*J56/100","v":43.6}]
[null,null,null,null,{"$f":"D62","v":"Number of life-threatening conditions (after handover)"},null,{"$f":"FIGURES!I5","v":1.9E-2},null,null,60,{"$f":"109*J57/100","v":65.400000000000006}]
[null,null,null,null,{"$f":"D63","v":"Number of urgent conditions (request doctor and/or ambulance transport to hospital)"},null,{"$f":"FIGURES!I6","v":0.19},null,null,80,{"$f":"109*J58/100","v":87.2}]
[null,null,null,null,{"$f":"D64","v":"Number of requests for (basic) medical care"},null,{"$f":"FIGURES!I7","v":2},null,null,90,{"$f":"109*J59/100","v":98.1}]
[]
[null,null,null,"ESTIMATED MEDICAL WORKLOAD DURING EVENT"]
[null,null,null,"Number of life-threatening conditions (after handover)",null,null,{"$f":"((G49*(G50/5)*(G51/4)*G57)/10000)*G52/5","v":0}]
[null,null,null,"Number of urgent conditions (request doctor and/or ambulance transport to hospital)",null,null,{"$f":"(G49*G50/5*G51/4*G58)/10000*G52/3","v":0}]
[null,null,null,"Number of requests for (basic) medical care",null,null,{"$f":"(G49*G50/5*G51/4*G59)/10000+((G49*G50/5*G51/4*G59)/10000)/8.6/100+((G49*G50/5*G51/4*G59)/10000)/100*0.86-G63-G62","v":0}]
[null,null,null,"TOTAL NUMBER OF PERSONS RECEIVING CARE",null,null,{"$f":"SUM(G62:G64)","v":0},null,{"$f":"G64/2","v":0}]
[null,null,null,"Number of simultaneous cases and, therefore, required number of beds/spots in aid station(s)",null,null,{"$f":"IF((G50=0),0,(G64/2)/((G50/4)*60/G55))","v":0}]
[null,null,null,"Minimum total surface area of aid station(s)",null,null,{"$f":"IF('SECTION 2 - RISK ASSESSMENT'!E10=\"NEEN\",0,INT(G66)+1)*G56","v":12},null,null,{"$f":"INT(J66)","v":0}]
[]
["R4 : RISK AS 4 : INFORMATION OBJECTIVATION"]
[]
[null,null,null,"ESTIMATED OBJETIVATION"]
[null,null,null,"Measures to be taken based on track record",null,null,{"$f":"IF('SECTION3 + SCORE'!J61<2,\"eenvoudige registratie\", \"zoek vergelijkbare registratie\")","v":"eenvoudige registratie"}]
[null,null,null,"Measures to be taken on the basis of the literature score",null,null,{"$f":"IF('SECTION3 + SCORE'!J65=0, \"geen opzoeking nodig\", \"voer literatuursurvey uit\")","v":"geen opzoeking nodig"}]
[null,null,null,"Is multidisciplinary adjustment necessary",null,null,{"$f":"IF('SECTION3 + SCORE'!J79=0,\"NEEN\",\"JA\")","v":"JA"}]
[]
["R5 : RISK AS 5 : PREPAREDNESS"]
[]
[null,null,null,"ESTIMATED EVENT EMERGENCY PLAN "]
[null,null,null,"Are any additional disaster preparedness measures needed",null,null,{"$f":"IF('SECTION3 + SCORE'!J100=0, \"NEEN\",\"JA\")","v":"NEEN"}]
[]
[]
["SECTION 4 : FURTHER IMPACT ON PUBLIC HEALTH"]
[]
[null,null,null,"ESTIMATED EFFECT ON PUBLIC HEALTH (IMMEDIATE EFFECTS)"]
[null,null,null,{"$f":"'[1]LUIK 4 - RISICO''S VGZ'!C29","v":{"$error":"#REF!"}},null,null,{"$f":"'[1]LUIK 4 - RISICO''S VGZ'!D29","v":{"$error":"#REF!"}}]
[null,null,null,{"$f":"'[1]LUIK 4 - RISICO''S VGZ'!C30","v":{"$error":"#REF!"}},null,null,{"$f":"'[1]LUIK 4 - RISICO''S VGZ'!D30","v":{"$error":"#REF!"}}]
[]
[]
["NOTE : SELECT ONE OF THE AVAILABLE COMMUNICATION DIAGRAMS"]
[]
[null,null,null,"Which communication model should be followed",null,null,{"$f":"IF(G65/G50<1,\"GSM\",IF(G66<2,\"schema 1\",IF(G62<1,\"schema 2\",\"schema 3\")))","v":{"$error":"#DIV/0!"}},null,null,{"$f":"IF(G91=\"GSM\",0,IF(G91=\"schema 1\",1,IF(G91=\"schema 2\",2,3)))","v":{"$error":"#DIV/0!"}}]
[]
[null,null,null,"Mobile","Basic","The people in charge on site must have each other’s mobile phone number",0]
[]
[null,null,null,"Model 1","Minimum","Call group for multidisciplinary coordination and consultation",1]
[null,null,null,null,null,"Call group for medical operations"]
[]
[null,null,null,"Model 2","Medium","Call group for multidisciplinary coordination and consultation",2]
[null,null,null,null,null,"Call group for medical operations"]
[null,null,null,null,null,"Call group for medical logistics"]
[]
[null,null,null,"Model 3","Maximum","Call group for multidisciplinary coordination and consultation",3]
[null,null,null,null,null,"Call group for medical operations (MIP : KTA/Dis B)"]
[null,null,null,null,null,"Call group for medical logistics (MIP : KTA/Dis C)"]
[null,null,null,null,null,"Call group for medical coordination (MIP : Dir-Med A)"]
[null,null,null,null,null,"Call group for medical regulation (MIP : KTA/Dis A)"]
[null,null,null,null,null,"Medical call group (backup)"]
[]
["NOTE : SHOULD ADDITIONAL MEASURES BE TAKEN FOR AMATEUR ATHLETES AT MAJOR SPORTING EVENTS (MOET EEN APARTE VOORZIENING GETROFFEN WORDEN VOOR AMATEURSPORTERS BIJ MASSA-SPORTMANIFESTATIES) (Nguyen et al. Prehosp Dis Med 2008; 23:519-25)"]
[]
[null,null,null,"STANDARDS FOR THE USE OF MEDICAL RESOURCES IN MEDICAL LITERATURE"]
[null,null,null,"Total population at risk",null,null,{"$f":"'SECTION 1 - APPLICATION'!I15","v":0}]
[null,null,null,"Event duration",null,null,{"$f":"'SECTION 1 - APPLICATION'!K8","v":false}]

{"sheet":"RESULTS","index":26,"n_rows":97,"n_cols":11,"rows_kept":97,"cut":false,"hidden":false,"merged":[[5,3,5,7],[5,1,5,2],[6,1,6,2],[6,3,6,7],[0,5,0,7],[2,5,2,7],[4,1,4,7],[0,1,0,3],[1,1,1,3],[2,1,2,3],[46,1,47,1],[15,1,15,3],[16,1,16,3],[17,1,17,3],[7,1,7,3],[9,1,9,3],[8,1,8,3],[10,1,10,3],[11,1,11,3],[12,1,12,3],[13,1,13,3],[14,1,14,3],[53,2,53,6],[52,0,52,7],[20,1,20,3],[21,1,21,3],[24,1,24,3],[25,1,25,3],[44,0,45,0],[44,1,45,1],[28,3,28,6],[29,3,29,6],[30,3,30,6],[33,3,33,6],[22,1,22,3],[23,1,23,3],[40,0,40,7],[46,0,47,0],[63,2,63,6],[62,2,62,6],[61,2,61,6],[60,2,60,6],[54,2,54,6],[59,2,59,6],[58,2,58,6],[57,2,57,6],[56,2,56,6],[55,2,55,6],[41,2,41,6],[42,2,42,6],[50,2,50,6],[49,2,49,6],[48,2,48,6],[47,2,47,6],[43,2,43,6],[46,2,46,6],[45,2,45,6],[44,2,44,6],[66,0,66,7],[81,0,92,0],[89,2,89,6],[87,2,87,6],[90,2,90,6],[85,2,85,6],[84,2,84,6],[72,9,72,10],[93,0,96,0],[92,2,92,6],[91,2,91,6],[83,2,83,6],[82,2,82,6],[81,2,81,6],[86,2,86,6],[96,2,96,6],[95,2,95,6],[94,2,94,6],[93,2,93,6],[80,2,80,6],[79,0,79,7],[88,2,88,6]]}
["EVENT",{"$f":"'SECTION 1 - APPLICATION'!G6","v":"ALL OTHER EVENTS"},null,null,"DATE",{"$f":"'SECTION 1 - APPLICATION'!G4","v":"00/00/0000"}]
["ADDRESS",{"$f":"'SECTION 1 - APPLICATION'!G7","v":0},null,null,"DURATION",{"$f":"'SECTION3 + SCORE'!J47","v":0},"TIME"]
["PERSON RESPONSIBLE",{"$f":"'SECTION 1 - APPLICATION'!G25","v":0},null,null,"TEL",{"$f":"'SECTION 1 - APPLICATION'!G31","v":0}]
[]
["PART 1","QUANTITATIVE INFORMATION"]
["ISOLATION","Is an ambulance needed according to this criterion",null,{"$f":"INTERPRETATION!G12","v":"geen ambulance nodig"}]
[null,"Is a MUG team needed according to this criterion",null,{"$f":"INTERPRETATION!G22","v":"Geen MUG nodig"}]
[null,{"$f":"INTERPRETATION!D31","v":"Estimated number of BLS crews required "},null,null,{"$f":"INTERPRETATION!G32","v":{"$error":"#VALUE!"}}]
[null,"Distance to the nearest emergency department",null,null,{"$f":"'SECTION3 + SCORE'!I18","v":0}]
["POPULATION",{"$f":"INTERPRETATION!D42","v":"Calculated population"},null,null,{"$f":"INTERPRETATION!G42","v":0}]
[null,"Event duration",null,null,{"$f":"INTERPRETATION!G50","v":0},null,null,null,null,"Minimum number of ambulances",{"$f":"#REF!","v":{"$error":"#REF!"}}]
[null,"Calculated number of ambulances",null,null,{"$f":"INTERPRETATION!G43","v":0},null,null,null,null,"Minimum number of MUG teams",{"$f":"E22","v":{"$error":"#DIV/0!"}}]
[null,"Calculated number of MUG’ teams",null,null,{"$f":"INTERPRETATION!G44","v":0},null,null,null,null,"Minimum number of BLS teams on site",{"$f":"E23","v":{"$error":"#VALUE!"}}]
["HEALTH",{"$f":"INTERPRETATION!D62","v":"Number of life-threatening conditions (after handover)"},null,null,{"$f":"INTERPRETATION!G62","v":0},null,null,null,null,"Minimum number of aid workers at emergency stations",{"$f":"E24","v":0}]
[null,{"$f":"INTERPRETATION!D63","v":"Number of urgent conditions (request doctor and/or ambulance transport to hospital)"},null,null,{"$f":"INTERPRETATION!G63","v":0},null,null,null,null,"Minimum number of nurses other than the MUG nurse",{"$f":"E25","v":{"$error":"#DIV/0!"}}]
[null,{"$f":"INTERPRETATION!D64","v":"Number of requests for (basic) medical care"},null,null,{"$f":"INTERPRETATION!G64","v":0},null,null,null,null,"Minimum number of doctors other than the MUG doctor",{"$f":"E26","v":{"$error":"#DIV/0!"}}]
[null,{"$f":"INTERPRETATION!D66","v":"Number of simultaneous cases and, therefore, required number of beds/spots in aid station(s)"},null,null,{"$f":"INTERPRETATION!G66","v":0}]
[null,{"$f":"INTERPRETATION!D67","v":"Minimum total surface area of aid station(s)"},null,null,{"$f":"INTERPRETATION!G67","v":12}]
["COMBINATION","Required MUG teams according to Population and Isolation"]
[null,"Required doctors according to Health",null,null,null,null,null,null,null,"Suggested change : 1 ambulance more near perimeter : this should be limited to N=2 ambulances !!"]
["TRANSLATION","NUMBER OF AMBULANCES",null,null,{"$f":"IF(INTERPRETATION!G43>0,INTERPRETATION!G43,IF(INTERPRETATION!G63>0.5,1,IF(INTERPRETATION!G11>15,1,0)))","v":0},null,null,"IF((INTERPRETATION!G11+(2*’SECTION3 + SCORE’!I18)+10)/60*(RESULTS!E14+RESULTS!E15)>RESULTS!F2*0,8;RESULTS!E12+1;IF(INTERPRETATION!G63>1;INTERPRETATION!G43;IF(INTERPRETATION!G63>0,5;1;IF(INTERPRETATION!G11>GRADES!E4;1;0))))",null,{"$f":"IF(E12*5000+5000-E10<1000,IF((INTERPRETATION!G21*2+20)/60*(RESULTS!E14+RESULTS!E15)>RESULTS!E11*0.8,RESULTS!E12+1,RESULTS!E12),1)","v":1}]
[null,"NUMBER OF MUG teams",null,null,{"$f":"IF(INTERPRETATION!G44>0,INTERPRETATION!G44,IF((INTERPRETATION!G62+INTERPRETATION!G63*0.2)/'SECTION3 + SCORE'!J47>0.3,1,IF(INTERPRETATION!G42<10000,\"0\",IF(INTERPRETATION!G21>FIGURES!E7,1,0))))","v":{"$error":"#DIV/0!"}},null,null,null,null,{"$f":"INTERPRETATION!G44+(26/2)/84/4*E9/2","v":0}]
[null,"NUMBER OF BLS TEAMS",null,null,{"$f":"E8","v":{"$error":"#VALUE!"}}]
[null,"MINIMUM NUMBER OF AID WORKERS",null,null,{"$f":"E17*2","v":0},null,null,null,null,null,{"$f":"IF(INTERPRETATION!E63>1,INTERPRETATION!E43,IF((RESULTS!E12*5000+5000-RESULTS!E10)>1000,RESULTS!E12,IF((INTERPRETATION!G11*2+25+10)/60*(RESULTS!E14+RESULTS!E15)>RESULTS!E11*0.8,RESULTS!E12+1,IF(INTERPRETATION!E63>0.5,1,IF(INTERPRETATION!E11>15,1,0)))))","v":0}]
[null,"MINIMUM NUMBER OF NURSES",null,null,{"$f":"(E15/F2*0.8+E16/F2*0.4)/5*2","v":{"$error":"#DIV/0!"}}]
[null,"MINIMUM NUMBER OF DOCTORS",null,null,{"$f":"(E15/F2*0.8+E16/F2*0.2)/4.5*1.5","v":{"$error":"#DIV/0!"}},null,null,null,null,"IF("]
[]
["PART 2","QUALITATIVE DATA"]
["LOCAL RESIDENTS","CALCULATED SCORE",{"$f":"INTERPRETATION!G37","v":"NEEN"},"USE “LOCAL RESIDENTS” TABLE IF SCORE > 0",null,null,null,"com3"]
["MULTI-DISCIPLINARY CONSULTATION","CALCULATED SCORE",{"$f":"INTERPRETATION!G74","v":"JA"},"USE \"MULTIDISCIPLINARY\" TABLE IF SCORE > 0",null,null,null,"com3"]
["PREPAREDNESS","CALCULATED SCORE",{"$f":"INTERPRETATION!G79","v":"NEEN"},"USE \"PREPAREDNESS” TABLE IF SCORE > 0",null,null,null,"com3"]
[]
["PART 3","PUBLIC HEALTH"]
["PUBLIC HEALTH","CALCULATED SCORE ",{"$f":"'[1]LUIK 4 - RISICO''S VGZ'!J24","v":{"$error":"#REF!"}},"USE “PUBLIC HEALTH” TABLE IF SCORE > 0",null,null,null,"com3"]
[]
[]
[]
[]
[]
[]
["LOCAL RESIDENTS TABLE"]
["NO","QUESTION","ACTION IF THE SCORE IS “1”",null,null,null,null,"SCORE"]
[14,"Residents inside isolation perimeter","Look up the total number of local residents living near the event site\nAsk if local residents were notified",null,null,null,null,{"$f":"'SECTION3 + SCORE'!I19","v":0}]
[15,"Retirement home/hospital inside perimeter","Check that the institute in question was notified of the event and that there is an alternative access point.\nIF NOT : allocate additional resources in the institute in question for the entire duration it will have to run autonomously",null,null,null,null,{"$f":"'SECTION3 + SCORE'!I20","v":0}]
[16,"On-call GP needed inside perimeter","Notify local general practitioners",null,null,null,null,{"$f":"'SECTION3 + SCORE'!I21","v":0}]
[null,null,"Share the phone number of the Operational Control Centre (GP consultations + parking)",null,null,null,null,{"$f":"'SECTION3 + SCORE'!I21","v":0}]
[17,"On-call nurse needed inside perimeter","Notify on-call nurses",null,null,null,null,{"$f":"'SECTION3 + SCORE'!I22","v":0}]
[null,null,"Share the phone number of the Operational Control Centre (GP consultations + parking)",null,null,null,null,{"$f":"'SECTION3 + SCORE'!I22","v":0}]
[18,"meal delivery needed inside perimeter","Check that this has been arranged with the municipality",null,null,null,null,{"$f":"'SECTION3 + SCORE'!I23","v":0}]
[19,"on-call pharmacist needed inside perimeter ","If possible, ask that the on-call pharmacist arranges a replacement\nIF NOT POSSIBLE: ensure free access to the pharmacy",null,null,null,null,{"$f":"'SECTION3 + SCORE'!I24","v":0}]
[20,"Number of municipalities concerned","Are all municipalities involved in the planning process",null,null,null,null,{"$f":"'SECTION3 + SCORE'!I25","v":0}]
[]
["\"MULTIDISCIPLINARY COOPERATION” TABLE"]
["NO","QUESTION","ACTION IF THE SCORE IS “1”",null,null,null,null,"SCORE"]
[37,"Presence of utilities","Is their sufficient capacity",null,null,null,null,{"$f":"'SECTION3 + SCORE'!I66","v":0}]
[38,"Means of communication","Can the emergency services work with this equipment",null,null,null,null,{"$f":"'SECTION3 + SCORE'!I67","v":0}]
[39,"Presence of large animals","Are the facilities adapted for these animals\nInform the Animal Welfare Department (DG4)",null,null,null,null,{"$f":"'SECTION3 + SCORE'!I68","v":0}]
[40,"International reputation (> 9 % foreigners expected)","Coping with foreign language problems",null,null,null,null,{"$f":"'SECTION3 + SCORE'!I69","v":0}]
[41,"Presence of an Operational Control Centre for the entire duration of the event","What must people do if the Operational Control Centre is not or only partially manned (phone numbers)",null,null,null,null,{"$f":"'SECTION3 + SCORE'!I74","v":0}]
[42,"Problem according to police","Does this problem effect medical assistance",null,null,null,null,{"$f":"'SECTION3 + SCORE'!I75","v":0}]
[43,"Problem according to the fire department","Does this problem effect medical assistance",null,null,null,null,{"$f":"'SECTION3 + SCORE'!I76","v":0}]
[44,"Previous negative experience with this type of event","Does this problem effect medical assistance",null,null,null,null,{"$f":"'SECTION3 + SCORE'!I77","v":0}]
[45,"Previous negative experience with the organiser","Does this problem effect medical assistance",null,null,null,null,{"$f":"'SECTION3 + SCORE'!I78","v":0}]
[46,"Specific legislation concerning this type of event","Has this legislation been put into practice",null,null,null,null,{"$f":"'SECTION3 + SCORE'!I79","v":0}]
[]
[]
["“PREPAREDNESS” TABLE"]
["NO"]
[47]
[48]
[49]
[50]
[51,null,null,null,null,null,null,null,null,"“PREPAREDNESS” TABLE"]
[52,null,null,null,null,null,null,null,null,"QUESTION","SCORE"]
[53,null,null,null,null,null,null,null,null,"Are there adequate maps of the site",{"$f":"'SECTION3 + SCORE'!I94","v":0}]
[null,null,null,null,null,null,null,null,null,"Are there adequate maps of the entire isolation area",{"$f":"'SECTION3 + SCORE'!I95","v":0}]
[null,null,null,null,null,null,null,null,null,"Does the plan meet the requirements of the MIP",{"$f":"'SECTION3 + SCORE'!I96","v":0}]
[null,null,null,null,null,null,null,null,null,"Has a Dir-Med been appointed for the event",{"$f":"'SECTION3 + SCORE'!#REF!","v":{"$error":"#REF!"}}]
[null,null,null,null,null,null,null,null,null,"Is there a clear communication model that can be used in the event of a collective problem",{"$f":"'SECTION3 + SCORE'!I97","v":0}]
["“PUBLIC HEALTH” TABLE",null,null,null,null,null,null,null,null,"Is there a direct link to the 100 switchboard",{"$f":"'SECTION3 + SCORE'!I98","v":0}]
["NO","QUESTION","ACTION IF THE SCORE IS “1”",null,null,null,null,"SCORE",null,"Is the Medical Intervention Plan compliant with the Royal Decree of 16/02/06",{"$f":"'SECTION3 + SCORE'!I99","v":0}]
["IMPORTANT POINTS OF ATTENTION AT THE EVENT",54,"Efforts made to increase awareness of the importance of bringing sunscreen and sunglasses",null,null,null,null,{"$f":"'[1]LUIK 4 - RISICO''S VGZ'!J7","v":{"$error":"#REF!"}}]
[null,55,"Negative behaviour shown by people attending the event can be counteracted",null,null,null,null,{"$f":"'[1]LUIK 4 - RISICO''S VGZ'!J8","v":{"$error":"#REF!"}}]
[null,56,"Free drinking water at temperatures exceeding 27°C",null,null,null,null,{"$f":"'[1]LUIK 4 - RISICO''S VGZ'!J9","v":{"$error":"#REF!"}}]
[null,57,"Ample portable toilets",null,null,null,null,{"$f":"'[1]LUIK 4 - RISICO''S VGZ'!J10","v":{"$error":"#REF!"}}]
[null,58,"Measures taken to ensure the cleanliness of portable toilets",null,null,null,null,{"$f":"'[1]LUIK 4 - RISICO''S VGZ'!J11","v":{"$error":"#REF!"}}]
[null,59,"Separate logo for waste management",null,null,null,null,{"$f":"'[1]LUIK 4 - RISICO''S VGZ'!J12","v":{"$error":"#REF!"}}]
[null,60,"Separate waste collection",null,null,null,null,{"$f":"'[1]LUIK 4 - RISICO''S VGZ'!J13","v":{"$error":"#REF!"}}]
[null,61,"Separate waste collection in areas open to the general public",null,null,null,null,{"$f":"'[1]LUIK 4 - RISICO''S VGZ'!J14","v":{"$error":"#REF!"}}]
[null,62,"Properly functioning cold chain for food stalls",null,null,null,null,{"$f":"'[1]LUIK 4 - RISICO''S VGZ'!J15","v":{"$error":"#REF!"}}]
[null,63,"Fire extinguishers at food stalls working with fire and serving hot food",null,null,null,null,{"$f":"'[1]LUIK 4 - RISICO''S VGZ'!J16","v":{"$error":"#REF!"}}]
[null,64,"During ticket sales, people with chronic conditions were asked to carry a medical card with them during the event",null,null,null,null,{"$f":"'[1]LUIK 4 - RISICO''S VGZ'!J17","v":{"$error":"#REF!"}}]
[null,65,"During ticket sales, a flyer with information about prevention was distributed, drawn up with the help of the medical section",null,null,null,null,{"$f":"'[1]LUIK 4 - RISICO''S VGZ'!J18","v":{"$error":"#REF!"}}]
["ADDITIONAL POINTS OF ATTENTION REGARDING THE CAMPSITE",66,"Drinking water supply system with sufficient flow rate",null,null,null,null,{"$f":"'[1]LUIK 4 - RISICO''S VGZ'!J19","v":{"$error":"#REF!"}}]
[null,67,"Ample portable toilets",null,null,null,null,{"$f":"'[1]LUIK 4 - RISICO''S VGZ'!J20","v":{"$error":"#REF!"}}]
[null,68,"Amble showers",null,null,null,null,{"$f":"'[1]LUIK 4 - RISICO''S VGZ'!J21","v":{"$error":"#REF!"}}]
[null,69,"Storage and labeling of chronic medication",null,null,null,null,{"$f":"'[1]LUIK 4 - RISICO''S VGZ'!J22","v":{"$error":"#REF!"}}]

{"sheet":"WORKING DOC","index":27,"n_rows":49,"n_cols":8,"rows_kept":49,"cut":false,"hidden":false,"merged":[[28,0,28,1],[31,0,31,1]]}
["Can the roles of BLS team member and ambulance aid worker be combined"]
[]
["Minimum number of aid stations",null,null,null,null,null,"Should a temporary medical centre be set up at the event",{"$f":"'SECTION 2 - RISK ASSESSMENT'!E10","v":"NO"}]
["Minimum number of nurses",{"$f":"RESULTS!E25","v":{"$error":"#DIV/0!"}},null,null,null,null,"Should remote measures be taken",{"$f":"'[1]LUIK 4 - RISICO''S VGZ'!D29","v":{"$error":"#REF!"}}]
["Minimum number of doctors other than MUG doctors",{"$f":"RESULTS!E26","v":{"$error":"#DIV/0!"}},null,null,null,null,"Should specific measures be taken for campsites",{"$f":"'[1]LUIK 4 - RISICO''S VGZ'!D30","v":{"$error":"#REF!"}}]
["Minimum number of MUG teams",{"$f":"RESULTS!E22","v":{"$error":"#DIV/0!"}}]
[null,null,null,null,null,null,"Should measures be taken for local residents",{"$f":"INTERPRETATION!G37","v":"NEEN"}]
[{"$f":"'SECTION 1 - APPLICATION'!G5","v":"VERSION 25"},{"$f":"'SECTION 1 - APPLICATION'!G4","v":"00/00/0000"},null,null,null,null,"Multi-disciplinary actions must be taken",{"$f":"INTERPRETATION!G74","v":"JA"}]
[null,null,null,null,null,null,"Is the medical emergency planning sufficiently detailed",{"$f":"INTERPRETATION!G79","v":"NEEN"}]
[]
["Event date",{"$f":"'SECTION 1 - APPLICATION'!G4","v":"00/00/0000"}]
["Total attendance after correction",{"$f":"'SECTION 1 - APPLICATION'!K21/('SECTION 1 - APPLICATION'!I20/100)","v":0}]
["Total event duration in hours",{"$f":"'SECTION 1 - APPLICATION'!K8","v":false}]
["Maximum number of simultaneous visitors",{"$f":"'SECTION 1 - APPLICATION'!K21","v":0}]
["Maximum time spent by said visitors at the event in hours",{"$f":"'SECTION3 + SCORE'!J47","v":0}]
[null,null,null,null,null,null,"CHECK OF NEXT SHEETS OK"]
["Is a temporary medical centre needed during this event",{"$f":"'SECTION 2 - RISK ASSESSMENT'!E10","v":"NO"}]
["Are additional public health measures needed",{"$f":"'[1]LUIK 4 - RISICO''S VGZ'!D29","v":{"$error":"#REF!"}}]
["Are additional measures for a campsite needed",{"$f":"'[1]LUIK 4 - RISICO''S VGZ'!D30","v":{"$error":"#REF!"}}]
[]
["Number of life-threatening conditions (after handover)",{"$f":"RESULTS!E14","v":0}]
["Number of urgent conditions (request doctor and/or ambulance transport to hospital)",{"$f":"RESULTS!E15","v":0}]
["Number of requests for (basic) medical care",{"$f":"RESULTS!E16","v":0}]
["Total number of people receiving care",{"$f":"INTERPRETATION!G65","v":0}]
["Number of simultaneous cases and, therefore, required number of beds/spots in aid station(s)",{"$f":"IF(B24>1,INTERPRETATION!G66,IF(B24>0,1,0))","v":0},null,null,null,null,"cell B25 changed to ensure that the number of simultaneous treatments is always 1 under care provided"]
[]
["Aid workers"]
["Minimum number of ambulances",{"$f":"RESULTS!$E$21","v":0}]
["  Note : ambulances are always manned by 2 ambulance aid workers"]
["Minimum number of BLS teams",{"$f":"RESULTS!E23","v":{"$error":"#VALUE!"}}]
["Minimum number of other aid workers (excluding the BLS teams and the ambulance aid workers)",{"$f":"RESULTS!E24","v":0}]
["Note : if this number is equal to 0, the ambulance aid worker is responsible\nfor transport, if necessary, as well as general medical assistance."]
[]
["Can the roles of ambulance aid worker and BLS team member be combined"]
["Can the roles of ambulance aid worker and aid station worker be combined"]
["Can the roles of BLS team member and aid station worker be combined"]
[]
["Minimum area for the aid station",{"$f":"INTERPRETATION!G67","v":12}]
[]
["Should multiple aid stations be setp up"]
[]
["Minimum number of MUG teams",{"$f":"IF(RESULTS!F2=0,0,RESULTS!E22)","v":0}]
["Minimum number of nurses (other than MUG team(s))",{"$f":"IF(RESULTS!F2=0,0,RESULTS!E25)","v":0}]
["Minimum number of doctors (other than MUG team(s))",{"$f":"IF(RESULTS!F2=0,0,RESULTS!E26)","v":0}]
[]
[{"$f":"'SECTION3 + SCORE'!D101","v":"Has the application form with relevant information been submitted to the HC100 (DOC 100)"},{"$f":"IF('SECTION3 + SCORE'!I101=0,\"JA\",IF('SECTION3 + SCORE'!I101=\"niet van toepassing\",\"niet van toepassing\",\"NEEN\"))","v":"NEEN"}]
[{"$f":"'SECTION3 + SCORE'!D102","v":"Have the site maps been submitted to the HC100"},{"$f":"IF('SECTION3 + SCORE'!I102=0,\"JA\",IF('SECTION3 + SCORE'!I102=\"niet van toepassing\",\"niet van toepassing\",\"NEEN\"))","v":"JA"}]
[]
["Date on which the HC100 should be notified if the answer to one of these questions is “NO”"]

{"sheet":"LIST","index":28,"n_rows":52,"n_cols":14,"rows_kept":52,"cut":false,"hidden":false,"merged":[]}
["Event type","Accessibility","Age","Alcohol","Drugs","Audience","Basic conditions/injuries","Food","Duration","Temperature","Utilities","Communication","Transport","Utilities"]
["Please select","Please select","Please select","Please select","Please select","Please select","Please select","Please select","Please select = 0 ","Please select","Please select","Please select","Please select","Please select"]
["All other demonstrations","Separate approach route for emergency services","All ages","No","No","No different from standard population","No","No","< 5 hours = 0","< 0°C","Ample standard facilities","Ample internal & external means of communication \nfixed structure","regular public transport in the area","None"]
["ALL OTHER EVENTS","no separate approach route for emergency services and several major approach routes","10-20 y/o and/or 36-65 y/o","Present, no increased risk expected","Present, no increased risk expected","Homogeneous audience","Disability or mild condition/injury requiring long-term treatment","Cold food","5-12 hours = 1","0°C-3°C","Limited standard facilities","Separate communication structure for this event or no communication","Regular public transport at a distance and/or own shuttle service","Gas cylinders"]
["Autosport","No separate approach route for emergency services and restricted access for emergency services and visitors","20-35 y/o","Present, increased risk expected","Present, increased risk expected",null,"Severe condition/injury requiring long-term treatment","Hot food","12-24 hours = 2","4°C-7°C","Set up specifically for this event",null,"No public transport in the area OR public transport no longer runs at the start/end of the event","Connection to an electrical group"]
["Balloon flight",null,"> 65 y/o","Abundant use","Abundant use",null,null,null,"> 24 hours = 3","7°C-17°C",null,null,null,"Connection to electricity grid"]
["Bazaar",null,"<10 y/o with parental supervision",null,null,null,null,null,null,"17°C-22°C",null,null,null,"unknown"]
["Trade fair",null,"<10 y/o without parental supervision",null,null,null,null,null,null,"22°C-27°C",null,null,null,"other"]
["Fair",null,null,null,null,null,null,null,null,">27°C"]
["Competitive sports",null,null,null,null,null,null,null,null,"Air conditioning units present"]
["Classical music concert"]
["Dance sports event"]
["Erotica expo"]
["Event with Techno/house and related musical genres"]
["Folkloristic celebration"]
["Party"]
["Marriage"]
["Carnival"]
["Christmas market"]
["Minor (announced) demonstration"]
["Marathon"]
["Market"]
["Multi-day marches"]
["Motorsports"]
["Music event (other than classical music or rock/house/techno)"]
["Parades"]
["meat feast"]
["Political event"]
["Rock concert"]
["Show"]
["Sports event (except marathon, cycling, multi-day marches or competition)"]
["Street festival (except carnival)"]
["Exhibition"]
["Theatre"]
["Flight show"]
["Flight show static"]
["Flea market"]
["Public concert"]
["Fireworks"]
["Cycling"]
["Cycling behind derny"]
[]
[]
[]
[]
[]
[]
["A = 4"]
["B = 8"]
["C = 12"]
["D = 16"]
["E = 20"]

{"sheet":"Registration","index":29,"n_rows":8,"n_cols":46,"rows_kept":8,"cut":false,"hidden":false,"merged":[[0,43,1,43],[0,13,0,16],[0,42,1,42],[0,0,1,0],[0,40,1,40],[0,41,1,41],[0,1,0,7],[0,21,0,26],[0,31,0,33],[0,34,0,35],[0,17,0,20],[0,28,0,30],[0,8,0,12]]}
["FPS number","Event",null,null,null,null,null,null,"estimated figures",null,null,null,null,"variables",null,null,null,"Estimated workload",null,null,null,"Suggested facilities/resources",null,null,null,null,null,"Factor","actual figures",null,null,"effective care provided",null,null,"transport to hospital",null,null,null,null,null,"ASTRID\ngroup","Comments","Comments on care provided by disaster officer","letter\n1 = no facilities/resources\n2 = limited facilities/resources\n3 = FPS advice"]
[null,"Name ","Type ","Duration","Date","Address","postcode","Municipality","visitors","participants","of people deployed by the organisers","Number of residents within the isolation perimeter","Total number of people at risk","t° C","alcohol use","drug use","Predominant age group","T1","T2","T3","Simultaneous","MUG","AMB","Doctor","Nu","Aidw","BLS","Health_zw","visitors","Average time spent at event","Max. simultaneous attendance","T1","T2","T3","Ambulance","Other resource","Temperature","Alcohol consumption","Drug use","Predominant age group"]
[]
[1,{"$f":"'SECTION 1 - APPLICATION'!G5","v":"VERSION 25"},{"$f":"'SECTION 1 - APPLICATION'!G6","v":"ALL OTHER EVENTS"},{"$f":"'SECTION 1 - APPLICATION'!K8","v":false},{"$f":"'SECTION 1 - APPLICATION'!G4","v":"00/00/0000"},{"$f":"'SECTION 1 - APPLICATION'!$G$7","v":0},{"$f":"'SECTION 1 - APPLICATION'!$J$7","v":0},{"$f":"'SECTION 1 - APPLICATION'!G3","v":0},{"$f":"'SECTION 1 - APPLICATION'!$I$14","v":0},{"$f":"'SECTION 1 - APPLICATION'!$I$15","v":0},{"$f":"'SECTION 1 - APPLICATION'!$I$16","v":0},{"$f":"'SECTION 1 - APPLICATION'!$I$17","v":0},{"$f":"'SECTION 1 - APPLICATION'!$K$21","v":0},{"$f":"'SECTION3 + SCORE'!E55","v":"Please select"},{"$f":"'SECTION3 + SCORE'!E43","v":"Please select"},{"$f":"'SECTION3 + SCORE'!E44","v":"Please select"},{"$f":"'SECTION3 + SCORE'!E42","v":"Please select"},{"$f":"RESULTS!E14","v":0},{"$f":"RESULTS!E15","v":0},{"$f":"RESULTS!E16","v":0},{"$f":"RESULTS!E17","v":0},{"$f":"'WORKING DOC'!$B$42","v":0},{"$f":"'WORKING DOC'!B28","v":0},{"$f":"'WORKING DOC'!$B$44","v":0},{"$f":"'WORKING DOC'!$B$43","v":0},{"$f":"RESULTS!E24","v":0},{"$f":"RESULTS!E23","v":{"$error":"#VALUE!"}},{"$f":"INTERPRETATION!G52","v":1},{"$f":"'Care provided'!E7","v":0},{"$f":"'Care provided'!E8","v":0},{"$f":"'Care provided'!E9","v":0},{"$f":"'Care provided'!E12","v":0},{"$f":"'Care provided'!E13","v":0},{"$f":"'Care provided'!E14","v":0},{"$f":"'Care provided'!E15","v":0},{"$f":"'Care provided'!E16","v":0},{"$f":"'Care provided'!E19","v":"Please select"},{"$f":"'Care provided'!E20","v":"Please select"},{"$f":"'Care provided'!E21","v":"Please select"},{"$f":"'Care provided'!E22","v":"Please select"},null,null,{"$f":"'Care provided'!A25","v":"Please share any comments here."},{"$f":"IF(AS7=0,1,IF(AS8=0,1,2))","v":{"$error":"#REF!"}}]
[]
[]
[null,null,null,null,null,null,null,null,null,null,null,null,null,null,null,null,null,null,null,null,null,null,null,null,null,null,null,null,null,null,null,null,null,null,null,null,null,null,null,null,null,null,null,null,{"$f":"'[1]LUIK 4 - RISICO''S VGZ'!$D$51","v":{"$error":"#REF!"}},"no medical facilities/resources"]
[null,null,null,null,null,null,null,null,null,null,null,null,null,null,null,null,null,null,null,null,null,null,null,null,null,null,null,null,null,null,null,null,null,null,null,null,null,null,null,null,null,null,null,null,{"$f":"'SECTION Disasters'!$B$21","v":"?"},"A small-scale aid station is required. The presence of a nurse, ambulance or MUG team is not necessary here"]

{"sheet":"Sheet1","index":30,"n_rows":10,"n_cols":10,"rows_kept":10,"cut":false,"hidden":false,"merged":[]}
["start date","starting time","end day","duration",null,"number of days","number of hours","number of hours per day","number of hours as a number","total"]
["2010-04-03","13:00:00","2010-04-03","15:00:00",null,{"$f":"C2-A2","v":0},{"$f":"D2-B2","v":"02:00:00"},{"$f":"F2*24","v":0},{"$f":"G2*24","v":2.0000000000000009},{"$f":"SUM(H2:I2)","v":2.0000000000000009}]
["2010-04-03","13:00:00","2010-04-04","15:00:00",null,{"$f":"C3-A3","v":1},{"$f":"D3-B3","v":"02:00:00"},{"$f":"F3*24","v":24},{"$f":"G3*24","v":2.0000000000000009},{"$f":"SUM(H3:I3)","v":26}]
["2010-04-03","13:00:00","2010-04-04","17:00:00",null,1,{"$f":"D4-B4","v":"04:00:00"},24,3.9999999999999938,27.999999999999993]
["2010-04-03","16:00:00",null,"18:00:00",null,-40271,"02:00:00",-966504,1.9999999999999929,-966502]
["2010-04-03","17:00:00",null,"19:00:00",null,-40271,"02:00:00",-966504,2.0000000000000142,-966502]
["2010-04-03","18:00:00",null,"20:00:00",null,-40271,"02:00:00",-966504,1.9999999999999929,-966502]
["2010-04-03","19:00:00",null,"21:00:00",null,-40271,"02:00:00",-966504,1.9999999999999929,-966502]
["2010-04-03","20:00:00",null,"22:00:00",null,-40271,"02:00:00",-966504,2.0000000000000142,-966502]
["2010-04-03","21:00:00",null,"23:00:00",null,-40271,"02:00:00",-966504,1.9999999999999929,-966502]